{"text_format":"1","workbook":"xlsx","n_sheets":3,"sheets":["PDF Warrant","Warrant_transpose","Reference"],"not_rendered":{"charts":0,"images":1,"macros":1,"external_links":0,"defined_names":28,"comments":1,"pivot_tables":0},"unopened":[],"bounds":{"document_bytes":16777216,"sheet_cells":100000,"rows_first":2000,"rows_last":500,"rows_between":2000,"halvings":0,"cell_chars":16384,"cell_head_chars":4096},"cells_cut":0,"cells_raw":0,"read":"whole","date_system":"1900"}

{"sheet":"PDF Warrant","index":0,"n_rows":105,"n_cols":10,"rows_kept":105,"cut":false,"hidden":false,"merged":[[1,0,1,1],[102,1,102,10],[22,2,22,7],[0,0,0,10],[13,2,13,7],[15,2,15,3],[15,6,15,7],[19,2,20,10],[5,1,5,10],[24,2,24,3],[24,6,24,7],[24,9,26,10],[26,6,26,7],[28,2,28,3],[28,6,28,7],[56,6,56,7],[56,8,56,9],[29,1,29,7],[31,2,31,7],[33,2,33,3],[33,6,33,7],[35,2,35,4],[35,6,35,10],[37,6,37,8],[39,2,39,10],[43,2,43,3],[53,2,53,10],[55,1,55,3],[43,5,43,8],[41,5,41,8],[73,6,73,8],[81,1,81,2],[81,3,81,4],[61,8,61,9],[57,1,57,5],[57,6,57,7],[57,8,57,9],[58,1,58,5],[58,6,58,7],[58,8,58,9],[59,1,59,5],[59,6,59,7],[59,8,59,9],[60,1,60,5],[60,8,60,9],[69,1,69,4],[71,1,71,2],[71,3,71,4],[73,1,73,2],[73,3,73,4],[63,1,63,3],[64,1,64,2],[64,3,64,4],[64,6,64,8],[66,5,66,10],[104,1,104,7],[104,8,104,10],[99,1,99,10],[100,1,101,10],[93,2,93,4],[93,7,93,10],[95,1,96,1],[95,2,96,2],[95,3,96,4],[95,6,96,6],[95,7,96,8],[91,7,91,9],[79,9,79,10],[67,1,67,10],[75,6,75,8],[91,2,91,4],[83,1,83,2],[83,3,83,4],[83,6,83,8],[77,1,77,4],[79,1,79,2],[79,3,79,4],[79,6,79,8],[85,6,85,8],[89,2,89,10]]}
["Investments by Pooled Development Funds, including the exercising of options over shares, must be made in compliance with Part 4, Division 1of the PDF Act.  Please refer to the appropriate section of the PDF Act when providing the following information."]
["Please refer to the Privacy Policy"]
[]
["Pooled Development Funds:",null,null,null,null,"PDF Investment Notification Reporting Warrant"]
[]
["Notes: ","1) Information provided in this form is protected by section 71 of the Pooled Development Funds Act 1992 (PDF Act), and is used for internal reporting purposes and to evaluate Government initiatives or policies related to the PDF Act.  It does not represent an approval under the PDF Act. Funds should ensure they have obtained any necessary approvals and are compliant with the provisions of the PDF Act before providing this warrant."]
[null,"2) PDFs are expected to obtain as outlined in the Pooled Development Fund Act 1992, the necessary prior Board approvals applicable to certain investment situations."]
[null,"3) Cells whose label includes a double-border are mandatory."]
[null,"4) Cells whose label includes a single-border outline require a value in at least one of the fields on that line that have the border."]
[null,"5) Some cells will stop displaying if a preceeding answer means they don’t need to be completed."]
[]
[]
[]
["1.","PDF’s Name: (Select)"]
[]
[null,"ABN: (Enter without spaces. Will display with spaces added.)",{"$f":"IF(OR(ISBLANK($C$14),ISERROR(VLOOKUP($C$14,Reference!$P$5:$AP$29,2,FALSE)),ISBLANK(VLOOKUP($C$14,Reference!$P$5:$AP$29,2,FALSE))),\"\",VLOOKUP($C$14,Reference!$P$5:$AP$29,2,FALSE))","v":""},null,{"$f":"IF(ISBLANK(C16),\"\",IF(LEFT(C16,2)=QUOTIENT(89-MOD(((MID(C16,3,1)*3) +(MID(C16,4,1)*5) +(MID(C16,5,1)*7) +(MID(C16,6,1)*9) +(MID(C16,7,1)*11) +(MID(C16,8,1)*13) +(MID(C16,9,1)*15) +(MID(C16,10,1)*17) +(MID(C16,11,1)*19)),89),10)+1&MOD(89-MOD(((MID(C16,3,1)*3) +(MID(C16,4,1)*5) +(MID(C16,5,1)*7) +(MID(C16,6,1)*9) +(MID(C16,7,1)*11) +(MID(C16,8,1)*13) +(MID(C16,9,1)*15) +(MID(C16,10,1)*17) +(MID(C16,11,1)*19)),89),10),\"\",\"Invalid ABN Value\"))","v":{"$error":"#VALUE!"}},"ACN: (Enter without spaces)",{"$f":"IF(OR(ISBLANK($C$14),ISERROR(VLOOKUP($C$14,Reference!$P$5:$AP$29,3,FALSE)),ISBLANK(VLOOKUP($C$14,Reference!$P$5:$AP$29,3,FALSE))),\"\",VLOOKUP($C$14,Reference!$P$5:$AP$29,3,FALSE))","v":""},null,{"$f":"IF(VALUE(RIGHT(G16,1))=(VALUE(IF((((LEFT(G16,1)*8)+(MID(G16,2,1)*7) +(MID(G16,3,1)*6) +(MID(G16,4,1)*5) +(MID(G16,5,1)*4) +(MID(G16,6,1)*3) +(MID(G16,7,1)*2) +(MID(G16,8,1)*1))-((ROUNDDOWN(((LEFT(G16,1)*8)+(MID(G16,2,1)*7) +(MID(G16,3,1)*6) +(MID(G16,4,1)*5) +(MID(G16,5,1)*4) +(MID(G16,6,1)*3) +(MID(G16,7,1)*2) +(MID(G16,8,1)*1))/10,0))*10))=0,\"0\",(10-(((LEFT(G16,1)*8)+(MID(G16,2,1)*7) +(MID(G16,3,1)*6) +(MID(G16,4,1)*5) +(MID(G16,5,1)*4) +(MID(G16,6,1)*3) +(MID(G16,7,1)*2) +(MID(G16,8,1)*1))-((ROUNDDOWN(((LEFT(G16,1)*8)+(MID(G16,2,1)*7) +(MID(G16,3,1)*6) +(MID(G16,4,1)*5) +(MID(G16,5,1)*4) +(MID(G16,6,1)*3) +(MID(G16,7,1)*2) +(MID(G16,8,1)*1))/10,0))*10)))))),\"\",\"Invalid ACN Value\")","v":{"$error":"#VALUE!"}},"ASX Code:"]
[]
[]
[]
["2.","Investee Details:","To enable appropriate transparency and accountability in the program, it's important that participants are clearly and unambiguously identified and decribed. If you're uncertain of the answers to the following questions, please clarify with the investee."]
[]
[]
[null,"Registered Business Name:"]
[]
[null,"ABN: (Enter without spaces. Will display with spaces added.)",null,null,{"$f":"IF(ISBLANK(C25),\"\",IF(LEFT(C25,2)=QUOTIENT(89-MOD(((MID(C25,3,1)*3) +(MID(C25,4,1)*5) +(MID(C25,5,1)*7) +(MID(C25,6,1)*9) +(MID(C25,7,1)*11) +(MID(C25,8,1)*13) +(MID(C25,9,1)*15) +(MID(C25,10,1)*17) +(MID(C25,11,1)*19)),89),10)+1&MOD(89-MOD(((MID(C25,3,1)*3) +(MID(C25,4,1)*5) +(MID(C25,5,1)*7) +(MID(C25,6,1)*9) +(MID(C25,7,1)*11) +(MID(C25,8,1)*13) +(MID(C25,9,1)*15) +(MID(C25,10,1)*17) +(MID(C25,11,1)*19)),89),10),\"\",\"Invalid ABN Value\"))","v":""},"ACN: (Enter without spaces)",null,null,{"$f":"IF(VALUE(RIGHT(G25,1))=(VALUE(IF((((LEFT(G25,1)*8)+(MID(G25,2,1)*7) +(MID(G25,3,1)*6) +(MID(G25,4,1)*5) +(MID(G25,5,1)*4) +(MID(G25,6,1)*3) +(MID(G25,7,1)*2) +(MID(G25,8,1)*1))-((ROUNDDOWN(((LEFT(G25,1)*8)+(MID(G25,2,1)*7) +(MID(G25,3,1)*6) +(MID(G25,4,1)*5) +(MID(G25,5,1)*4) +(MID(G25,6,1)*3) +(MID(G25,7,1)*2) +(MID(G25,8,1)*1))/10,0))*10))=0,\"0\",(10-(((LEFT(G25,1)*8)+(MID(G25,2,1)*7) +(MID(G25,3,1)*6) +(MID(G25,4,1)*5) +(MID(G25,5,1)*4) +(MID(G25,6,1)*3) +(MID(G25,7,1)*2) +(MID(G25,8,1)*1))-((ROUNDDOWN(((LEFT(G25,1)*8)+(MID(G25,2,1)*7) +(MID(G25,3,1)*6) +(MID(G25,4,1)*5) +(MID(G25,5,1)*4) +(MID(G25,6,1)*3) +(MID(G25,7,1)*2) +(MID(G25,8,1)*1))/10,0))*10)))))),\"\",\"Invalid ACN Value\")","v":{"$error":"#VALUE!"}},"Please note that AusIndustry needs a valid value for at least one of the following fields: ABN; ACN; ARBN or State Registration Number."]
[]
[null,"If the Investee does not have an ABN or ACN, please provide either:",null,null,null,"ARBN: (Enter without spaces)",null,null,{"$f":"IF(VALUE(RIGHT(G27,1))=(VALUE(IF((((LEFT(G27,1)*8)+(MID(G27,2,1)*7) +(MID(G27,3,1)*6) +(MID(G27,4,1)*5) +(MID(G27,5,1)*4) +(MID(G27,6,1)*3) +(MID(G27,7,1)*2) +(MID(G27,8,1)*1))-((ROUNDDOWN(((LEFT(G27,1)*8)+(MID(G27,2,1)*7) +(MID(G27,3,1)*6) +(MID(G27,4,1)*5) +(MID(G27,5,1)*4) +(MID(G27,6,1)*3) +(MID(G27,7,1)*2) +(MID(G27,8,1)*1))/10,0))*10))=0,\"0\",(10-(((LEFT(G27,1)*8)+(MID(G27,2,1)*7) +(MID(G27,3,1)*6) +(MID(G27,4,1)*5) +(MID(G27,5,1)*4) +(MID(G27,6,1)*3) +(MID(G27,7,1)*2) +(MID(G27,8,1)*1))-((ROUNDDOWN(((LEFT(G27,1)*8)+(MID(G27,2,1)*7) +(MID(G27,3,1)*6) +(MID(G27,4,1)*5) +(MID(G27,5,1)*4) +(MID(G27,6,1)*3) +(MID(G27,7,1)*2) +(MID(G27,8,1)*1))/10,0))*10)))))),\"\",\"Invalid ARBN Value\")","v":{"$error":"#VALUE!"}}]
[null,"Or"]
[null,"State Registration Number:\n(Enter without spaces)",null,null,"and","State that the Investee business is registered in:"]
[null,"State Registration Numbers and Registration State can be confirmed via the 'Organisation and Business Names' register on the ASIC website"]
[]
[null,"Street address where Investee's business usually managed from:"]
[]
[null,"State: (Select)",null,null,null,"Locality/Suburb:",null,null,null,"Postcode:"]
[]
[null,"ANZSIC Division:",null,null,null,"ANZSIC Code:"]
[]
[null,"Is the Investee a PDF? [s22]",null,null,null,"Investee Business Sector:"]
[]
[null,"Primary activity of investee: [s23]\n(Brief description between 10 and 100 words)"]
[]
[null,"Is the primary activity an excluded activity? [s23]",null,null,null,"If the primary activity is an excluded activity, when did\nInnovation and Science Australia approve?"]
[]
[null,"Total value of investee company's assets: ($) [s24]",null,null,null,"If the investee company's assets are more that $50 million, when did Innovation and Science Australia approve?"]
[]
[null,"Is the investee an interposed entity under s28A? [s28A]",null,null,null,"Does the investee satisfy the requirements of s28A?"]
[]
[]
[]
["3.","Investment Details"]
[]
[null,"Notification Type: (select)",null,null,null,"Date of Investment: (dd/mm/yyyy)"]
[]
[null,"Intended use of invested funds:\n[s21] (Brief description between 10 and 100 words)"]
[]
[null,"Types of Investment on this occassion [s19, s20]"]
[null,null,null,null,null,null,"Number",null,"Total Value"]
[null,"Newly issued shares acquired"]
[null,"Pre-owned shares acquired (Requires prior approval by Innovation and Science Australia)"]
[null,"Non-Transferrable Options over shares in this company acquired\n(Can only be acquired once shares are held, unless otherwise approved by Innovation and Science Australia)"]
[null,"Loan (Can only be made once shares are held, unless otherwise approved by Innovation and Science Australia)"]
[null,null,null,null,null,null,null,"PDF investment in investee on this occasion",{"$f":"SUM(I58:J61)","v":0}]
[]
[null,"Importance of this Investment"]
[null,"How much capital, in total from all sources, did the investee company raise at the time of the PDF's investment?",null,null,null,null,"Proportion of the investee's total capital raise committed by the PDF  ( %)",null,null,{"$f":"IF(OR(ISBLANK($I$62),ISBLANK($D$65)),\"Data Incomplete\",$I$62/$D$65)","v":"Data Incomplete"}]
[null,null,null,null,null,null,null,null,null,{"$f":"IF(H51=\"No\",\"Please provide more information on letterhead.\",\"\")","v":""}]
[null,"What was the type of capital raising? (IPO, private placement, etc.)"]
[null,"As per s30 of the PDF Act, a PDF must not borrow money, accept a deposit of money, issue a debenture, issue a convertible note or issue or make available an interest in a managed investment scheme (including a notified foreign passport fund)."]
[]
[null,"Proportion of the Investee's paid-up capital contributed by this PDF  [s27]"]
[]
[null,"Total paid for all shares in this investee company held by this PDF (where the holding is as at the completion of this investment)"]
[]
[null,"Total paid on issued shares in the investee company (by all shareholders)",null,null,null,null,"% of the investee’s paid-up capital contributed by the PDF",null,null,{"$f":"IF(OR(ISBLANK($D$72),ISBLANK($D$72)),\"Data Incomplete\",$D$72/$D$74)","v":"Data Incomplete"}]
[]
[null,null,null,null,null,null,"If the investment represents less than 10%, when did Innovation and Science Australia approve?"]
[]
[null,"Proportion of the PDF's capital committed to this investee [s25]"]
[]
[null,"PDF's shareholders’ funds  [s4]",null,null,null,null,"All amounts remaining unpaid on the issued shares in the PDF"]
[]
[null,"PDF total commitment to investee\n(total of all debt and equity invested)"]
[]
[null,"PDF’s committed capital ",null,{"$f":"$D$80+$J$80","v":0},null,null,"% of the PDF's capital committed to this investee ",null,null,{"$f":"D82/D84","v":{"$error":"#DIV/0!"}}]
[]
[null,null,null,null,null,null,"If the investment represents more than 30%, when did Innovation and Science Australia approve?"]
[]
[]
[]
["4.","Certification:","I certify that I am permitted to act on behalf of the PDF and that this investment was made in compliance with the Pooled Development Funds Act 1992.\nI have read the Privacy Collection Statement *."]
[]
[null,"Name:",null,null,null,null,"Position:"]
[]
[null,"Phone number:\n(Australian, do not include international code or spaces)",null,null,null,null,"email address"]
[]
[null,"Signature:",null,"Selecting 'Yes' constitutes an electronic signature.",null,null,"Date:"]
[]
[]
[]
[null,"Chapter 2 of the Criminal Code applies to all offences created by this Act."]
[null,"It is an offence under section 137.1(1) of the Criminal Code Act 1995 (Cth) to provide information to the Commonwealth which is false or misleading in a material particular or to omit any matter or thing without which the information is misleading. Penalty: Imprisonment for 12 months.  "]
[]
[null,"* Privacy Collection Statement"]
[]
[null,"AusIndustry requests that you provide an electronic copy of this completed form (in Excel format) via email to ",null,null,null,null,null,null,"VentureCapital@industry.gov.au"]

{"sheet":"Warrant_transpose","index":1,"n_rows":2,"n_cols":58,"rows_kept":2,"cut":false,"hidden":true,"merged":[]}
["PDF’s Name","PDF's ABN","PDF's ACN","PDF's ASX","Initial or Follow-on","Date of investment","Investee Name","Investee ABN","Investee ACN","Investee ARBN","Investee State Rego","Investee State Registered In","Investee Address","Suburb","State","Postcode","Sector","ANZSIC CODE","Number of New Shares","Number of Pre-Owned Shares","Number of NTOs","Intended use by investee of money","Is the investee a PDF","Primary activity of investee","Total value of investee company's assets (s24) ","PDF investment in investee on this occasion"," Investee's paid up capital after the investment ","Percentage of the investees paid-up capital contributed by the PDF","If the initial investment represents less than 10%, which approval did the PDF receive to make the investment","PDFs shareholders funds","All amounts remaining unpaid on the issued shares in the PDF"," PDF's committed capital  ","PDF total commitment to investee (total of all debt and equity invested)","Percentage of PDFs committed capital committed to investee","If the investment represents more than 30%, when was PDF Board approval given?","Is the investee an interposed entity under s28A","If yes, does the investment satisfy the requirements of s28A","How much, in total from all sources, did the investee company raise at the time of the PDFs investment","What is the value of the PDFs investment as a percentage of the total capital raise?","What was the type of capital raising?","Form Signed?","Signatory's Name","Signatory's Position","Signatory's Phone Number","Signatory's email","Date Signed","Co-investor's name","Amount invested by co-investor  ","New Shares Transaction Value","Pre-Owned Shares Transaction Value","NTOs Transaction Value","Loans Transaction Value","Details of \"Other\" basis for the approval of initial invest less than 10%","Total paid by PDF for its current shareholding in this investee","If the investment represents less than 10%, when was PDF Board approval given?","Is the primary activity an excluded activity? [s23]","If the primary activity is an excluded activity, when did Innovation and Science Australia approve?","If the investee company's assets is more that $50 million, when did Innovation and Science Australia approve?"]
[{"$f":"'PDF Warrant'!$C$14","v":"00:00:00"},{"$f":"'PDF Warrant'!$C$16","v":""},{"$f":"'PDF Warrant'!$G$16","v":""},{"$f":"'PDF Warrant'!$K$16","v":0},{"$f":"'PDF Warrant'!$C$52","v":0},{"$f":"IF(NOT('PDF Warrant'!$G$52=0),'PDF Warrant'!$G$52,\"|\")","v":"|"},{"$f":"IF(NOT('PDF Warrant'!$C$23=0),'PDF Warrant'!$C$23,\"|\")","v":"|"},{"$f":"IF(NOT('PDF Warrant'!$C$25=0),'PDF Warrant'!$C$25,\"|\")","v":"|"},{"$f":"IF(NOT('PDF Warrant'!$G$25=0),'PDF Warrant'!$G$25,\"|\")","v":"|"},{"$f":"IF(NOT('PDF Warrant'!$G$27=0),'PDF Warrant'!$G$27,\"|\")","v":"|"},{"$f":"IF(NOT('PDF Warrant'!$C$29=0),'PDF Warrant'!$C$29,\"|\")","v":"|"},{"$f":"IF(NOT('PDF Warrant'!$G$29=0),'PDF Warrant'!$G$29,\"|\")","v":"|"},{"$f":"IF(NOT('PDF Warrant'!$C$32=0),'PDF Warrant'!$C$32,\"|\")","v":"|"},{"$f":"IF(NOT('PDF Warrant'!$G$34=0),'PDF Warrant'!$G$34,\"|\")","v":"|"},{"$f":"IF(NOT('PDF Warrant'!$C$34=0),'PDF Warrant'!$C$34,\"|\")","v":"|"},{"$f":"IF(NOT('PDF Warrant'!$K$34=0),'PDF Warrant'!$K$34,\"|\")","v":"|"},{"$f":"VLOOKUP('PDF Warrant'!$G$38,Reference!$A$5:$B$11,2,FALSE)","v":{"$error":"#N/A"}},{"$f":"LEFT('PDF Warrant'!$G$36,4)","v":""},{"$f":"IF(NOT('PDF Warrant'!$G$58=0),'PDF Warrant'!$G$58,\"|\")","v":"|"},{"$f":"IF(NOT('PDF Warrant'!$G$59=0),'PDF Warrant'!$G$59,\"|\")","v":"|"},{"$f":"IF(NOT('PDF Warrant'!$G$60=0),'PDF Warrant'!$G$60,\"|\")","v":"|"},{"$f":"IF(NOT('PDF Warrant'!$C$54=0),'PDF Warrant'!$C$54,\"|\")","v":"|"},{"$f":"IF(NOT('PDF Warrant'!$C$38=0),'PDF Warrant'!$C$38,\"|\")","v":"|"},{"$f":"IF(NOT('PDF Warrant'!$C$40=0),'PDF Warrant'!$C$40,\"|\")","v":"|"},{"$f":"IF(NOT('PDF Warrant'!$C$44=0),'PDF Warrant'!$C$44,\"|\")","v":"|"},{"$f":"'PDF Warrant'!$I$62","v":0},{"$f":"'PDF Warrant'!$D$74","v":0},{"$f":"IF(ISERROR('PDF Warrant'!$J$74),\"|\",'PDF Warrant'!$J$74)","v":"Data Incomplete"},null,{"$f":"'PDF Warrant'!$D$80","v":0},{"$f":"'PDF Warrant'!$J$80","v":0},{"$f":"'PDF Warrant'!$D$84","v":0},{"$f":"'PDF Warrant'!$D$82","v":0},{"$f":"IF(ISERROR('PDF Warrant'!$J$84),\"|\",'PDF Warrant'!$J$84)","v":"|"},{"$f":"IF(ISBLANK('PDF Warrant'!$J$86),\"|\",'PDF Warrant'!$J$86)","v":"|"},{"$f":"IF(ISBLANK('PDF Warrant'!$C$46),\"|\",'PDF Warrant'!$C$46)","v":"|"},{"$f":"IF(ISBLANK('PDF Warrant'!$G$46),\"|\",'PDF Warrant'!$G$46)","v":"|"},{"$f":"'PDF Warrant'!$D$65","v":0},{"$f":"IF(ISERROR('PDF Warrant'!$J$65),\"|\",'PDF Warrant'!$J$65)","v":"Data Incomplete"},{"$f":"IF(ISBLANK('PDF Warrant'!$F$67),\"|\",'PDF Warrant'!$F$67)","v":"|"},{"$f":"IF(ISBLANK('PDF Warrant'!$C$96),\"|\",'PDF Warrant'!$C$96)","v":"|"},{"$f":"IF(ISBLANK('PDF Warrant'!$C$92),\"|\",'PDF Warrant'!$C$92)","v":"|"},{"$f":"IF(ISBLANK('PDF Warrant'!$H$92),\"|\",'PDF Warrant'!$H$92)","v":"|"},{"$f":"IF(ISBLANK('PDF Warrant'!$C$94),\"|\",'PDF Warrant'!$C$94)","v":"|"},{"$f":"IF(ISBLANK('PDF Warrant'!$H$94),\"|\",'PDF Warrant'!$H$94)","v":"|"},{"$f":"IF(ISBLANK('PDF Warrant'!$H$96),\"|\",'PDF Warrant'!$H$96)","v":"|"},null,null,{"$f":"IF(ISBLANK('PDF Warrant'!$I$58),\"|\",'PDF Warrant'!$I$58)","v":"|"},{"$f":"IF(ISBLANK('PDF Warrant'!$I$59),\"|\",'PDF Warrant'!$I$59)","v":"|"},{"$f":"IF(ISBLANK('PDF Warrant'!$I$60),\"|\",'PDF Warrant'!$I$60)","v":"|"},{"$f":"IF(ISBLANK('PDF Warrant'!$I$61),\"|\",'PDF Warrant'!$I$61)","v":"|"},null,{"$f":"'PDF Warrant'!D72","v":0},{"$f":"IF(ISBLANK('PDF Warrant'!$J$76),\"|\",'PDF Warrant'!$J$76)","v":"|"},{"$f":"IF(ISBLANK('PDF Warrant'!$C$42),\"|\",'PDF Warrant'!$C$42)","v":"|"},{"$f":"IF(ISBLANK('PDF Warrant'!$J$42),\"|\",'PDF Warrant'!$J$42)","v":"|"},{"$f":"IF(ISBLANK('PDF Warrant'!$J$44),\"|\",'PDF Warrant'!$J$44)","v":"|"}]

{"sheet":"Reference","index":2,"n_rows":511,"n_cols":54,"rows_kept":511,"cut":false,"hidden":true,"merged":[]}
[null,null,null,null,null,null,null,null,null,null,null,null,null,null,null,null,null,null,null,null,null,null,null,null,null,null,null,null,null,null,null,null,null,null,null,null,null,null,null,null,null,null,null,null,null,null,null,null,"AU5&\" - \"&AV5","SUBSTITUTE(SUBSTITUTE(SUBSTITUTE(AW5,\" \",\"\"),\",\",\"\"),\"-\",\"_\")"]
["Sector ID lookup",null,null,"Investment Type lookup",null,null,"Under 10 pct Investment Type",null,null,null,"Investor Type",null,null,"Years",null,"Active PDF list",2,{"$f":"Q2+1","v":3},{"$f":"R2+1","v":4},5,6,7,8,9,10,11,12,13,14,15,16,17,18,19,20,21,22,23,24,25,26,27,null,null,"State",null,"ANZSIC (2006) v2.0"]
["Sector_Name","ID",null,"investment_type","Investment_type_id",null,"under10pct_type_id","under10pct_Code","under10pct_type",null,"investortype_id","investor_type",null,null,null,"org_name_registered","ABN","ACN","PDFId","org_id","rego_status","Former Name","ASX","Address: Street","Address: State","Address: City","Address: Postcode","PDF Landline","PDF Mobile","PDF Fax","PDF Email","PDF Website","Public: Street (if changed)","Public: State (if changed)","Public: City (if changed)","Public: Postcode (if changed)","Public: Ph. Number (if changed)","Public: Mobile (if changed)","Public: Fax (if changed)","Public: Email (if changed)","Public: Website (if changed)","Public: Target Investments",null,null,null,null,"1-digit parent","1-digit parent label","1-digit display label","For Range Names",null,"4-digit code","4-digit Code Label","4-digit Display Label"]
[null,null,null,null,null,null,null,null,null,null,null,null,null,2018,null,null,null,null,null,null,null,null,null,null,null,null,null,null,null,null,null,null,null,null,null,null,null,null,null,null,null,null,null,null,"ACT"]
["Agriculture/Aquaculture",4,null,"Loan",3,null,"Another named capital provider co-invested","E",5,null,"Domestic other",4,null,{"$f":"N4+1","v":2019},null,"Acrux Limited",72082001152,"082001152",145,2,7,null,null,null,null,null,null,null,null,null,null,null,null,null,null,null,null,null,null,null,null,null,null,null,"NSW",null,"A","Agriculture, Forestry and Fishing","A - Agriculture, Forestry and Fishing",{"$f":"SUBSTITUTE(SUBSTITUTE(SUBSTITUTE(AW5,\" \",\"\"),\",\",\"\"),\"-\",\"_\")","v":"A_AgricultureForestryandFishing"},null,"0111","Nursery Production (Under Cover)",{"$f":"AZ5&\" - \"&BA5","v":"0111 - Nursery Production (Under Cover)"}]
["Biotechnology, Pharmaceuticals and Health",5,null,"Loan and Pre-Owned shares",11,null,"Co-invest with another PDF","A",1,null,"Domestic super fund",3,null,{"$f":"N5+1","v":2020},null,"Australian Biomedical Fund No. 4 Limited",48117429795,"117429795",270,16,7,null,null,null,null,null,null,null,null,null,null,null,null,null,null,null,null,null,null,null,null,null,null,null,"NT",null,"B","Mining","B - Mining",{"$f":"SUBSTITUTE(SUBSTITUTE(SUBSTITUTE(AW6,\" \",\"\"),\",\",\"\"),\"-\",\"_\")","v":"B_Mining"},null,"0112","Nursery Production (Outdoors)",{"$f":"AZ6&\" - \"&BA6","v":"0112 - Nursery Production (Outdoors)"}]
["Energy and Mining",3,null,"New Shares",1,null,"Co-invest with another PDF, and Invest at least $500,000","A and C",7,null,"Non-resident other",2,null,2021,null,"Authorised Investment Fund Limited",51068793322,"068793322",92,25,7,null,null,null,null,null,null,null,null,null,null,null,null,null,null,null,null,null,null,null,null,null,null,null,"QLD",null,"C","Manufacturing","C - Manufacturing","C_Manufacturing",null,"0113","Turf Growing","0113 - Turf Growing"]
["Energy and Mining, and Biotechnology",7,null,"New Shares and Loan",6,null,"Invest at least $500,000","C",3,null,"Non-resident super fund",1,null,2022,null,"Avodah Capital Pty Ltd",49080975702,"080975702",91,180,7,null,null,null,null,null,null,null,null,null,null,null,null,null,null,null,null,null,null,null,null,null,null,null,"SA",null,"D","Electricity, Gas, Water and Waste Services","D - Electricity, Gas, Water and Waste Services","D_ElectricityGasWaterandWasteServices",null,"0114","Floriculture Production (Under Cover)","0114 - Floriculture Production (Under Cover)"]
["IT, Media, Electronics and Communications",6,null,"New Shares and Non-transferrable options",5,null,"Invested 9% of Investee ASX listing","F",6,null,null,null,null,2023,null,"BTC Health",45091979172,"091979172",146,29,7,null,null,null,null,null,null,null,null,null,null,null,null,null,null,null,null,null,null,null,null,null,null,null,"TAS",null,"E","Construction","E - Construction","E_Construction",null,"0115","Floriculture Production (Outdoors)","0115 - Floriculture Production (Outdoors)"]
["Manufacturing and Transport",1,null,"New Shares and Non-transferrable options and Loan",8,null,"Other","D",4,null,null,null,null,null,null,"Chesapeake Capital Limited",80106213772,"106213772",249,36,7,null,null,null,null,null,null,null,null,null,null,null,null,null,null,null,null,null,null,null,null,null,null,null,"VIC",null,"F","Wholesale Trade","F - Wholesale Trade","F_WholesaleTrade",null,"0121","Mushroom Growing","0121 - Mushroom Growing"]
["Services",2,null,"New Shares and Pre-Owned shares",7,null,"Underwrite or sub-underwrite the capital raising and the commitment was at least 10%","B",2,null,null,null,null,null,null,"Efficient Energy Australia Limited",71078867446,"078867446",154,58,7,null,null,null,null,null,null,null,null,null,null,null,null,null,null,null,null,null,null,null,null,null,null,null,"WA",null,"G","Retail Trade","G - Retail Trade","G_RetailTrade",null,"0122","Vegetable Growing (Under Cover)","0122 - Vegetable Growing (Under Cover)"]
[null,null,null,"Non-transferrable options",2,null,null,null,null,null,null,null,null,"Binary",null,"Family Partners Equity Pty Ltd",80070674234,"070674234",87,70,7,null,null,null,null,null,null,null,null,null,null,null,null,null,null,null,null,null,null,null,null,null,null,null,"O/S",null,"H","Accommodation and Food Services","H - Accommodation and Food Services","H_AccommodationandFoodServices",null,"0123","Vegetable Growing (Outdoors)","0123 - Vegetable Growing (Outdoors)"]
[null,null,null,"Non-transferrable options and Loan",9,null,null,null,null,null,null,null,null,null,null,"Future Capital Development Fund Limited",70081825470,"081825470",263,78,7,null,null,null,null,null,null,null,null,null,null,null,null,null,null,null,null,null,null,null,null,null,null,null,null,null,"I","Transport, Postal and Warehousing","I - Transport, Postal and Warehousing","I_TransportPostalandWarehousing",null,"0131","Grape Growing","0131 - Grape Growing"]
[null,null,null,"Non-transferrable options and Pre-Owned shares",10,null,null,null,null,null,null,null,null,"Yes",null,"Generation Development Group Limited",90087334370,"087334370",138,12,7,null,null,null,null,null,null,null,null,null,null,null,null,null,null,null,null,null,null,null,null,null,null,null,null,null,"J","Information Media and Telecommunications","J - Information Media and Telecommunications","J_InformationMediaandTelecommunications",null,"0132","Kiwifruit Growing","0132 - Kiwifruit Growing"]
[null,null,null,"Pre-Owned shares",4,null,null,null,null,null,null,null,null,"No",null,"Growthtech International Pty Ltd",69065951091,"065951091",59,87,7,null,null,null,null,null,null,null,null,null,null,null,null,null,null,null,null,null,null,null,null,null,null,null,null,null,"K","Financial and Insurance Services","K - Financial and Insurance Services","K_FinancialandInsuranceServices",null,"0133","Berry Fruit Growing","0133 - Berry Fruit Growing"]
[null,null,null,null,null,null,null,null,null,null,null,null,null,null,null,"HealthNet Investments Pty Limited",52088674846,"088674846",134,91,7,null,null,null,null,null,null,null,null,null,null,null,null,null,null,null,null,null,null,null,null,null,null,null,null,null,"L","Rental, Hiring and Real Estate Services","L - Rental, Hiring and Real Estate Services","L_RentalHiringandRealEstateServices",null,"0134","Apple and Pear Growing","0134 - Apple and Pear Growing"]
[null,null,null,null,null,null,null,null,null,null,null,null,null,null,null,"Incubator Capital Limited",66091499357,"091499357",135,100,7,null,null,null,null,null,null,null,null,null,null,null,null,null,null,null,null,null,null,null,null,null,null,null,null,null,"M","Professional, Scientific and Technical Services","M - Professional, Scientific and Technical Services","M_ProfessionalScientificandTechnicalServices",null,"0135","Stone Fruit Growing","0135 - Stone Fruit Growing"]
[null,null,null,null,null,null,null,null,null,null,null,null,null,null,null,"Innovation Capital Limited",39086439107,"086439107",80,101,7,null,null,null,null,null,null,null,null,null,null,null,null,null,null,null,null,null,null,null,null,null,null,null,null,null,"N","Administrative and Support Services","N - Administrative and Support Services","N_AdministrativeandSupportServices",null,"0136","Citrus Fruit Growing","0136 - Citrus Fruit Growing"]
[null,null,null,null,null,null,null,null,null,null,null,null,null,null,null,"Kestrel Growth Companies Limited",57072468798,"072468798",82,108,7,null,null,null,null,null,null,null,null,null,null,null,null,null,null,null,null,null,null,null,null,null,null,null,null,null,"O","Public Administration and Safety","O - Public Administration and Safety","O_PublicAdministrationandSafety",null,"0137","Olive Growing","0137 - Olive Growing"]
[null,null,null,"Notification Type lookup",null,null,"Under 10 pct Investment display lookup",null,null,null,null,null,null,null,null,"Match Development Fund Pty Ltd",16122203641,"122203641",279,119,7,null,null,null,null,null,null,null,null,null,null,null,null,null,null,null,null,null,null,null,null,null,null,null,null,null,"P","Education and Training","P - Education and Training","P_EducationandTraining",null,"0139","Other Fruit and Tree Nut Growing","0139 - Other Fruit and Tree Nut Growing"]
[null,null,null,"notification_type",null,null,null,null,null,null,null,null,null,null,null,"MEC Resources Limited",44113900020,"113900020",268,121,7,null,null,null,null,null,null,null,null,null,null,null,null,null,null,null,null,null,null,null,null,null,null,null,null,null,"Q","Health Care and Social Assistance","Q - Health Care and Social Assistance","Q_HealthCareandSocialAssistance",null,"0141","Sheep Farming (Specialised)","0141 - Sheep Farming (Specialised)"]
[null,null,null,null,null,null,"Invest at least $500,000",null,null,null,null,null,null,null,null,"New Frugalitas Fund Limited",73099058250,"099058250",262,132,7,null,null,null,null,null,null,null,null,null,null,null,null,null,null,null,null,null,null,null,null,null,null,null,null,null,"R","Arts and Recreation Services","R - Arts and Recreation Services","R_ArtsandRecreationServices",null,"0142","Beef Cattle Farming (Specialised)","0142 - Beef Cattle Farming (Specialised)"]
[null,null,null,"Initial",null,null,"Co-invest with another PDF",null,null,null,null,null,null,null,null,"Origin Capital Limited",92079800196,"079800196",105,138,7,null,null,null,null,null,null,null,null,null,null,null,null,null,null,null,null,null,null,null,null,null,null,null,null,null,"S","Other Services","S - Other Services","S_OtherServices",null,"0143","Beef Cattle Feedlots (Specialised)","0143 - Beef Cattle Feedlots (Specialised)"]
[null,null,null,"Follow-on",null,null,"Co-invest with another PDF, and Invest at least $500,000",null,null,null,null,null,null,null,null,"Pacific Development Capital Limited",90088964112,"088964112",144,139,7,null,null,null,null,null,null,null,null,null,null,null,null,null,null,null,null,null,null,null,null,null,null,null,null,null,null,null,null,null,null,"0144","Sheep-Beef Cattle Farming","0144 - Sheep-Beef Cattle Farming"]
[null,null,null,null,null,null,"Underwrite or sub-underwrite the capital raising and the commitment was at least 10%",null,null,null,null,null,null,null,null,"Phoenix Development Fund Limited",36094922602,"094922602",195,146,7,null,null,null,null,null,null,null,null,null,null,null,null,null,null,null,null,null,null,null,null,null,null,null,null,null,null,null,null,null,null,"0145","Grain-Sheep or Grain-Beef Cattle Farming","0145 - Grain-Sheep or Grain-Beef Cattle Farming"]
[null,null,null,null,null,null,"Other",null,null,null,null,null,null,null,null,"Pioneer Development Fund (Aust) Limited (The)",81103118761,"103118761",244,149,7,null,null,null,null,null,null,null,null,null,null,null,null,null,null,null,null,null,null,null,null,null,null,null,null,null,null,null,null,null,null,"0146","Rice Growing","0146 - Rice Growing"]
[null,null,null,null,null,null,null,null,null,null,null,null,null,null,null,"SeedX Ventures Limited",95108702101,"108702101",250,38,7,null,null,null,null,null,null,null,null,null,null,null,null,null,null,null,null,null,null,null,null,null,null,null,null,null,null,null,null,null,null,"0149","Other Grain Growing","0149 - Other Grain Growing"]
[null,null,null,null,null,null,null,null,null,null,null,null,null,null,null,"Strategic Elements Limited",47122437503,"122437503",282,176,7]
[null,null,null,null,null,null,null,null,null,null,null,null,null,null,null,"Technology Development Investment Limited",94063379064,"063379064",90,179,7,null,null,null,null,null,null,null,null,null,null,null,null,null,null,null,null,null,null,null,null,null,null,null,null,null,null,null,null,null,null,"0151","Sugar Cane Growing","0151 - Sugar Cane Growing"]
[null,null,null,null,null,null,null,null,null,null,null,null,null,null,null,null,null,null,null,null,null,null,null,null,null,null,null,null,null,null,null,null,null,null,null,null,null,null,null,null,null,null,null,null,null,null,null,null,null,null,null,"0152","Cotton Growing","0152 - Cotton Growing"]
[null,null,null,null,null,null,null,null,null,null,null,null,null,null,null,null,null,null,null,null,null,null,null,null,null,null,null,null,null,null,null,null,null,null,null,null,null,null,null,null,null,null,null,null,null,null,null,null,null,null,null,"0159","Other Crop Growing n.e.c.","0159 - Other Crop Growing n.e.c."]
[null,null,null,null,null,null,null,null,null,null,null,null,null,null,null,null,null,null,null,null,null,null,null,null,null,null,null,null,null,null,null,null,null,null,null,null,null,null,null,null,null,null,null,null,null,null,null,null,null,null,null,"0160","Dairy Cattle Farming","0160 - Dairy Cattle Farming"]
[null,null,null,null,null,null,null,null,null,null,null,null,null,null,null,null,null,null,null,null,null,null,null,null,null,null,null,null,null,null,null,null,null,null,null,null,null,null,null,null,null,null,null,null,null,null,null,null,null,null,null,"0171","Poultry Farming (Meat)","0171 - Poultry Farming (Meat)"]
[null,null,null,null,null,null,null,null,null,null,null,null,null,null,null,null,null,null,null,null,null,null,null,null,null,null,null,null,null,null,null,null,null,null,null,null,null,null,null,null,null,null,null,null,null,null,null,null,null,null,null,"0172","Poultry Farming (Eggs)","0172 - Poultry Farming (Eggs)"]
[null,null,null,null,null,null,null,null,null,null,null,null,null,null,null,null,null,null,null,null,null,null,null,null,null,null,null,null,null,null,null,null,null,null,null,null,null,null,null,null,null,null,null,null,null,null,null,null,null,null,null,"0180","Deer Farming","0180 - Deer Farming"]
[null,null,null,null,null,null,null,null,null,null,null,null,null,null,null,null,null,null,null,null,null,null,null,null,null,null,null,null,null,null,null,null,null,null,null,null,null,null,null,null,null,null,null,null,null,null,null,null,null,null,null,"0191","Horse Farming","0191 - Horse Farming"]
[null,null,null,null,null,null,null,null,null,null,null,null,null,null,null,null,null,null,null,null,null,null,null,null,null,null,null,null,null,null,null,null,null,null,null,null,null,null,null,null,null,null,null,null,null,null,null,null,null,null,null,"0192","Pig Farming","0192 - Pig Farming"]
[null,null,null,null,null,null,null,null,null,null,null,null,null,null,null,null,null,null,null,null,null,null,null,null,null,null,null,null,null,null,null,null,null,null,null,null,null,null,null,null,null,null,null,null,null,null,null,null,null,null,null,"0193","Beekeeping","0193 - Beekeeping"]
[null,null,null,null,null,null,null,null,null,null,null,null,null,null,null,null,null,null,null,null,null,null,null,null,null,null,null,null,null,null,null,null,null,null,null,null,null,null,null,null,null,null,null,null,null,null,null,null,null,null,null,"0199","Other Livestock Farming n.e.c.","0199 - Other Livestock Farming n.e.c."]
[null,null,null,null,null,null,null,null,null,null,null,null,null,null,null,null,null,null,null,null,null,null,null,null,null,null,null,null,null,null,null,null,null,null,null,null,null,null,null,null,null,null,null,null,null,null,null,null,null,null,null,"0201","Offshore Longline and Rack Aquaculture","0201 - Offshore Longline and Rack Aquaculture"]
[null,null,null,null,null,null,null,null,null,null,null,null,null,null,null,null,null,null,null,null,null,null,null,null,null,null,null,null,null,null,null,null,null,null,null,null,null,null,null,null,null,null,null,null,null,null,null,null,null,null,null,"0202","Offshore Caged Aquaculture","0202 - Offshore Caged Aquaculture"]
[null,null,null,null,null,null,null,null,null,null,null,null,null,null,null,null,null,null,null,null,null,null,null,null,null,null,null,null,null,null,null,null,null,null,null,null,null,null,null,null,null,null,null,null,null,null,null,null,null,null,null,"0203","Onshore Aquaculture","0203 - Onshore Aquaculture"]
[null,null,null,null,null,null,null,null,null,null,null,null,null,null,null,null,null,null,null,null,null,null,null,null,null,null,null,null,null,null,null,null,null,null,null,null,null,null,null,null,null,null,null,null,null,null,null,null,null,null,null,"0301","Forestry","0301 - Forestry"]
[null,null,null,null,null,null,null,null,null,null,null,null,null,null,null,null,null,null,null,null,null,null,null,null,null,null,null,null,null,null,null,null,null,null,null,null,null,null,null,null,null,null,null,null,null,null,null,null,null,null,null,"0302","Logging","0302 - Logging"]
[null,null,null,null,null,null,null,null,null,null,null,null,null,null,null,null,null,null,null,null,null,null,null,null,null,null,null,null,null,null,null,null,null,null,null,null,null,null,null,null,null,null,null,null,null,null,null,null,null,null,null,"0411","Rock Lobster and Crab Potting","0411 - Rock Lobster and Crab Potting"]
[null,null,null,null,null,null,null,null,null,null,null,null,null,null,null,null,null,null,null,null,null,null,null,null,null,null,null,null,null,null,null,null,null,null,null,null,null,null,null,null,null,null,null,null,null,null,null,null,null,null,null,"0412","Prawn Fishing","0412 - Prawn Fishing"]
[null,null,null,null,null,null,null,null,null,null,null,null,null,null,null,null,null,null,null,null,null,null,null,null,null,null,null,null,null,null,null,null,null,null,null,null,null,null,null,null,null,null,null,null,null,null,null,null,null,null,null,"0413","Line Fishing","0413 - Line Fishing"]
[null,null,null,null,null,null,null,null,null,null,null,null,null,null,null,null,null,null,null,null,null,null,null,null,null,null,null,null,null,null,null,null,null,null,null,null,null,null,null,null,null,null,null,null,null,null,null,null,null,null,null,"0414","Fish Trawling, Seining and Netting","0414 - Fish Trawling, Seining and Netting"]
[null,null,null,null,null,null,null,null,null,null,null,null,null,null,null,null,null,null,null,null,null,null,null,null,null,null,null,null,null,null,null,null,null,null,null,null,null,null,null,null,null,null,null,null,null,null,null,null,null,null,null,"0419","Other Fishing","0419 - Other Fishing"]
[null,null,null,null,null,null,null,null,null,null,null,null,null,null,null,null,null,null,null,null,null,null,null,null,null,null,null,null,null,null,null,null,null,null,null,null,null,null,null,null,null,null,null,null,null,null,null,null,null,null,null,"0420","Hunting and Trapping","0420 - Hunting and Trapping"]
[null,null,null,null,null,null,null,null,null,null,null,null,null,null,null,null,null,null,null,null,null,null,null,null,null,null,null,null,null,null,null,null,null,null,null,null,null,null,null,null,null,null,null,null,null,null,null,null,null,null,null,"0510","Forestry Support Services","0510 - Forestry Support Services"]
[null,null,null,null,null,null,null,null,null,null,null,null,null,null,null,null,null,null,null,null,null,null,null,null,null,null,null,null,null,null,null,null,null,null,null,null,null,null,null,null,null,null,null,null,null,null,null,null,null,null,null,"0521","Cotton Ginning","0521 - Cotton Ginning"]
[null,null,null,null,null,null,null,null,null,null,null,null,null,null,null,null,null,null,null,null,null,null,null,null,null,null,null,null,null,null,null,null,null,null,null,null,null,null,null,null,null,null,null,null,null,null,null,null,null,null,null,"0522","Shearing Services","0522 - Shearing Services"]
[null,null,null,null,null,null,null,null,null,null,null,null,null,null,null,null,null,null,null,null,null,null,null,null,null,null,null,null,null,null,null,null,null,null,null,null,null,null,null,null,null,null,null,null,null,null,null,null,null,null,null,"0529","Other Agriculture and Fishing Support Services","0529 - Other Agriculture and Fishing Support Services"]
[null,null,null,null,null,null,null,null,null,null,null,null,null,null,null,null,null,null,null,null,null,null,null,null,null,null,null,null,null,null,null,null,null,null,null,null,null,null,null,null,null,null,null,null,null,null,null,null,null,null,null,"0600","Coal Mining","0600 - Coal Mining"]
[null,null,null,null,null,null,null,null,null,null,null,null,null,null,null,null,null,null,null,null,null,null,null,null,null,null,null,null,null,null,null,null,null,null,null,null,null,null,null,null,null,null,null,null,null,null,null,null,null,null,null,"0700","Oil and Gas Extraction","0700 - Oil and Gas Extraction"]
[null,null,null,null,null,null,null,null,null,null,null,null,null,null,null,null,null,null,null,null,null,null,null,null,null,null,null,null,null,null,null,null,null,null,null,null,null,null,null,null,null,null,null,null,null,null,null,null,null,null,null,"0801","Iron Ore Mining","0801 - Iron Ore Mining"]
[null,null,null,null,null,null,null,null,null,null,null,null,null,null,null,null,null,null,null,null,null,null,null,null,null,null,null,null,null,null,null,null,null,null,null,null,null,null,null,null,null,null,null,null,null,null,null,null,null,null,null,"0802","Bauxite Mining","0802 - Bauxite Mining"]
[null,null,null,null,null,null,null,null,null,null,null,null,null,null,null,null,null,null,null,null,null,null,null,null,null,null,null,null,null,null,null,null,null,null,null,null,null,null,null,null,null,null,null,null,null,null,null,null,null,null,null,"0803","Copper Ore Mining","0803 - Copper Ore Mining"]
[null,null,null,null,null,null,null,null,null,null,null,null,null,null,null,null,null,null,null,null,null,null,null,null,null,null,null,null,null,null,null,null,null,null,null,null,null,null,null,null,null,null,null,null,null,null,null,null,null,null,null,"0804","Gold Ore Mining","0804 - Gold Ore Mining"]
[null,null,null,null,null,null,null,null,null,null,null,null,null,null,null,null,null,null,null,null,null,null,null,null,null,null,null,null,null,null,null,null,null,null,null,null,null,null,null,null,null,null,null,null,null,null,null,null,null,null,null,"0805","Mineral Sand Mining","0805 - Mineral Sand Mining"]
[null,null,null,null,null,null,null,null,null,null,null,null,null,null,null,null,null,null,null,null,null,null,null,null,null,null,null,null,null,null,null,null,null,null,null,null,null,null,null,null,null,null,null,null,null,null,null,null,null,null,null,"0806","Nickel Ore Mining","0806 - Nickel Ore Mining"]
[null,null,null,null,null,null,null,null,null,null,null,null,null,null,null,null,null,null,null,null,null,null,null,null,null,null,null,null,null,null,null,null,null,null,null,null,null,null,null,null,null,null,null,null,null,null,null,null,null,null,null,"0807","Silver-Lead-Zinc Ore Mining","0807 - Silver-Lead-Zinc Ore Mining"]
[null,null,null,null,null,null,null,null,null,null,null,null,null,null,null,null,null,null,null,null,null,null,null,null,null,null,null,null,null,null,null,null,null,null,null,null,null,null,null,null,null,null,null,null,null,null,null,null,null,null,null,"0809","Other Metal Ore Mining","0809 - Other Metal Ore Mining"]
[null,null,null,null,null,null,null,null,null,null,null,null,null,null,null,null,null,null,null,null,null,null,null,null,null,null,null,null,null,null,null,null,null,null,null,null,null,null,null,null,null,null,null,null,null,null,null,null,null,null,null,"0911","Gravel and Sand Quarrying","0911 - Gravel and Sand Quarrying"]
[null,null,null,null,null,null,null,null,null,null,null,null,null,null,null,null,null,null,null,null,null,null,null,null,null,null,null,null,null,null,null,null,null,null,null,null,null,null,null,null,null,null,null,null,null,null,null,null,null,null,null,"0919","Other Construction Material Mining","0919 - Other Construction Material Mining"]
[null,null,null,null,null,null,null,null,null,null,null,null,null,null,null,null,null,null,null,null,null,null,null,null,null,null,null,null,null,null,null,null,null,null,null,null,null,null,null,null,null,null,null,null,null,null,null,null,null,null,null,"0990","Other Non-Metallic Mineral Mining and Quarrying","0990 - Other Non-Metallic Mineral Mining and Quarrying"]
[null,null,null,null,null,null,null,null,null,null,null,null,null,null,null,null,null,null,null,null,null,null,null,null,null,null,null,null,null,null,null,null,null,null,null,null,null,null,null,null,null,null,null,null,null,null,null,null,null,null,null,"1011","Petroleum Exploration","1011 - Petroleum Exploration"]
[null,null,null,null,null,null,null,null,null,null,null,null,null,null,null,null,null,null,null,null,null,null,null,null,null,null,null,null,null,null,null,null,null,null,null,null,null,null,null,null,null,null,null,null,null,null,null,null,null,null,null,"1012","Mineral Exploration","1012 - Mineral Exploration"]
[null,null,null,null,null,null,null,null,null,null,null,null,null,null,null,null,null,null,null,null,null,null,null,null,null,null,null,null,null,null,null,null,null,null,null,null,null,null,null,null,null,null,null,null,null,null,null,null,null,null,null,"1090","Other Mining Support Services","1090 - Other Mining Support Services"]
[null,null,null,null,null,null,null,null,null,null,null,null,null,null,null,null,null,null,null,null,null,null,null,null,null,null,null,null,null,null,null,null,null,null,null,null,null,null,null,null,null,null,null,null,null,null,null,null,null,null,null,"1111","Meat Processing",{"$f":"AZ71&\" - \"&BA71","v":"1111 - Meat Processing"}]
[null,null,null,null,null,null,null,null,null,null,null,null,null,null,null,null,null,null,null,null,null,null,null,null,null,null,null,null,null,null,null,null,null,null,null,null,null,null,null,null,null,null,null,null,null,null,null,null,null,null,null,"1112","Poultry Processing","1112 - Poultry Processing"]
[null,null,null,null,null,null,null,null,null,null,null,null,null,null,null,null,null,null,null,null,null,null,null,null,null,null,null,null,null,null,null,null,null,null,null,null,null,null,null,null,null,null,null,null,null,null,null,null,null,null,null,"1113","Cured Meat and Smallgoods Manufacturing","1113 - Cured Meat and Smallgoods Manufacturing"]
[null,null,null,null,null,null,null,null,null,null,null,null,null,null,null,null,null,null,null,null,null,null,null,null,null,null,null,null,null,null,null,null,null,null,null,null,null,null,null,null,null,null,null,null,null,null,null,null,null,null,null,"1120","Seafood Processing","1120 - Seafood Processing"]
[null,null,null,null,null,null,null,null,null,null,null,null,null,null,null,null,null,null,null,null,null,null,null,null,null,null,null,null,null,null,null,null,null,null,null,null,null,null,null,null,null,null,null,null,null,null,null,null,null,null,null,"1131","Milk and Cream Processing","1131 - Milk and Cream Processing"]
[null,null,null,null,null,null,null,null,null,null,null,null,null,null,null,null,null,null,null,null,null,null,null,null,null,null,null,null,null,null,null,null,null,null,null,null,null,null,null,null,null,null,null,null,null,null,null,null,null,null,null,"1132","Ice Cream Manufacturing","1132 - Ice Cream Manufacturing"]
[null,null,null,null,null,null,null,null,null,null,null,null,null,null,null,null,null,null,null,null,null,null,null,null,null,null,null,null,null,null,null,null,null,null,null,null,null,null,null,null,null,null,null,null,null,null,null,null,null,null,null,"1133","Cheese and Other Dairy Product Manufacturing","1133 - Cheese and Other Dairy Product Manufacturing"]
[null,null,null,null,null,null,null,null,null,null,null,null,null,null,null,null,null,null,null,null,null,null,null,null,null,null,null,null,null,null,null,null,null,null,null,null,null,null,null,null,null,null,null,null,null,null,null,null,null,null,null,"1140","Fruit and Vegetable Processing","1140 - Fruit and Vegetable Processing"]
[null,null,null,null,null,null,null,null,null,null,null,null,null,null,null,null,null,null,null,null,null,null,null,null,null,null,null,null,null,null,null,null,null,null,null,null,null,null,null,null,null,null,null,null,null,null,null,null,null,null,null,"1150","Oil and Fat Manufacturing","1150 - Oil and Fat Manufacturing"]
[null,null,null,null,null,null,null,null,null,null,null,null,null,null,null,null,null,null,null,null,null,null,null,null,null,null,null,null,null,null,null,null,null,null,null,null,null,null,null,null,null,null,null,null,null,null,null,null,null,null,null,"1161","Grain Mill Product Manufacturing","1161 - Grain Mill Product Manufacturing"]
[null,null,null,null,null,null,null,null,null,null,null,null,null,null,null,null,null,null,null,null,null,null,null,null,null,null,null,null,null,null,null,null,null,null,null,null,null,null,null,null,null,null,null,null,null,null,null,null,null,null,null,"1162","Cereal, Pasta and Baking Mix Manufacturing","1162 - Cereal, Pasta and Baking Mix Manufacturing"]
[null,null,null,null,null,null,null,null,null,null,null,null,null,null,null,null,null,null,null,null,null,null,null,null,null,null,null,null,null,null,null,null,null,null,null,null,null,null,null,null,null,null,null,null,null,null,null,null,null,null,null,"1171","Bread Manufacturing (Factory based)","1171 - Bread Manufacturing (Factory based)"]
[null,null,null,null,null,null,null,null,null,null,null,null,null,null,null,null,null,null,null,null,null,null,null,null,null,null,null,null,null,null,null,null,null,null,null,null,null,null,null,null,null,null,null,null,null,null,null,null,null,null,null,"1172","Cake and Pastry Manufacturing (Factory based)","1172 - Cake and Pastry Manufacturing (Factory based)"]
[null,null,null,null,null,null,null,null,null,null,null,null,null,null,null,null,null,null,null,null,null,null,null,null,null,null,null,null,null,null,null,null,null,null,null,null,null,null,null,null,null,null,null,null,null,null,null,null,null,null,null,"1173","Biscuit Manufacturing (Factory based)","1173 - Biscuit Manufacturing (Factory based)"]
[null,null,null,null,null,null,null,null,null,null,null,null,null,null,null,null,null,null,null,null,null,null,null,null,null,null,null,null,null,null,null,null,null,null,null,null,null,null,null,null,null,null,null,null,null,null,null,null,null,null,null,"1174","Bakery Product Manufacturing (Non-factory based)","1174 - Bakery Product Manufacturing (Non-factory based)"]
[null,null,null,null,null,null,null,null,null,null,null,null,null,null,null,null,null,null,null,null,null,null,null,null,null,null,null,null,null,null,null,null,null,null,null,null,null,null,null,null,null,null,null,null,null,null,null,null,null,null,null,"1181","Sugar Manufacturing","1181 - Sugar Manufacturing"]
[null,null,null,null,null,null,null,null,null,null,null,null,null,null,null,null,null,null,null,null,null,null,null,null,null,null,null,null,null,null,null,null,null,null,null,null,null,null,null,null,null,null,null,null,null,null,null,null,null,null,null,"1182","Confectionery Manufacturing","1182 - Confectionery Manufacturing"]
[null,null,null,null,null,null,null,null,null,null,null,null,null,null,null,null,null,null,null,null,null,null,null,null,null,null,null,null,null,null,null,null,null,null,null,null,null,null,null,null,null,null,null,null,null,null,null,null,null,null,null,"1191","Potato, Corn and Other Crisp Manufacturing","1191 - Potato, Corn and Other Crisp Manufacturing"]
[null,null,null,null,null,null,null,null,null,null,null,null,null,null,null,null,null,null,null,null,null,null,null,null,null,null,null,null,null,null,null,null,null,null,null,null,null,null,null,null,null,null,null,null,null,null,null,null,null,null,null,"1192","Prepared Animal and Bird Feed Manufacturing","1192 - Prepared Animal and Bird Feed Manufacturing"]
[null,null,null,null,null,null,null,null,null,null,null,null,null,null,null,null,null,null,null,null,null,null,null,null,null,null,null,null,null,null,null,null,null,null,null,null,null,null,null,null,null,null,null,null,null,null,null,null,null,null,null,"1199","Other Food Product Manufacturing n.e.c.","1199 - Other Food Product Manufacturing n.e.c."]
[null,null,null,null,null,null,null,null,null,null,null,null,null,null,null,null,null,null,null,null,null,null,null,null,null,null,null,null,null,null,null,null,null,null,null,null,null,null,null,null,null,null,null,null,null,null,null,null,null,null,null,"1211","Soft Drink, Cordial and Syrup Manufacturing","1211 - Soft Drink, Cordial and Syrup Manufacturing"]
[null,null,null,null,null,null,null,null,null,null,null,null,null,null,null,null,null,null,null,null,null,null,null,null,null,null,null,null,null,null,null,null,null,null,null,null,null,null,null,null,null,null,null,null,null,null,null,null,null,null,null,"1212","Beer Manufacturing","1212 - Beer Manufacturing"]
[null,null,null,null,null,null,null,null,null,null,null,null,null,null,null,null,null,null,null,null,null,null,null,null,null,null,null,null,null,null,null,null,null,null,null,null,null,null,null,null,null,null,null,null,null,null,null,null,null,null,null,"1213","Spirit Manufacturing","1213 - Spirit Manufacturing"]
[null,null,null,null,null,null,null,null,null,null,null,null,null,null,null,null,null,null,null,null,null,null,null,null,null,null,null,null,null,null,null,null,null,null,null,null,null,null,null,null,null,null,null,null,null,null,null,null,null,null,null,"1214","Wine and Other Alcoholic Beverage Manufacturing","1214 - Wine and Other Alcoholic Beverage Manufacturing"]
[null,null,null,null,null,null,null,null,null,null,null,null,null,null,null,null,null,null,null,null,null,null,null,null,null,null,null,null,null,null,null,null,null,null,null,null,null,null,null,null,null,null,null,null,null,null,null,null,null,null,null,"1220","Cigarette and Tobacco Product Manufacturing","1220 - Cigarette and Tobacco Product Manufacturing"]
[null,null,null,null,null,null,null,null,null,null,null,null,null,null,null,null,null,null,null,null,null,null,null,null,null,null,null,null,null,null,null,null,null,null,null,null,null,null,null,null,null,null,null,null,null,null,null,null,null,null,null,"1311","Wool Scouring","1311 - Wool Scouring"]
[null,null,null,null,null,null,null,null,null,null,null,null,null,null,null,null,null,null,null,null,null,null,null,null,null,null,null,null,null,null,null,null,null,null,null,null,null,null,null,null,null,null,null,null,null,null,null,null,null,null,null,"1312","Natural Textile Manufacturing","1312 - Natural Textile Manufacturing"]
[null,null,null,null,null,null,null,null,null,null,null,null,null,null,null,null,null,null,null,null,null,null,null,null,null,null,null,null,null,null,null,null,null,null,null,null,null,null,null,null,null,null,null,null,null,null,null,null,null,null,null,"1313","Synthetic Textile Manufacturing","1313 - Synthetic Textile Manufacturing"]
[null,null,null,null,null,null,null,null,null,null,null,null,null,null,null,null,null,null,null,null,null,null,null,null,null,null,null,null,null,null,null,null,null,null,null,null,null,null,null,null,null,null,null,null,null,null,null,null,null,null,null,"1320","Leather Tanning, Fur Dressing and Leather Product Manufacturing","1320 - Leather Tanning, Fur Dressing and Leather Product Manufacturing"]
[null,null,null,null,null,null,null,null,null,null,null,null,null,null,null,null,null,null,null,null,null,null,null,null,null,null,null,null,null,null,null,null,null,null,null,null,null,null,null,null,null,null,null,null,null,null,null,null,null,null,null,"1331","Textile Floor Covering Manufacturing","1331 - Textile Floor Covering Manufacturing"]
[null,null,null,null,null,null,null,null,null,null,null,null,null,null,null,null,null,null,null,null,null,null,null,null,null,null,null,null,null,null,null,null,null,null,null,null,null,null,null,null,null,null,null,null,null,null,null,null,null,null,null,"1332","Rope, Cordage and Twine Manufacturing","1332 - Rope, Cordage and Twine Manufacturing"]
[null,null,null,null,null,null,null,null,null,null,null,null,null,null,null,null,null,null,null,null,null,null,null,null,null,null,null,null,null,null,null,null,null,null,null,null,null,null,null,null,null,null,null,null,null,null,null,null,null,null,null,"1333","Cut and Sewn Textile Product Manufacturing","1333 - Cut and Sewn Textile Product Manufacturing"]
[null,null,null,null,null,null,null,null,null,null,null,null,null,null,null,null,null,null,null,null,null,null,null,null,null,null,null,null,null,null,null,null,null,null,null,null,null,null,null,null,null,null,null,null,null,null,null,null,null,null,null,"1334","Textile Finishing and Other Textile Product Manufacturing","1334 - Textile Finishing and Other Textile Product Manufacturing"]
[null,null,null,null,null,null,null,null,null,null,null,null,null,null,null,null,null,null,null,null,null,null,null,null,null,null,null,null,null,null,null,null,null,null,null,null,null,null,null,null,null,null,null,null,null,null,null,null,null,null,null,"1340","Knitted Product Manufacturing","1340 - Knitted Product Manufacturing"]
[null,null,null,null,null,null,null,null,null,null,null,null,null,null,null,null,null,null,null,null,null,null,null,null,null,null,null,null,null,null,null,null,null,null,null,null,null,null,null,null,null,null,null,null,null,null,null,null,null,null,null,"1351","Clothing Manufacturing","1351 - Clothing Manufacturing"]
[null,null,null,null,null,null,null,null,null,null,null,null,null,null,null,null,null,null,null,null,null,null,null,null,null,null,null,null,null,null,null,null,null,null,null,null,null,null,null,null,null,null,null,null,null,null,null,null,null,null,null,"1352","Footwear Manufacturing","1352 - Footwear Manufacturing"]
[null,null,null,null,null,null,null,null,null,null,null,null,null,null,null,null,null,null,null,null,null,null,null,null,null,null,null,null,null,null,null,null,null,null,null,null,null,null,null,null,null,null,null,null,null,null,null,null,null,null,null,"1411","Log Sawmilling","1411 - Log Sawmilling"]
[null,null,null,null,null,null,null,null,null,null,null,null,null,null,null,null,null,null,null,null,null,null,null,null,null,null,null,null,null,null,null,null,null,null,null,null,null,null,null,null,null,null,null,null,null,null,null,null,null,null,null,"1412","Wood Chipping","1412 - Wood Chipping"]
[null,null,null,null,null,null,null,null,null,null,null,null,null,null,null,null,null,null,null,null,null,null,null,null,null,null,null,null,null,null,null,null,null,null,null,null,null,null,null,null,null,null,null,null,null,null,null,null,null,null,null,"1413","Timber Resawing and Dressing","1413 - Timber Resawing and Dressing"]
[null,null,null,null,null,null,null,null,null,null,null,null,null,null,null,null,null,null,null,null,null,null,null,null,null,null,null,null,null,null,null,null,null,null,null,null,null,null,null,null,null,null,null,null,null,null,null,null,null,null,null,"1491","Prefabricated Wooden Building Manufacturing","1491 - Prefabricated Wooden Building Manufacturing"]
[null,null,null,null,null,null,null,null,null,null,null,null,null,null,null,null,null,null,null,null,null,null,null,null,null,null,null,null,null,null,null,null,null,null,null,null,null,null,null,null,null,null,null,null,null,null,null,null,null,null,null,"1492","Wooden Structural Fitting and Component Manufacturing","1492 - Wooden Structural Fitting and Component Manufacturing"]
[null,null,null,null,null,null,null,null,null,null,null,null,null,null,null,null,null,null,null,null,null,null,null,null,null,null,null,null,null,null,null,null,null,null,null,null,null,null,null,null,null,null,null,null,null,null,null,null,null,null,null,"1493","Veneer and Plywood Manufacturing","1493 - Veneer and Plywood Manufacturing"]
[null,null,null,null,null,null,null,null,null,null,null,null,null,null,null,null,null,null,null,null,null,null,null,null,null,null,null,null,null,null,null,null,null,null,null,null,null,null,null,null,null,null,null,null,null,null,null,null,null,null,null,"1494","Reconstituted Wood Product Manufacturing","1494 - Reconstituted Wood Product Manufacturing"]
[null,null,null,null,null,null,null,null,null,null,null,null,null,null,null,null,null,null,null,null,null,null,null,null,null,null,null,null,null,null,null,null,null,null,null,null,null,null,null,null,null,null,null,null,null,null,null,null,null,null,null,"1499","Other Wood Product Manufacturing n.e.c.","1499 - Other Wood Product Manufacturing n.e.c."]
[null,null,null,null,null,null,null,null,null,null,null,null,null,null,null,null,null,null,null,null,null,null,null,null,null,null,null,null,null,null,null,null,null,null,null,null,null,null,null,null,null,null,null,null,null,null,null,null,null,null,null,"1510","Pulp, Paper and Paperboard Manufacturing","1510 - Pulp, Paper and Paperboard Manufacturing"]
[null,null,null,null,null,null,null,null,null,null,null,null,null,null,null,null,null,null,null,null,null,null,null,null,null,null,null,null,null,null,null,null,null,null,null,null,null,null,null,null,null,null,null,null,null,null,null,null,null,null,null,"1521","Corrugated Paperboard and Paperboard Container Manufacturing","1521 - Corrugated Paperboard and Paperboard Container Manufacturing"]
[null,null,null,null,null,null,null,null,null,null,null,null,null,null,null,null,null,null,null,null,null,null,null,null,null,null,null,null,null,null,null,null,null,null,null,null,null,null,null,null,null,null,null,null,null,null,null,null,null,null,null,"1522","Paper Bag Manufacturing","1522 - Paper Bag Manufacturing"]
[null,null,null,null,null,null,null,null,null,null,null,null,null,null,null,null,null,null,null,null,null,null,null,null,null,null,null,null,null,null,null,null,null,null,null,null,null,null,null,null,null,null,null,null,null,null,null,null,null,null,null,"1523","Paper Stationery Manufacturing","1523 - Paper Stationery Manufacturing"]
[null,null,null,null,null,null,null,null,null,null,null,null,null,null,null,null,null,null,null,null,null,null,null,null,null,null,null,null,null,null,null,null,null,null,null,null,null,null,null,null,null,null,null,null,null,null,null,null,null,null,null,"1524","Sanitary Paper Product Manufacturing","1524 - Sanitary Paper Product Manufacturing"]
[null,null,null,null,null,null,null,null,null,null,null,null,null,null,null,null,null,null,null,null,null,null,null,null,null,null,null,null,null,null,null,null,null,null,null,null,null,null,null,null,null,null,null,null,null,null,null,null,null,null,null,"1529","Other Converted Paper Product Manufacturing","1529 - Other Converted Paper Product Manufacturing"]
[null,null,null,null,null,null,null,null,null,null,null,null,null,null,null,null,null,null,null,null,null,null,null,null,null,null,null,null,null,null,null,null,null,null,null,null,null,null,null,null,null,null,null,null,null,null,null,null,null,null,null,"1611","Printing","1611 - Printing"]
[null,null,null,null,null,null,null,null,null,null,null,null,null,null,null,null,null,null,null,null,null,null,null,null,null,null,null,null,null,null,null,null,null,null,null,null,null,null,null,null,null,null,null,null,null,null,null,null,null,null,null,"1612","Printing Support Services","1612 - Printing Support Services"]
[null,null,null,null,null,null,null,null,null,null,null,null,null,null,null,null,null,null,null,null,null,null,null,null,null,null,null,null,null,null,null,null,null,null,null,null,null,null,null,null,null,null,null,null,null,null,null,null,null,null,null,"1620","Reproduction of Recorded Media","1620 - Reproduction of Recorded Media"]
[null,null,null,null,null,null,null,null,null,null,null,null,null,null,null,null,null,null,null,null,null,null,null,null,null,null,null,null,null,null,null,null,null,null,null,null,null,null,null,null,null,null,null,null,null,null,null,null,null,null,null,"1701","Petroleum Refining and Petroleum Fuel Manufacturing","1701 - Petroleum Refining and Petroleum Fuel Manufacturing"]
[null,null,null,null,null,null,null,null,null,null,null,null,null,null,null,null,null,null,null,null,null,null,null,null,null,null,null,null,null,null,null,null,null,null,null,null,null,null,null,null,null,null,null,null,null,null,null,null,null,null,null,"1709","Other Petroleum and Coal Product Manufacturing","1709 - Other Petroleum and Coal Product Manufacturing"]
[null,null,null,null,null,null,null,null,null,null,null,null,null,null,null,null,null,null,null,null,null,null,null,null,null,null,null,null,null,null,null,null,null,null,null,null,null,null,null,null,null,null,null,null,null,null,null,null,null,null,null,"1811","Industrial Gas Manufacturing","1811 - Industrial Gas Manufacturing"]
[null,null,null,null,null,null,null,null,null,null,null,null,null,null,null,null,null,null,null,null,null,null,null,null,null,null,null,null,null,null,null,null,null,null,null,null,null,null,null,null,null,null,null,null,null,null,null,null,null,null,null,"1812","Basic Organic Chemical Manufacturing","1812 - Basic Organic Chemical Manufacturing"]
[null,null,null,null,null,null,null,null,null,null,null,null,null,null,null,null,null,null,null,null,null,null,null,null,null,null,null,null,null,null,null,null,null,null,null,null,null,null,null,null,null,null,null,null,null,null,null,null,null,null,null,"1813","Basic Inorganic Chemical Manufacturing","1813 - Basic Inorganic Chemical Manufacturing"]
[null,null,null,null,null,null,null,null,null,null,null,null,null,null,null,null,null,null,null,null,null,null,null,null,null,null,null,null,null,null,null,null,null,null,null,null,null,null,null,null,null,null,null,null,null,null,null,null,null,null,null,"1821","Synthetic Resin and Synthetic Rubber Manufacturing","1821 - Synthetic Resin and Synthetic Rubber Manufacturing"]
[null,null,null,null,null,null,null,null,null,null,null,null,null,null,null,null,null,null,null,null,null,null,null,null,null,null,null,null,null,null,null,null,null,null,null,null,null,null,null,null,null,null,null,null,null,null,null,null,null,null,null,"1829","Other Basic Polymer Manufacturing","1829 - Other Basic Polymer Manufacturing"]
[null,null,null,null,null,null,null,null,null,null,null,null,null,null,null,null,null,null,null,null,null,null,null,null,null,null,null,null,null,null,null,null,null,null,null,null,null,null,null,null,null,null,null,null,null,null,null,null,null,null,null,"1831","Fertiliser Manufacturing","1831 - Fertiliser Manufacturing"]
[null,null,null,null,null,null,null,null,null,null,null,null,null,null,null,null,null,null,null,null,null,null,null,null,null,null,null,null,null,null,null,null,null,null,null,null,null,null,null,null,null,null,null,null,null,null,null,null,null,null,null,"1832","Pesticide Manufacturing","1832 - Pesticide Manufacturing"]
[null,null,null,null,null,null,null,null,null,null,null,null,null,null,null,null,null,null,null,null,null,null,null,null,null,null,null,null,null,null,null,null,null,null,null,null,null,null,null,null,null,null,null,null,null,null,null,null,null,null,null,"1841","Human Pharmaceutical and Medicinal Product Manufacturing","1841 - Human Pharmaceutical and Medicinal Product Manufacturing"]
[null,null,null,null,null,null,null,null,null,null,null,null,null,null,null,null,null,null,null,null,null,null,null,null,null,null,null,null,null,null,null,null,null,null,null,null,null,null,null,null,null,null,null,null,null,null,null,null,null,null,null,"1842","Veterinary Pharmaceutical and Medicinal Product Manufacturing","1842 - Veterinary Pharmaceutical and Medicinal Product Manufacturing"]
[null,null,null,null,null,null,null,null,null,null,null,null,null,null,null,null,null,null,null,null,null,null,null,null,null,null,null,null,null,null,null,null,null,null,null,null,null,null,null,null,null,null,null,null,null,null,null,null,null,null,null,"1851","Cleaning Compound Manufacturing",{"$f":"AZ135&\" - \"&BA135","v":"1851 - Cleaning Compound Manufacturing"}]
[null,null,null,null,null,null,null,null,null,null,null,null,null,null,null,null,null,null,null,null,null,null,null,null,null,null,null,null,null,null,null,null,null,null,null,null,null,null,null,null,null,null,null,null,null,null,null,null,null,null,null,"1852","Cosmetic and Toiletry Preparation Manufacturing","1852 - Cosmetic and Toiletry Preparation Manufacturing"]
[null,null,null,null,null,null,null,null,null,null,null,null,null,null,null,null,null,null,null,null,null,null,null,null,null,null,null,null,null,null,null,null,null,null,null,null,null,null,null,null,null,null,null,null,null,null,null,null,null,null,null,"1891","Photographic Chemical Product Manufacturing","1891 - Photographic Chemical Product Manufacturing"]
[null,null,null,null,null,null,null,null,null,null,null,null,null,null,null,null,null,null,null,null,null,null,null,null,null,null,null,null,null,null,null,null,null,null,null,null,null,null,null,null,null,null,null,null,null,null,null,null,null,null,null,"1892","Explosive Manufacturing","1892 - Explosive Manufacturing"]
[null,null,null,null,null,null,null,null,null,null,null,null,null,null,null,null,null,null,null,null,null,null,null,null,null,null,null,null,null,null,null,null,null,null,null,null,null,null,null,null,null,null,null,null,null,null,null,null,null,null,null,"1899","Other Basic Chemical Product Manufacturing n.e.c.","1899 - Other Basic Chemical Product Manufacturing n.e.c."]
[null,null,null,null,null,null,null,null,null,null,null,null,null,null,null,null,null,null,null,null,null,null,null,null,null,null,null,null,null,null,null,null,null,null,null,null,null,null,null,null,null,null,null,null,null,null,null,null,null,null,null,"1911","Polymer Film and Sheet Packaging Material Manufacturing","1911 - Polymer Film and Sheet Packaging Material Manufacturing"]
[null,null,null,null,null,null,null,null,null,null,null,null,null,null,null,null,null,null,null,null,null,null,null,null,null,null,null,null,null,null,null,null,null,null,null,null,null,null,null,null,null,null,null,null,null,null,null,null,null,null,null,"1912","Rigid and Semi-Rigid Polymer Product Manufacturing","1912 - Rigid and Semi-Rigid Polymer Product Manufacturing"]
[null,null,null,null,null,null,null,null,null,null,null,null,null,null,null,null,null,null,null,null,null,null,null,null,null,null,null,null,null,null,null,null,null,null,null,null,null,null,null,null,null,null,null,null,null,null,null,null,null,null,null,"1913","Polymer Foam Product Manufacturing","1913 - Polymer Foam Product Manufacturing"]
[null,null,null,null,null,null,null,null,null,null,null,null,null,null,null,null,null,null,null,null,null,null,null,null,null,null,null,null,null,null,null,null,null,null,null,null,null,null,null,null,null,null,null,null,null,null,null,null,null,null,null,"1914","Tyre Manufacturing","1914 - Tyre Manufacturing"]
[null,null,null,null,null,null,null,null,null,null,null,null,null,null,null,null,null,null,null,null,null,null,null,null,null,null,null,null,null,null,null,null,null,null,null,null,null,null,null,null,null,null,null,null,null,null,null,null,null,null,null,"1915","Adhesive Manufacturing","1915 - Adhesive Manufacturing"]
[null,null,null,null,null,null,null,null,null,null,null,null,null,null,null,null,null,null,null,null,null,null,null,null,null,null,null,null,null,null,null,null,null,null,null,null,null,null,null,null,null,null,null,null,null,null,null,null,null,null,null,"1916","Paint and Coatings Manufacturing","1916 - Paint and Coatings Manufacturing"]
[null,null,null,null,null,null,null,null,null,null,null,null,null,null,null,null,null,null,null,null,null,null,null,null,null,null,null,null,null,null,null,null,null,null,null,null,null,null,null,null,null,null,null,null,null,null,null,null,null,null,null,"1919","Other Polymer Product Manufacturing","1919 - Other Polymer Product Manufacturing"]
[null,null,null,null,null,null,null,null,null,null,null,null,null,null,null,null,null,null,null,null,null,null,null,null,null,null,null,null,null,null,null,null,null,null,null,null,null,null,null,null,null,null,null,null,null,null,null,null,null,null,null,"1920","Natural Rubber Product Manufacturing","1920 - Natural Rubber Product Manufacturing"]
[null,null,null,null,null,null,null,null,null,null,null,null,null,null,null,null,null,null,null,null,null,null,null,null,null,null,null,null,null,null,null,null,null,null,null,null,null,null,null,null,null,null,null,null,null,null,null,null,null,null,null,"2010","Glass and Glass Product Manufacturing","2010 - Glass and Glass Product Manufacturing"]
[null,null,null,null,null,null,null,null,null,null,null,null,null,null,null,null,null,null,null,null,null,null,null,null,null,null,null,null,null,null,null,null,null,null,null,null,null,null,null,null,null,null,null,null,null,null,null,null,null,null,null,"2021","Clay Brick Manufacturing","2021 - Clay Brick Manufacturing"]
[null,null,null,null,null,null,null,null,null,null,null,null,null,null,null,null,null,null,null,null,null,null,null,null,null,null,null,null,null,null,null,null,null,null,null,null,null,null,null,null,null,null,null,null,null,null,null,null,null,null,null,"2029","Other Ceramic Product Manufacturing","2029 - Other Ceramic Product Manufacturing"]
[null,null,null,null,null,null,null,null,null,null,null,null,null,null,null,null,null,null,null,null,null,null,null,null,null,null,null,null,null,null,null,null,null,null,null,null,null,null,null,null,null,null,null,null,null,null,null,null,null,null,null,"2031","Cement and Lime Manufacturing","2031 - Cement and Lime Manufacturing"]
[null,null,null,null,null,null,null,null,null,null,null,null,null,null,null,null,null,null,null,null,null,null,null,null,null,null,null,null,null,null,null,null,null,null,null,null,null,null,null,null,null,null,null,null,null,null,null,null,null,null,null,"2032","Plaster Product Manufacturing","2032 - Plaster Product Manufacturing"]
[null,null,null,null,null,null,null,null,null,null,null,null,null,null,null,null,null,null,null,null,null,null,null,null,null,null,null,null,null,null,null,null,null,null,null,null,null,null,null,null,null,null,null,null,null,null,null,null,null,null,null,"2033","Ready-Mixed Concrete Manufacturing","2033 - Ready-Mixed Concrete Manufacturing"]
[null,null,null,null,null,null,null,null,null,null,null,null,null,null,null,null,null,null,null,null,null,null,null,null,null,null,null,null,null,null,null,null,null,null,null,null,null,null,null,null,null,null,null,null,null,null,null,null,null,null,null,"2034","Concrete Product Manufacturing","2034 - Concrete Product Manufacturing"]
[null,null,null,null,null,null,null,null,null,null,null,null,null,null,null,null,null,null,null,null,null,null,null,null,null,null,null,null,null,null,null,null,null,null,null,null,null,null,null,null,null,null,null,null,null,null,null,null,null,null,null,"2090","Other Non-Metallic Mineral Product Manufacturing","2090 - Other Non-Metallic Mineral Product Manufacturing"]
[null,null,null,null,null,null,null,null,null,null,null,null,null,null,null,null,null,null,null,null,null,null,null,null,null,null,null,null,null,null,null,null,null,null,null,null,null,null,null,null,null,null,null,null,null,null,null,null,null,null,null,"2110","Iron Smelting and Steel Manufacturing","2110 - Iron Smelting and Steel Manufacturing"]
[null,null,null,null,null,null,null,null,null,null,null,null,null,null,null,null,null,null,null,null,null,null,null,null,null,null,null,null,null,null,null,null,null,null,null,null,null,null,null,null,null,null,null,null,null,null,null,null,null,null,null,"2121","Iron and Steel Casting","2121 - Iron and Steel Casting"]
[null,null,null,null,null,null,null,null,null,null,null,null,null,null,null,null,null,null,null,null,null,null,null,null,null,null,null,null,null,null,null,null,null,null,null,null,null,null,null,null,null,null,null,null,null,null,null,null,null,null,null,"2122","Steel Pipe and Tube Manufacturing","2122 - Steel Pipe and Tube Manufacturing"]
[null,null,null,null,null,null,null,null,null,null,null,null,null,null,null,null,null,null,null,null,null,null,null,null,null,null,null,null,null,null,null,null,null,null,null,null,null,null,null,null,null,null,null,null,null,null,null,null,null,null,null,"2131","Alumina Production","2131 - Alumina Production"]
[null,null,null,null,null,null,null,null,null,null,null,null,null,null,null,null,null,null,null,null,null,null,null,null,null,null,null,null,null,null,null,null,null,null,null,null,null,null,null,null,null,null,null,null,null,null,null,null,null,null,null,"2132","Aluminium Smelting","2132 - Aluminium Smelting"]
[null,null,null,null,null,null,null,null,null,null,null,null,null,null,null,null,null,null,null,null,null,null,null,null,null,null,null,null,null,null,null,null,null,null,null,null,null,null,null,null,null,null,null,null,null,null,null,null,null,null,null,"2133","Copper, Silver, Lead and Zinc Smelting and Refining","2133 - Copper, Silver, Lead and Zinc Smelting and Refining"]
[null,null,null,null,null,null,null,null,null,null,null,null,null,null,null,null,null,null,null,null,null,null,null,null,null,null,null,null,null,null,null,null,null,null,null,null,null,null,null,null,null,null,null,null,null,null,null,null,null,null,null,"2139","Other Basic Non-Ferrous Metal Manufacturing","2139 - Other Basic Non-Ferrous Metal Manufacturing"]
[null,null,null,null,null,null,null,null,null,null,null,null,null,null,null,null,null,null,null,null,null,null,null,null,null,null,null,null,null,null,null,null,null,null,null,null,null,null,null,null,null,null,null,null,null,null,null,null,null,null,null,"2141","Non-Ferrous Metal Casting","2141 - Non-Ferrous Metal Casting"]
[null,null,null,null,null,null,null,null,null,null,null,null,null,null,null,null,null,null,null,null,null,null,null,null,null,null,null,null,null,null,null,null,null,null,null,null,null,null,null,null,null,null,null,null,null,null,null,null,null,null,null,"2142","Aluminium Rolling, Drawing, Extruding","2142 - Aluminium Rolling, Drawing, Extruding"]
[null,null,null,null,null,null,null,null,null,null,null,null,null,null,null,null,null,null,null,null,null,null,null,null,null,null,null,null,null,null,null,null,null,null,null,null,null,null,null,null,null,null,null,null,null,null,null,null,null,null,null,"2149","Other Basic Non-Ferrous Metal Product Manufacturing","2149 - Other Basic Non-Ferrous Metal Product Manufacturing"]
[null,null,null,null,null,null,null,null,null,null,null,null,null,null,null,null,null,null,null,null,null,null,null,null,null,null,null,null,null,null,null,null,null,null,null,null,null,null,null,null,null,null,null,null,null,null,null,null,null,null,null,"2210","Iron and Steel Forging","2210 - Iron and Steel Forging"]
[null,null,null,null,null,null,null,null,null,null,null,null,null,null,null,null,null,null,null,null,null,null,null,null,null,null,null,null,null,null,null,null,null,null,null,null,null,null,null,null,null,null,null,null,null,null,null,null,null,null,null,"2221","Structural Steel Fabricating","2221 - Structural Steel Fabricating"]
[null,null,null,null,null,null,null,null,null,null,null,null,null,null,null,null,null,null,null,null,null,null,null,null,null,null,null,null,null,null,null,null,null,null,null,null,null,null,null,null,null,null,null,null,null,null,null,null,null,null,null,"2222","Prefabricated Metal Building Manufacturing","2222 - Prefabricated Metal Building Manufacturing"]
[null,null,null,null,null,null,null,null,null,null,null,null,null,null,null,null,null,null,null,null,null,null,null,null,null,null,null,null,null,null,null,null,null,null,null,null,null,null,null,null,null,null,null,null,null,null,null,null,null,null,null,"2223","Architectural Aluminium Product Manufacturing","2223 - Architectural Aluminium Product Manufacturing"]
[null,null,null,null,null,null,null,null,null,null,null,null,null,null,null,null,null,null,null,null,null,null,null,null,null,null,null,null,null,null,null,null,null,null,null,null,null,null,null,null,null,null,null,null,null,null,null,null,null,null,null,"2224","Metal Roof and Guttering Manufacturing (except Aluminium)","2224 - Metal Roof and Guttering Manufacturing (except Aluminium)"]
[null,null,null,null,null,null,null,null,null,null,null,null,null,null,null,null,null,null,null,null,null,null,null,null,null,null,null,null,null,null,null,null,null,null,null,null,null,null,null,null,null,null,null,null,null,null,null,null,null,null,null,"2229","Other Structural Metal Product Manufacturing","2229 - Other Structural Metal Product Manufacturing"]
[null,null,null,null,null,null,null,null,null,null,null,null,null,null,null,null,null,null,null,null,null,null,null,null,null,null,null,null,null,null,null,null,null,null,null,null,null,null,null,null,null,null,null,null,null,null,null,null,null,null,null,"2231","Boiler, Tank and Other Heavy Gauge Metal Container Manufacturing","2231 - Boiler, Tank and Other Heavy Gauge Metal Container Manufacturing"]
[null,null,null,null,null,null,null,null,null,null,null,null,null,null,null,null,null,null,null,null,null,null,null,null,null,null,null,null,null,null,null,null,null,null,null,null,null,null,null,null,null,null,null,null,null,null,null,null,null,null,null,"2239","Other Metal Container Manufacturing","2239 - Other Metal Container Manufacturing"]
[null,null,null,null,null,null,null,null,null,null,null,null,null,null,null,null,null,null,null,null,null,null,null,null,null,null,null,null,null,null,null,null,null,null,null,null,null,null,null,null,null,null,null,null,null,null,null,null,null,null,null,"2240","Sheet Metal Product Manufacturing (except Metal Structural and Container","2240 - Sheet Metal Product Manufacturing (except Metal Structural and Container"]
[null,null,null,null,null,null,null,null,null,null,null,null,null,null,null,null,null,null,null,null,null,null,null,null,null,null,null,null,null,null,null,null,null,null,null,null,null,null,null,null,null,null,null,null,null,null,null,null,null,null,null,"2291","Spring and Wire Product Manufacturing","2291 - Spring and Wire Product Manufacturing"]
[null,null,null,null,null,null,null,null,null,null,null,null,null,null,null,null,null,null,null,null,null,null,null,null,null,null,null,null,null,null,null,null,null,null,null,null,null,null,null,null,null,null,null,null,null,null,null,null,null,null,null,"2292","Nut, Bolt, Screw and Rivet Manufacturing","2292 - Nut, Bolt, Screw and Rivet Manufacturing"]
[null,null,null,null,null,null,null,null,null,null,null,null,null,null,null,null,null,null,null,null,null,null,null,null,null,null,null,null,null,null,null,null,null,null,null,null,null,null,null,null,null,null,null,null,null,null,null,null,null,null,null,"2293","Metal Coating and Finishing","2293 - Metal Coating and Finishing"]
[null,null,null,null,null,null,null,null,null,null,null,null,null,null,null,null,null,null,null,null,null,null,null,null,null,null,null,null,null,null,null,null,null,null,null,null,null,null,null,null,null,null,null,null,null,null,null,null,null,null,null,"2299","Other Fabricated Metal Product Manufacturing n.e.c.","2299 - Other Fabricated Metal Product Manufacturing n.e.c."]
[null,null,null,null,null,null,null,null,null,null,null,null,null,null,null,null,null,null,null,null,null,null,null,null,null,null,null,null,null,null,null,null,null,null,null,null,null,null,null,null,null,null,null,null,null,null,null,null,null,null,null,"2311","Motor Vehicle Manufacturing","2311 - Motor Vehicle Manufacturing"]
[null,null,null,null,null,null,null,null,null,null,null,null,null,null,null,null,null,null,null,null,null,null,null,null,null,null,null,null,null,null,null,null,null,null,null,null,null,null,null,null,null,null,null,null,null,null,null,null,null,null,null,"2312","Motor Vehicle Body and Trailer Manufacturing","2312 - Motor Vehicle Body and Trailer Manufacturing"]
[null,null,null,null,null,null,null,null,null,null,null,null,null,null,null,null,null,null,null,null,null,null,null,null,null,null,null,null,null,null,null,null,null,null,null,null,null,null,null,null,null,null,null,null,null,null,null,null,null,null,null,"2313","Automotive Electrical Component Manufacturing","2313 - Automotive Electrical Component Manufacturing"]
[null,null,null,null,null,null,null,null,null,null,null,null,null,null,null,null,null,null,null,null,null,null,null,null,null,null,null,null,null,null,null,null,null,null,null,null,null,null,null,null,null,null,null,null,null,null,null,null,null,null,null,"2319","Other Motor Vehicle Parts Manufacturing","2319 - Other Motor Vehicle Parts Manufacturing"]
[null,null,null,null,null,null,null,null,null,null,null,null,null,null,null,null,null,null,null,null,null,null,null,null,null,null,null,null,null,null,null,null,null,null,null,null,null,null,null,null,null,null,null,null,null,null,null,null,null,null,null,"2391","Shipbuilding and Repair Services","2391 - Shipbuilding and Repair Services"]
[null,null,null,null,null,null,null,null,null,null,null,null,null,null,null,null,null,null,null,null,null,null,null,null,null,null,null,null,null,null,null,null,null,null,null,null,null,null,null,null,null,null,null,null,null,null,null,null,null,null,null,"2392","Boatbuilding and Repair Services","2392 - Boatbuilding and Repair Services"]
[null,null,null,null,null,null,null,null,null,null,null,null,null,null,null,null,null,null,null,null,null,null,null,null,null,null,null,null,null,null,null,null,null,null,null,null,null,null,null,null,null,null,null,null,null,null,null,null,null,null,null,"2393","Railway Rolling Stock Manufacturing and Repair Services","2393 - Railway Rolling Stock Manufacturing and Repair Services"]
[null,null,null,null,null,null,null,null,null,null,null,null,null,null,null,null,null,null,null,null,null,null,null,null,null,null,null,null,null,null,null,null,null,null,null,null,null,null,null,null,null,null,null,null,null,null,null,null,null,null,null,"2394","Aircraft Manufacturing and Repair Services","2394 - Aircraft Manufacturing and Repair Services"]
[null,null,null,null,null,null,null,null,null,null,null,null,null,null,null,null,null,null,null,null,null,null,null,null,null,null,null,null,null,null,null,null,null,null,null,null,null,null,null,null,null,null,null,null,null,null,null,null,null,null,null,"2399","Other Transport Equipment Manufacturing n.e.c.","2399 - Other Transport Equipment Manufacturing n.e.c."]
[null,null,null,null,null,null,null,null,null,null,null,null,null,null,null,null,null,null,null,null,null,null,null,null,null,null,null,null,null,null,null,null,null,null,null,null,null,null,null,null,null,null,null,null,null,null,null,null,null,null,null,"2411","Photographic, Optical and Ophthalmic Equipment Manufacturing","2411 - Photographic, Optical and Ophthalmic Equipment Manufacturing"]
[null,null,null,null,null,null,null,null,null,null,null,null,null,null,null,null,null,null,null,null,null,null,null,null,null,null,null,null,null,null,null,null,null,null,null,null,null,null,null,null,null,null,null,null,null,null,null,null,null,null,null,"2412","Medical and Surgical Equipment Manufacturing","2412 - Medical and Surgical Equipment Manufacturing"]
[null,null,null,null,null,null,null,null,null,null,null,null,null,null,null,null,null,null,null,null,null,null,null,null,null,null,null,null,null,null,null,null,null,null,null,null,null,null,null,null,null,null,null,null,null,null,null,null,null,null,null,"2419","Other Professional and Scientific Equipment Manufacturing","2419 - Other Professional and Scientific Equipment Manufacturing"]
[null,null,null,null,null,null,null,null,null,null,null,null,null,null,null,null,null,null,null,null,null,null,null,null,null,null,null,null,null,null,null,null,null,null,null,null,null,null,null,null,null,null,null,null,null,null,null,null,null,null,null,"2421","Computer and Electronic Office Equipment Manufacturing","2421 - Computer and Electronic Office Equipment Manufacturing"]
[null,null,null,null,null,null,null,null,null,null,null,null,null,null,null,null,null,null,null,null,null,null,null,null,null,null,null,null,null,null,null,null,null,null,null,null,null,null,null,null,null,null,null,null,null,null,null,null,null,null,null,"2422","Communication Equipment Manufacturing","2422 - Communication Equipment Manufacturing"]
[null,null,null,null,null,null,null,null,null,null,null,null,null,null,null,null,null,null,null,null,null,null,null,null,null,null,null,null,null,null,null,null,null,null,null,null,null,null,null,null,null,null,null,null,null,null,null,null,null,null,null,"2429","Other Electronic Equipment Manufacturing","2429 - Other Electronic Equipment Manufacturing"]
[null,null,null,null,null,null,null,null,null,null,null,null,null,null,null,null,null,null,null,null,null,null,null,null,null,null,null,null,null,null,null,null,null,null,null,null,null,null,null,null,null,null,null,null,null,null,null,null,null,null,null,"2431","Electric Cable and Wire Manufacturing","2431 - Electric Cable and Wire Manufacturing"]
[null,null,null,null,null,null,null,null,null,null,null,null,null,null,null,null,null,null,null,null,null,null,null,null,null,null,null,null,null,null,null,null,null,null,null,null,null,null,null,null,null,null,null,null,null,null,null,null,null,null,null,"2432","Electric Lighting Equipment Manufacturing","2432 - Electric Lighting Equipment Manufacturing"]
[null,null,null,null,null,null,null,null,null,null,null,null,null,null,null,null,null,null,null,null,null,null,null,null,null,null,null,null,null,null,null,null,null,null,null,null,null,null,null,null,null,null,null,null,null,null,null,null,null,null,null,"2439","Other Electrical Equipment Manufacturing","2439 - Other Electrical Equipment Manufacturing"]
[null,null,null,null,null,null,null,null,null,null,null,null,null,null,null,null,null,null,null,null,null,null,null,null,null,null,null,null,null,null,null,null,null,null,null,null,null,null,null,null,null,null,null,null,null,null,null,null,null,null,null,"2441","Whiteware Appliance Manufacturing","2441 - Whiteware Appliance Manufacturing"]
[null,null,null,null,null,null,null,null,null,null,null,null,null,null,null,null,null,null,null,null,null,null,null,null,null,null,null,null,null,null,null,null,null,null,null,null,null,null,null,null,null,null,null,null,null,null,null,null,null,null,null,"2449","Other Domestic Appliance Manufacturing","2449 - Other Domestic Appliance Manufacturing"]
[null,null,null,null,null,null,null,null,null,null,null,null,null,null,null,null,null,null,null,null,null,null,null,null,null,null,null,null,null,null,null,null,null,null,null,null,null,null,null,null,null,null,null,null,null,null,null,null,null,null,null,"2451","Pump and Compressor Manufacturing",{"$f":"AZ199&\" - \"&BA199","v":"2451 - Pump and Compressor Manufacturing"}]
[null,null,null,null,null,null,null,null,null,null,null,null,null,null,null,null,null,null,null,null,null,null,null,null,null,null,null,null,null,null,null,null,null,null,null,null,null,null,null,null,null,null,null,null,null,null,null,null,null,null,null,"2452","Fixed Space Heating, Cooling and Ventilation Equipment Manufacturing","2452 - Fixed Space Heating, Cooling and Ventilation Equipment Manufacturing"]
[null,null,null,null,null,null,null,null,null,null,null,null,null,null,null,null,null,null,null,null,null,null,null,null,null,null,null,null,null,null,null,null,null,null,null,null,null,null,null,null,null,null,null,null,null,null,null,null,null,null,null,"2461","Agricultural Machinery and Equipment Manufacturing","2461 - Agricultural Machinery and Equipment Manufacturing"]
[null,null,null,null,null,null,null,null,null,null,null,null,null,null,null,null,null,null,null,null,null,null,null,null,null,null,null,null,null,null,null,null,null,null,null,null,null,null,null,null,null,null,null,null,null,null,null,null,null,null,null,"2462","Mining and Construction Machinery Manufacturing","2462 - Mining and Construction Machinery Manufacturing"]
[null,null,null,null,null,null,null,null,null,null,null,null,null,null,null,null,null,null,null,null,null,null,null,null,null,null,null,null,null,null,null,null,null,null,null,null,null,null,null,null,null,null,null,null,null,null,null,null,null,null,null,"2463","Machine Tool and Parts Manufacturing","2463 - Machine Tool and Parts Manufacturing"]
[null,null,null,null,null,null,null,null,null,null,null,null,null,null,null,null,null,null,null,null,null,null,null,null,null,null,null,null,null,null,null,null,null,null,null,null,null,null,null,null,null,null,null,null,null,null,null,null,null,null,null,"2469","Other Specialised Machinery and Equipment Manufacturing","2469 - Other Specialised Machinery and Equipment Manufacturing"]
[null,null,null,null,null,null,null,null,null,null,null,null,null,null,null,null,null,null,null,null,null,null,null,null,null,null,null,null,null,null,null,null,null,null,null,null,null,null,null,null,null,null,null,null,null,null,null,null,null,null,null,"2491","Lifting and Material Handling Equipment Manufacturing","2491 - Lifting and Material Handling Equipment Manufacturing"]
[null,null,null,null,null,null,null,null,null,null,null,null,null,null,null,null,null,null,null,null,null,null,null,null,null,null,null,null,null,null,null,null,null,null,null,null,null,null,null,null,null,null,null,null,null,null,null,null,null,null,null,"2499","Other Machinery and Equipment Manufacturing n.e.c.","2499 - Other Machinery and Equipment Manufacturing n.e.c."]
[null,null,null,null,null,null,null,null,null,null,null,null,null,null,null,null,null,null,null,null,null,null,null,null,null,null,null,null,null,null,null,null,null,null,null,null,null,null,null,null,null,null,null,null,null,null,null,null,null,null,null,"2511","Wooden Furniture and Upholstered Seat Manufacturing","2511 - Wooden Furniture and Upholstered Seat Manufacturing"]
[null,null,null,null,null,null,null,null,null,null,null,null,null,null,null,null,null,null,null,null,null,null,null,null,null,null,null,null,null,null,null,null,null,null,null,null,null,null,null,null,null,null,null,null,null,null,null,null,null,null,null,"2512","Metal Furniture Manufacturing","2512 - Metal Furniture Manufacturing"]
[null,null,null,null,null,null,null,null,null,null,null,null,null,null,null,null,null,null,null,null,null,null,null,null,null,null,null,null,null,null,null,null,null,null,null,null,null,null,null,null,null,null,null,null,null,null,null,null,null,null,null,"2513","Mattress Manufacturing","2513 - Mattress Manufacturing"]
[null,null,null,null,null,null,null,null,null,null,null,null,null,null,null,null,null,null,null,null,null,null,null,null,null,null,null,null,null,null,null,null,null,null,null,null,null,null,null,null,null,null,null,null,null,null,null,null,null,null,null,"2519","Other Furniture Manufacturing","2519 - Other Furniture Manufacturing"]
[null,null,null,null,null,null,null,null,null,null,null,null,null,null,null,null,null,null,null,null,null,null,null,null,null,null,null,null,null,null,null,null,null,null,null,null,null,null,null,null,null,null,null,null,null,null,null,null,null,null,null,"2591","Jewellery and Silverware Manufacturing","2591 - Jewellery and Silverware Manufacturing"]
[null,null,null,null,null,null,null,null,null,null,null,null,null,null,null,null,null,null,null,null,null,null,null,null,null,null,null,null,null,null,null,null,null,null,null,null,null,null,null,null,null,null,null,null,null,null,null,null,null,null,null,"2592","Toy, Sporting and Recreational Product Manufacturing","2592 - Toy, Sporting and Recreational Product Manufacturing"]
[null,null,null,null,null,null,null,null,null,null,null,null,null,null,null,null,null,null,null,null,null,null,null,null,null,null,null,null,null,null,null,null,null,null,null,null,null,null,null,null,null,null,null,null,null,null,null,null,null,null,null,"2599","Other Manufacturing n.e.c.","2599 - Other Manufacturing n.e.c."]
[null,null,null,null,null,null,null,null,null,null,null,null,null,null,null,null,null,null,null,null,null,null,null,null,null,null,null,null,null,null,null,null,null,null,null,null,null,null,null,null,null,null,null,null,null,null,null,null,null,null,null,"2611","Fossil Fuel Electricity Generation","2611 - Fossil Fuel Electricity Generation"]
[null,null,null,null,null,null,null,null,null,null,null,null,null,null,null,null,null,null,null,null,null,null,null,null,null,null,null,null,null,null,null,null,null,null,null,null,null,null,null,null,null,null,null,null,null,null,null,null,null,null,null,"2612","Hydro-Electricity Generation","2612 - Hydro-Electricity Generation"]
[null,null,null,null,null,null,null,null,null,null,null,null,null,null,null,null,null,null,null,null,null,null,null,null,null,null,null,null,null,null,null,null,null,null,null,null,null,null,null,null,null,null,null,null,null,null,null,null,null,null,null,"2619","Other Electricity Generation","2619 - Other Electricity Generation"]
[null,null,null,null,null,null,null,null,null,null,null,null,null,null,null,null,null,null,null,null,null,null,null,null,null,null,null,null,null,null,null,null,null,null,null,null,null,null,null,null,null,null,null,null,null,null,null,null,null,null,null,"2620","Electricity Transmission","2620 - Electricity Transmission"]
[null,null,null,null,null,null,null,null,null,null,null,null,null,null,null,null,null,null,null,null,null,null,null,null,null,null,null,null,null,null,null,null,null,null,null,null,null,null,null,null,null,null,null,null,null,null,null,null,null,null,null,"2630","Electricity Distribution","2630 - Electricity Distribution"]
[null,null,null,null,null,null,null,null,null,null,null,null,null,null,null,null,null,null,null,null,null,null,null,null,null,null,null,null,null,null,null,null,null,null,null,null,null,null,null,null,null,null,null,null,null,null,null,null,null,null,null,"2640","On Selling Electricity and Electricity Market Operation","2640 - On Selling Electricity and Electricity Market Operation"]
[null,null,null,null,null,null,null,null,null,null,null,null,null,null,null,null,null,null,null,null,null,null,null,null,null,null,null,null,null,null,null,null,null,null,null,null,null,null,null,null,null,null,null,null,null,null,null,null,null,null,null,"2700","Gas Supply","2700 - Gas Supply"]
[null,null,null,null,null,null,null,null,null,null,null,null,null,null,null,null,null,null,null,null,null,null,null,null,null,null,null,null,null,null,null,null,null,null,null,null,null,null,null,null,null,null,null,null,null,null,null,null,null,null,null,"2811","Water Supply","2811 - Water Supply"]
[null,null,null,null,null,null,null,null,null,null,null,null,null,null,null,null,null,null,null,null,null,null,null,null,null,null,null,null,null,null,null,null,null,null,null,null,null,null,null,null,null,null,null,null,null,null,null,null,null,null,null,"2812","Sewerage and Drainage Services","2812 - Sewerage and Drainage Services"]
[null,null,null,null,null,null,null,null,null,null,null,null,null,null,null,null,null,null,null,null,null,null,null,null,null,null,null,null,null,null,null,null,null,null,null,null,null,null,null,null,null,null,null,null,null,null,null,null,null,null,null,"2911","Solid Waste Collection Services","2911 - Solid Waste Collection Services"]
[null,null,null,null,null,null,null,null,null,null,null,null,null,null,null,null,null,null,null,null,null,null,null,null,null,null,null,null,null,null,null,null,null,null,null,null,null,null,null,null,null,null,null,null,null,null,null,null,null,null,null,"2919","Other Waste Collection Services","2919 - Other Waste Collection Services"]
[null,null,null,null,null,null,null,null,null,null,null,null,null,null,null,null,null,null,null,null,null,null,null,null,null,null,null,null,null,null,null,null,null,null,null,null,null,null,null,null,null,null,null,null,null,null,null,null,null,null,null,"2921","Waste Treatment and Disposal Services","2921 - Waste Treatment and Disposal Services"]
[null,null,null,null,null,null,null,null,null,null,null,null,null,null,null,null,null,null,null,null,null,null,null,null,null,null,null,null,null,null,null,null,null,null,null,null,null,null,null,null,null,null,null,null,null,null,null,null,null,null,null,"2922","Waste Remediation and Materials Recovery Services","2922 - Waste Remediation and Materials Recovery Services"]
[null,null,null,null,null,null,null,null,null,null,null,null,null,null,null,null,null,null,null,null,null,null,null,null,null,null,null,null,null,null,null,null,null,null,null,null,null,null,null,null,null,null,null,null,null,null,null,null,null,null,null,"3011","House Construction","3011 - House Construction"]
[null,null,null,null,null,null,null,null,null,null,null,null,null,null,null,null,null,null,null,null,null,null,null,null,null,null,null,null,null,null,null,null,null,null,null,null,null,null,null,null,null,null,null,null,null,null,null,null,null,null,null,"3019","Other Residential Building Construction","3019 - Other Residential Building Construction"]
[null,null,null,null,null,null,null,null,null,null,null,null,null,null,null,null,null,null,null,null,null,null,null,null,null,null,null,null,null,null,null,null,null,null,null,null,null,null,null,null,null,null,null,null,null,null,null,null,null,null,null,"3020","Non-Residential Building Construction","3020 - Non-Residential Building Construction"]
[null,null,null,null,null,null,null,null,null,null,null,null,null,null,null,null,null,null,null,null,null,null,null,null,null,null,null,null,null,null,null,null,null,null,null,null,null,null,null,null,null,null,null,null,null,null,null,null,null,null,null,"3101","Road and Bridge Construction","3101 - Road and Bridge Construction"]
[null,null,null,null,null,null,null,null,null,null,null,null,null,null,null,null,null,null,null,null,null,null,null,null,null,null,null,null,null,null,null,null,null,null,null,null,null,null,null,null,null,null,null,null,null,null,null,null,null,null,null,"3109","Other Heavy and Civil Engineering Construction","3109 - Other Heavy and Civil Engineering Construction"]
[null,null,null,null,null,null,null,null,null,null,null,null,null,null,null,null,null,null,null,null,null,null,null,null,null,null,null,null,null,null,null,null,null,null,null,null,null,null,null,null,null,null,null,null,null,null,null,null,null,null,null,"3211","Land Development and Subdivision","3211 - Land Development and Subdivision"]
[null,null,null,null,null,null,null,null,null,null,null,null,null,null,null,null,null,null,null,null,null,null,null,null,null,null,null,null,null,null,null,null,null,null,null,null,null,null,null,null,null,null,null,null,null,null,null,null,null,null,null,"3212","Site Preparation Services","3212 - Site Preparation Services"]
[null,null,null,null,null,null,null,null,null,null,null,null,null,null,null,null,null,null,null,null,null,null,null,null,null,null,null,null,null,null,null,null,null,null,null,null,null,null,null,null,null,null,null,null,null,null,null,null,null,null,null,"3221","Concreting Services","3221 - Concreting Services"]
[null,null,null,null,null,null,null,null,null,null,null,null,null,null,null,null,null,null,null,null,null,null,null,null,null,null,null,null,null,null,null,null,null,null,null,null,null,null,null,null,null,null,null,null,null,null,null,null,null,null,null,"3222","Bricklaying Services","3222 - Bricklaying Services"]
[null,null,null,null,null,null,null,null,null,null,null,null,null,null,null,null,null,null,null,null,null,null,null,null,null,null,null,null,null,null,null,null,null,null,null,null,null,null,null,null,null,null,null,null,null,null,null,null,null,null,null,"3223","Roofing Services","3223 - Roofing Services"]
[null,null,null,null,null,null,null,null,null,null,null,null,null,null,null,null,null,null,null,null,null,null,null,null,null,null,null,null,null,null,null,null,null,null,null,null,null,null,null,null,null,null,null,null,null,null,null,null,null,null,null,"3224","Structural Steel Erection Services","3224 - Structural Steel Erection Services"]
[null,null,null,null,null,null,null,null,null,null,null,null,null,null,null,null,null,null,null,null,null,null,null,null,null,null,null,null,null,null,null,null,null,null,null,null,null,null,null,null,null,null,null,null,null,null,null,null,null,null,null,"3231","Plumbing Services","3231 - Plumbing Services"]
[null,null,null,null,null,null,null,null,null,null,null,null,null,null,null,null,null,null,null,null,null,null,null,null,null,null,null,null,null,null,null,null,null,null,null,null,null,null,null,null,null,null,null,null,null,null,null,null,null,null,null,"3232","Electrical Services","3232 - Electrical Services"]
[null,null,null,null,null,null,null,null,null,null,null,null,null,null,null,null,null,null,null,null,null,null,null,null,null,null,null,null,null,null,null,null,null,null,null,null,null,null,null,null,null,null,null,null,null,null,null,null,null,null,null,"3233","Air Conditioning and Heating Services","3233 - Air Conditioning and Heating Services"]
[null,null,null,null,null,null,null,null,null,null,null,null,null,null,null,null,null,null,null,null,null,null,null,null,null,null,null,null,null,null,null,null,null,null,null,null,null,null,null,null,null,null,null,null,null,null,null,null,null,null,null,"3234","Fire and Security Alarm Installation Services","3234 - Fire and Security Alarm Installation Services"]
[null,null,null,null,null,null,null,null,null,null,null,null,null,null,null,null,null,null,null,null,null,null,null,null,null,null,null,null,null,null,null,null,null,null,null,null,null,null,null,null,null,null,null,null,null,null,null,null,null,null,null,"3239","Other Building Installation Services","3239 - Other Building Installation Services"]
[null,null,null,null,null,null,null,null,null,null,null,null,null,null,null,null,null,null,null,null,null,null,null,null,null,null,null,null,null,null,null,null,null,null,null,null,null,null,null,null,null,null,null,null,null,null,null,null,null,null,null,"3241","Plastering and Ceiling Services","3241 - Plastering and Ceiling Services"]
[null,null,null,null,null,null,null,null,null,null,null,null,null,null,null,null,null,null,null,null,null,null,null,null,null,null,null,null,null,null,null,null,null,null,null,null,null,null,null,null,null,null,null,null,null,null,null,null,null,null,null,"3242","Carpentry Services","3242 - Carpentry Services"]
[null,null,null,null,null,null,null,null,null,null,null,null,null,null,null,null,null,null,null,null,null,null,null,null,null,null,null,null,null,null,null,null,null,null,null,null,null,null,null,null,null,null,null,null,null,null,null,null,null,null,null,"3243","Tiling and Carpeting Services","3243 - Tiling and Carpeting Services"]
[null,null,null,null,null,null,null,null,null,null,null,null,null,null,null,null,null,null,null,null,null,null,null,null,null,null,null,null,null,null,null,null,null,null,null,null,null,null,null,null,null,null,null,null,null,null,null,null,null,null,null,"3244","Painting and Decorating Services","3244 - Painting and Decorating Services"]
[null,null,null,null,null,null,null,null,null,null,null,null,null,null,null,null,null,null,null,null,null,null,null,null,null,null,null,null,null,null,null,null,null,null,null,null,null,null,null,null,null,null,null,null,null,null,null,null,null,null,null,"3245","Glazing Services","3245 - Glazing Services"]
[null,null,null,null,null,null,null,null,null,null,null,null,null,null,null,null,null,null,null,null,null,null,null,null,null,null,null,null,null,null,null,null,null,null,null,null,null,null,null,null,null,null,null,null,null,null,null,null,null,null,null,"3291","Landscape Construction Services","3291 - Landscape Construction Services"]
[null,null,null,null,null,null,null,null,null,null,null,null,null,null,null,null,null,null,null,null,null,null,null,null,null,null,null,null,null,null,null,null,null,null,null,null,null,null,null,null,null,null,null,null,null,null,null,null,null,null,null,"3292","Hire of Construction Machinery with Operator","3292 - Hire of Construction Machinery with Operator"]
[null,null,null,null,null,null,null,null,null,null,null,null,null,null,null,null,null,null,null,null,null,null,null,null,null,null,null,null,null,null,null,null,null,null,null,null,null,null,null,null,null,null,null,null,null,null,null,null,null,null,null,"3299","Other Construction Services n.e.c.","3299 - Other Construction Services n.e.c."]
[null,null,null,null,null,null,null,null,null,null,null,null,null,null,null,null,null,null,null,null,null,null,null,null,null,null,null,null,null,null,null,null,null,null,null,null,null,null,null,null,null,null,null,null,null,null,null,null,null,null,null,"3311","Wool Wholesaling","3311 - Wool Wholesaling"]
[null,null,null,null,null,null,null,null,null,null,null,null,null,null,null,null,null,null,null,null,null,null,null,null,null,null,null,null,null,null,null,null,null,null,null,null,null,null,null,null,null,null,null,null,null,null,null,null,null,null,null,"3312","Cereal Grain Wholesaling","3312 - Cereal Grain Wholesaling"]
[null,null,null,null,null,null,null,null,null,null,null,null,null,null,null,null,null,null,null,null,null,null,null,null,null,null,null,null,null,null,null,null,null,null,null,null,null,null,null,null,null,null,null,null,null,null,null,null,null,null,null,"3319","Other Agricultural Product Wholesaling","3319 - Other Agricultural Product Wholesaling"]
[null,null,null,null,null,null,null,null,null,null,null,null,null,null,null,null,null,null,null,null,null,null,null,null,null,null,null,null,null,null,null,null,null,null,null,null,null,null,null,null,null,null,null,null,null,null,null,null,null,null,null,"3321","Petroleum Product Wholesaling","3321 - Petroleum Product Wholesaling"]
[null,null,null,null,null,null,null,null,null,null,null,null,null,null,null,null,null,null,null,null,null,null,null,null,null,null,null,null,null,null,null,null,null,null,null,null,null,null,null,null,null,null,null,null,null,null,null,null,null,null,null,"3322","Metal and Mineral Wholesaling","3322 - Metal and Mineral Wholesaling"]
[null,null,null,null,null,null,null,null,null,null,null,null,null,null,null,null,null,null,null,null,null,null,null,null,null,null,null,null,null,null,null,null,null,null,null,null,null,null,null,null,null,null,null,null,null,null,null,null,null,null,null,"3323","Industrial and Agricultural Chemical Product Wholesaling","3323 - Industrial and Agricultural Chemical Product Wholesaling"]
[null,null,null,null,null,null,null,null,null,null,null,null,null,null,null,null,null,null,null,null,null,null,null,null,null,null,null,null,null,null,null,null,null,null,null,null,null,null,null,null,null,null,null,null,null,null,null,null,null,null,null,"3331","Timber Wholesaling","3331 - Timber Wholesaling"]
[null,null,null,null,null,null,null,null,null,null,null,null,null,null,null,null,null,null,null,null,null,null,null,null,null,null,null,null,null,null,null,null,null,null,null,null,null,null,null,null,null,null,null,null,null,null,null,null,null,null,null,"3332","Plumbing Goods Wholesaling","3332 - Plumbing Goods Wholesaling"]
[null,null,null,null,null,null,null,null,null,null,null,null,null,null,null,null,null,null,null,null,null,null,null,null,null,null,null,null,null,null,null,null,null,null,null,null,null,null,null,null,null,null,null,null,null,null,null,null,null,null,null,"3339","Other Hardware Goods Wholesaling","3339 - Other Hardware Goods Wholesaling"]
[null,null,null,null,null,null,null,null,null,null,null,null,null,null,null,null,null,null,null,null,null,null,null,null,null,null,null,null,null,null,null,null,null,null,null,null,null,null,null,null,null,null,null,null,null,null,null,null,null,null,null,"3411","Agricultural and Construction Machinery Wholesaling","3411 - Agricultural and Construction Machinery Wholesaling"]
[null,null,null,null,null,null,null,null,null,null,null,null,null,null,null,null,null,null,null,null,null,null,null,null,null,null,null,null,null,null,null,null,null,null,null,null,null,null,null,null,null,null,null,null,null,null,null,null,null,null,null,"3419","Other Specialised Industrial Machinery and Equipment Wholesaling","3419 - Other Specialised Industrial Machinery and Equipment Wholesaling"]
[null,null,null,null,null,null,null,null,null,null,null,null,null,null,null,null,null,null,null,null,null,null,null,null,null,null,null,null,null,null,null,null,null,null,null,null,null,null,null,null,null,null,null,null,null,null,null,null,null,null,null,"3491","Professional and Scientific Goods Wholesaling","3491 - Professional and Scientific Goods Wholesaling"]
[null,null,null,null,null,null,null,null,null,null,null,null,null,null,null,null,null,null,null,null,null,null,null,null,null,null,null,null,null,null,null,null,null,null,null,null,null,null,null,null,null,null,null,null,null,null,null,null,null,null,null,"3492","Computer and Computer Peripheral Wholesaling",{"$f":"AZ263&\" - \"&BA263","v":"3492 - Computer and Computer Peripheral Wholesaling"}]
[null,null,null,null,null,null,null,null,null,null,null,null,null,null,null,null,null,null,null,null,null,null,null,null,null,null,null,null,null,null,null,null,null,null,null,null,null,null,null,null,null,null,null,null,null,null,null,null,null,null,null,"3493","Telecommunication Goods Wholesaling","3493 - Telecommunication Goods Wholesaling"]
[null,null,null,null,null,null,null,null,null,null,null,null,null,null,null,null,null,null,null,null,null,null,null,null,null,null,null,null,null,null,null,null,null,null,null,null,null,null,null,null,null,null,null,null,null,null,null,null,null,null,null,"3494","Other Electrical and Electronic Goods Wholesaling","3494 - Other Electrical and Electronic Goods Wholesaling"]
[null,null,null,null,null,null,null,null,null,null,null,null,null,null,null,null,null,null,null,null,null,null,null,null,null,null,null,null,null,null,null,null,null,null,null,null,null,null,null,null,null,null,null,null,null,null,null,null,null,null,null,"3499","Other Machinery and Equipment Wholesaling n.e.c.","3499 - Other Machinery and Equipment Wholesaling n.e.c."]
[null,null,null,null,null,null,null,null,null,null,null,null,null,null,null,null,null,null,null,null,null,null,null,null,null,null,null,null,null,null,null,null,null,null,null,null,null,null,null,null,null,null,null,null,null,null,null,null,null,null,null,"3501","Car Wholesaling","3501 - Car Wholesaling"]
[null,null,null,null,null,null,null,null,null,null,null,null,null,null,null,null,null,null,null,null,null,null,null,null,null,null,null,null,null,null,null,null,null,null,null,null,null,null,null,null,null,null,null,null,null,null,null,null,null,null,null,"3502","Commercial Vehicle Wholesaling","3502 - Commercial Vehicle Wholesaling"]
[null,null,null,null,null,null,null,null,null,null,null,null,null,null,null,null,null,null,null,null,null,null,null,null,null,null,null,null,null,null,null,null,null,null,null,null,null,null,null,null,null,null,null,null,null,null,null,null,null,null,null,"3503","Trailer and Other Motor Vehicle Wholesaling","3503 - Trailer and Other Motor Vehicle Wholesaling"]
[null,null,null,null,null,null,null,null,null,null,null,null,null,null,null,null,null,null,null,null,null,null,null,null,null,null,null,null,null,null,null,null,null,null,null,null,null,null,null,null,null,null,null,null,null,null,null,null,null,null,null,"3504","Motor Vehicle New Parts Wholesaling","3504 - Motor Vehicle New Parts Wholesaling"]
[null,null,null,null,null,null,null,null,null,null,null,null,null,null,null,null,null,null,null,null,null,null,null,null,null,null,null,null,null,null,null,null,null,null,null,null,null,null,null,null,null,null,null,null,null,null,null,null,null,null,null,"3505","Motor Vehicle Dismantling and Used Parts Wholesaling","3505 - Motor Vehicle Dismantling and Used Parts Wholesaling"]
[null,null,null,null,null,null,null,null,null,null,null,null,null,null,null,null,null,null,null,null,null,null,null,null,null,null,null,null,null,null,null,null,null,null,null,null,null,null,null,null,null,null,null,null,null,null,null,null,null,null,null,"3601","General Line Grocery Wholesaling","3601 - General Line Grocery Wholesaling"]
[null,null,null,null,null,null,null,null,null,null,null,null,null,null,null,null,null,null,null,null,null,null,null,null,null,null,null,null,null,null,null,null,null,null,null,null,null,null,null,null,null,null,null,null,null,null,null,null,null,null,null,"3602","Meat, Poultry and Smallgoods Wholesaling","3602 - Meat, Poultry and Smallgoods Wholesaling"]
[null,null,null,null,null,null,null,null,null,null,null,null,null,null,null,null,null,null,null,null,null,null,null,null,null,null,null,null,null,null,null,null,null,null,null,null,null,null,null,null,null,null,null,null,null,null,null,null,null,null,null,"3603","Dairy Produce Wholesaling","3603 - Dairy Produce Wholesaling"]
[null,null,null,null,null,null,null,null,null,null,null,null,null,null,null,null,null,null,null,null,null,null,null,null,null,null,null,null,null,null,null,null,null,null,null,null,null,null,null,null,null,null,null,null,null,null,null,null,null,null,null,"3604","Fish and Seafood Wholesaling","3604 - Fish and Seafood Wholesaling"]
[null,null,null,null,null,null,null,null,null,null,null,null,null,null,null,null,null,null,null,null,null,null,null,null,null,null,null,null,null,null,null,null,null,null,null,null,null,null,null,null,null,null,null,null,null,null,null,null,null,null,null,"3605","Fruit and Vegetable Wholesaling","3605 - Fruit and Vegetable Wholesaling"]
[null,null,null,null,null,null,null,null,null,null,null,null,null,null,null,null,null,null,null,null,null,null,null,null,null,null,null,null,null,null,null,null,null,null,null,null,null,null,null,null,null,null,null,null,null,null,null,null,null,null,null,"3606","Liquor and Tobacco Product Wholesaling","3606 - Liquor and Tobacco Product Wholesaling"]
[null,null,null,null,null,null,null,null,null,null,null,null,null,null,null,null,null,null,null,null,null,null,null,null,null,null,null,null,null,null,null,null,null,null,null,null,null,null,null,null,null,null,null,null,null,null,null,null,null,null,null,"3609","Other Grocery Wholesaling","3609 - Other Grocery Wholesaling"]
[null,null,null,null,null,null,null,null,null,null,null,null,null,null,null,null,null,null,null,null,null,null,null,null,null,null,null,null,null,null,null,null,null,null,null,null,null,null,null,null,null,null,null,null,null,null,null,null,null,null,null,"3711","Textile Product Wholesaling","3711 - Textile Product Wholesaling"]
[null,null,null,null,null,null,null,null,null,null,null,null,null,null,null,null,null,null,null,null,null,null,null,null,null,null,null,null,null,null,null,null,null,null,null,null,null,null,null,null,null,null,null,null,null,null,null,null,null,null,null,"3712","Clothing and Footwear Wholesaling","3712 - Clothing and Footwear Wholesaling"]
[null,null,null,null,null,null,null,null,null,null,null,null,null,null,null,null,null,null,null,null,null,null,null,null,null,null,null,null,null,null,null,null,null,null,null,null,null,null,null,null,null,null,null,null,null,null,null,null,null,null,null,"3720","Pharmaceutical and Toiletry Goods Wholesaling","3720 - Pharmaceutical and Toiletry Goods Wholesaling"]
[null,null,null,null,null,null,null,null,null,null,null,null,null,null,null,null,null,null,null,null,null,null,null,null,null,null,null,null,null,null,null,null,null,null,null,null,null,null,null,null,null,null,null,null,null,null,null,null,null,null,null,"3731","Furniture and Floor Covering Wholesaling","3731 - Furniture and Floor Covering Wholesaling"]
[null,null,null,null,null,null,null,null,null,null,null,null,null,null,null,null,null,null,null,null,null,null,null,null,null,null,null,null,null,null,null,null,null,null,null,null,null,null,null,null,null,null,null,null,null,null,null,null,null,null,null,"3732","Jewellery and Watch Wholesaling","3732 - Jewellery and Watch Wholesaling"]
[null,null,null,null,null,null,null,null,null,null,null,null,null,null,null,null,null,null,null,null,null,null,null,null,null,null,null,null,null,null,null,null,null,null,null,null,null,null,null,null,null,null,null,null,null,null,null,null,null,null,null,"3733","Kitchen and Diningware Wholesaling","3733 - Kitchen and Diningware Wholesaling"]
[null,null,null,null,null,null,null,null,null,null,null,null,null,null,null,null,null,null,null,null,null,null,null,null,null,null,null,null,null,null,null,null,null,null,null,null,null,null,null,null,null,null,null,null,null,null,null,null,null,null,null,"3734","Toy and Sporting Goods Wholesaling","3734 - Toy and Sporting Goods Wholesaling"]
[null,null,null,null,null,null,null,null,null,null,null,null,null,null,null,null,null,null,null,null,null,null,null,null,null,null,null,null,null,null,null,null,null,null,null,null,null,null,null,null,null,null,null,null,null,null,null,null,null,null,null,"3735","Book and Magazine Wholesaling","3735 - Book and Magazine Wholesaling"]
[null,null,null,null,null,null,null,null,null,null,null,null,null,null,null,null,null,null,null,null,null,null,null,null,null,null,null,null,null,null,null,null,null,null,null,null,null,null,null,null,null,null,null,null,null,null,null,null,null,null,null,"3736","Paper Product Wholesaling","3736 - Paper Product Wholesaling"]
[null,null,null,null,null,null,null,null,null,null,null,null,null,null,null,null,null,null,null,null,null,null,null,null,null,null,null,null,null,null,null,null,null,null,null,null,null,null,null,null,null,null,null,null,null,null,null,null,null,null,null,"3739","Other Goods Wholesaling n.e.c.","3739 - Other Goods Wholesaling n.e.c."]
[null,null,null,null,null,null,null,null,null,null,null,null,null,null,null,null,null,null,null,null,null,null,null,null,null,null,null,null,null,null,null,null,null,null,null,null,null,null,null,null,null,null,null,null,null,null,null,null,null,null,null,"3800","Commission-Based Wholesaling","3800 - Commission-Based Wholesaling"]
[null,null,null,null,null,null,null,null,null,null,null,null,null,null,null,null,null,null,null,null,null,null,null,null,null,null,null,null,null,null,null,null,null,null,null,null,null,null,null,null,null,null,null,null,null,null,null,null,null,null,null,"3911","Car Retailing","3911 - Car Retailing"]
[null,null,null,null,null,null,null,null,null,null,null,null,null,null,null,null,null,null,null,null,null,null,null,null,null,null,null,null,null,null,null,null,null,null,null,null,null,null,null,null,null,null,null,null,null,null,null,null,null,null,null,"3912","Motor Cycle Retailing","3912 - Motor Cycle Retailing"]
[null,null,null,null,null,null,null,null,null,null,null,null,null,null,null,null,null,null,null,null,null,null,null,null,null,null,null,null,null,null,null,null,null,null,null,null,null,null,null,null,null,null,null,null,null,null,null,null,null,null,null,"3913","Trailer and Other Motor Vehicle Retailing","3913 - Trailer and Other Motor Vehicle Retailing"]
[null,null,null,null,null,null,null,null,null,null,null,null,null,null,null,null,null,null,null,null,null,null,null,null,null,null,null,null,null,null,null,null,null,null,null,null,null,null,null,null,null,null,null,null,null,null,null,null,null,null,null,"3921","Motor Vehicle Parts Retailing","3921 - Motor Vehicle Parts Retailing"]
[null,null,null,null,null,null,null,null,null,null,null,null,null,null,null,null,null,null,null,null,null,null,null,null,null,null,null,null,null,null,null,null,null,null,null,null,null,null,null,null,null,null,null,null,null,null,null,null,null,null,null,"3922","Tyre Retailing","3922 - Tyre Retailing"]
[null,null,null,null,null,null,null,null,null,null,null,null,null,null,null,null,null,null,null,null,null,null,null,null,null,null,null,null,null,null,null,null,null,null,null,null,null,null,null,null,null,null,null,null,null,null,null,null,null,null,null,"4000","Fuel Retailing","4000 - Fuel Retailing"]
[null,null,null,null,null,null,null,null,null,null,null,null,null,null,null,null,null,null,null,null,null,null,null,null,null,null,null,null,null,null,null,null,null,null,null,null,null,null,null,null,null,null,null,null,null,null,null,null,null,null,null,"4110","Supermarket and Grocery Stores","4110 - Supermarket and Grocery Stores"]
[null,null,null,null,null,null,null,null,null,null,null,null,null,null,null,null,null,null,null,null,null,null,null,null,null,null,null,null,null,null,null,null,null,null,null,null,null,null,null,null,null,null,null,null,null,null,null,null,null,null,null,"4121","Fresh Meat, Fish and Poultry Retailing","4121 - Fresh Meat, Fish and Poultry Retailing"]
[null,null,null,null,null,null,null,null,null,null,null,null,null,null,null,null,null,null,null,null,null,null,null,null,null,null,null,null,null,null,null,null,null,null,null,null,null,null,null,null,null,null,null,null,null,null,null,null,null,null,null,"4122","Fruit and Vegetable Retailing","4122 - Fruit and Vegetable Retailing"]
[null,null,null,null,null,null,null,null,null,null,null,null,null,null,null,null,null,null,null,null,null,null,null,null,null,null,null,null,null,null,null,null,null,null,null,null,null,null,null,null,null,null,null,null,null,null,null,null,null,null,null,"4123","Liquor Retailing","4123 - Liquor Retailing"]
[null,null,null,null,null,null,null,null,null,null,null,null,null,null,null,null,null,null,null,null,null,null,null,null,null,null,null,null,null,null,null,null,null,null,null,null,null,null,null,null,null,null,null,null,null,null,null,null,null,null,null,"4129","Other Specialised Food Retailing","4129 - Other Specialised Food Retailing"]
[null,null,null,null,null,null,null,null,null,null,null,null,null,null,null,null,null,null,null,null,null,null,null,null,null,null,null,null,null,null,null,null,null,null,null,null,null,null,null,null,null,null,null,null,null,null,null,null,null,null,null,"4211","Furniture Retailing","4211 - Furniture Retailing"]
[null,null,null,null,null,null,null,null,null,null,null,null,null,null,null,null,null,null,null,null,null,null,null,null,null,null,null,null,null,null,null,null,null,null,null,null,null,null,null,null,null,null,null,null,null,null,null,null,null,null,null,"4212","Floor Coverings Retailing","4212 - Floor Coverings Retailing"]
[null,null,null,null,null,null,null,null,null,null,null,null,null,null,null,null,null,null,null,null,null,null,null,null,null,null,null,null,null,null,null,null,null,null,null,null,null,null,null,null,null,null,null,null,null,null,null,null,null,null,null,"4213","Houseware Retailing","4213 - Houseware Retailing"]
[null,null,null,null,null,null,null,null,null,null,null,null,null,null,null,null,null,null,null,null,null,null,null,null,null,null,null,null,null,null,null,null,null,null,null,null,null,null,null,null,null,null,null,null,null,null,null,null,null,null,null,"4214","Manchester and Other Textile Goods Retailing","4214 - Manchester and Other Textile Goods Retailing"]
[null,null,null,null,null,null,null,null,null,null,null,null,null,null,null,null,null,null,null,null,null,null,null,null,null,null,null,null,null,null,null,null,null,null,null,null,null,null,null,null,null,null,null,null,null,null,null,null,null,null,null,"4221","Electrical, Electronic and Gas Appliance Retailing","4221 - Electrical, Electronic and Gas Appliance Retailing"]
[null,null,null,null,null,null,null,null,null,null,null,null,null,null,null,null,null,null,null,null,null,null,null,null,null,null,null,null,null,null,null,null,null,null,null,null,null,null,null,null,null,null,null,null,null,null,null,null,null,null,null,"4222","Computer and Computer Peripheral Retailing","4222 - Computer and Computer Peripheral Retailing"]
[null,null,null,null,null,null,null,null,null,null,null,null,null,null,null,null,null,null,null,null,null,null,null,null,null,null,null,null,null,null,null,null,null,null,null,null,null,null,null,null,null,null,null,null,null,null,null,null,null,null,null,"4229","Other Electrical and Electronic Goods Retailing","4229 - Other Electrical and Electronic Goods Retailing"]
[null,null,null,null,null,null,null,null,null,null,null,null,null,null,null,null,null,null,null,null,null,null,null,null,null,null,null,null,null,null,null,null,null,null,null,null,null,null,null,null,null,null,null,null,null,null,null,null,null,null,null,"4231","Hardware and Building Supplies Retailing","4231 - Hardware and Building Supplies Retailing"]
[null,null,null,null,null,null,null,null,null,null,null,null,null,null,null,null,null,null,null,null,null,null,null,null,null,null,null,null,null,null,null,null,null,null,null,null,null,null,null,null,null,null,null,null,null,null,null,null,null,null,null,"4232","Garden Supplies Retailing","4232 - Garden Supplies Retailing"]
[null,null,null,null,null,null,null,null,null,null,null,null,null,null,null,null,null,null,null,null,null,null,null,null,null,null,null,null,null,null,null,null,null,null,null,null,null,null,null,null,null,null,null,null,null,null,null,null,null,null,null,"4241","Sport and Camping Equipment Retailing","4241 - Sport and Camping Equipment Retailing"]
[null,null,null,null,null,null,null,null,null,null,null,null,null,null,null,null,null,null,null,null,null,null,null,null,null,null,null,null,null,null,null,null,null,null,null,null,null,null,null,null,null,null,null,null,null,null,null,null,null,null,null,"4242","Entertainment Media Retailing","4242 - Entertainment Media Retailing"]
[null,null,null,null,null,null,null,null,null,null,null,null,null,null,null,null,null,null,null,null,null,null,null,null,null,null,null,null,null,null,null,null,null,null,null,null,null,null,null,null,null,null,null,null,null,null,null,null,null,null,null,"4243","Toy and Game Retailing","4243 - Toy and Game Retailing"]
[null,null,null,null,null,null,null,null,null,null,null,null,null,null,null,null,null,null,null,null,null,null,null,null,null,null,null,null,null,null,null,null,null,null,null,null,null,null,null,null,null,null,null,null,null,null,null,null,null,null,null,"4244","Newspaper and Book Retailing","4244 - Newspaper and Book Retailing"]
[null,null,null,null,null,null,null,null,null,null,null,null,null,null,null,null,null,null,null,null,null,null,null,null,null,null,null,null,null,null,null,null,null,null,null,null,null,null,null,null,null,null,null,null,null,null,null,null,null,null,null,"4245","Marine Equipment Retailing","4245 - Marine Equipment Retailing"]
[null,null,null,null,null,null,null,null,null,null,null,null,null,null,null,null,null,null,null,null,null,null,null,null,null,null,null,null,null,null,null,null,null,null,null,null,null,null,null,null,null,null,null,null,null,null,null,null,null,null,null,"4251","Clothing Retailing","4251 - Clothing Retailing"]
[null,null,null,null,null,null,null,null,null,null,null,null,null,null,null,null,null,null,null,null,null,null,null,null,null,null,null,null,null,null,null,null,null,null,null,null,null,null,null,null,null,null,null,null,null,null,null,null,null,null,null,"4252","Footwear Retailing","4252 - Footwear Retailing"]
[null,null,null,null,null,null,null,null,null,null,null,null,null,null,null,null,null,null,null,null,null,null,null,null,null,null,null,null,null,null,null,null,null,null,null,null,null,null,null,null,null,null,null,null,null,null,null,null,null,null,null,"4253","Watch and Jewellery Retailing","4253 - Watch and Jewellery Retailing"]
[null,null,null,null,null,null,null,null,null,null,null,null,null,null,null,null,null,null,null,null,null,null,null,null,null,null,null,null,null,null,null,null,null,null,null,null,null,null,null,null,null,null,null,null,null,null,null,null,null,null,null,"4259","Other Personal Accessory Retailing","4259 - Other Personal Accessory Retailing"]
[null,null,null,null,null,null,null,null,null,null,null,null,null,null,null,null,null,null,null,null,null,null,null,null,null,null,null,null,null,null,null,null,null,null,null,null,null,null,null,null,null,null,null,null,null,null,null,null,null,null,null,"4260","Department Stores","4260 - Department Stores"]
[null,null,null,null,null,null,null,null,null,null,null,null,null,null,null,null,null,null,null,null,null,null,null,null,null,null,null,null,null,null,null,null,null,null,null,null,null,null,null,null,null,null,null,null,null,null,null,null,null,null,null,"4271","Pharmaceutical, Cosmetic and Toiletry Goods Retailing","4271 - Pharmaceutical, Cosmetic and Toiletry Goods Retailing"]
[null,null,null,null,null,null,null,null,null,null,null,null,null,null,null,null,null,null,null,null,null,null,null,null,null,null,null,null,null,null,null,null,null,null,null,null,null,null,null,null,null,null,null,null,null,null,null,null,null,null,null,"4272","Stationery Goods Retailing","4272 - Stationery Goods Retailing"]
[null,null,null,null,null,null,null,null,null,null,null,null,null,null,null,null,null,null,null,null,null,null,null,null,null,null,null,null,null,null,null,null,null,null,null,null,null,null,null,null,null,null,null,null,null,null,null,null,null,null,null,"4273","Antique and Used Goods Retailing","4273 - Antique and Used Goods Retailing"]
[null,null,null,null,null,null,null,null,null,null,null,null,null,null,null,null,null,null,null,null,null,null,null,null,null,null,null,null,null,null,null,null,null,null,null,null,null,null,null,null,null,null,null,null,null,null,null,null,null,null,null,"4274","Flower Retailing","4274 - Flower Retailing"]
[null,null,null,null,null,null,null,null,null,null,null,null,null,null,null,null,null,null,null,null,null,null,null,null,null,null,null,null,null,null,null,null,null,null,null,null,null,null,null,null,null,null,null,null,null,null,null,null,null,null,null,"4279","Other Store-Based Retailing n.e.c.","4279 - Other Store-Based Retailing n.e.c."]
[null,null,null,null,null,null,null,null,null,null,null,null,null,null,null,null,null,null,null,null,null,null,null,null,null,null,null,null,null,null,null,null,null,null,null,null,null,null,null,null,null,null,null,null,null,null,null,null,null,null,null,"4310","Non-Store Retailing","4310 - Non-Store Retailing"]
[null,null,null,null,null,null,null,null,null,null,null,null,null,null,null,null,null,null,null,null,null,null,null,null,null,null,null,null,null,null,null,null,null,null,null,null,null,null,null,null,null,null,null,null,null,null,null,null,null,null,null,"4320","Retail Commission-Based Buying and/or Selling","4320 - Retail Commission-Based Buying and/or Selling"]
[null,null,null,null,null,null,null,null,null,null,null,null,null,null,null,null,null,null,null,null,null,null,null,null,null,null,null,null,null,null,null,null,null,null,null,null,null,null,null,null,null,null,null,null,null,null,null,null,null,null,null,"4400","Accommodation",{"$f":"AZ327&\" - \"&BA327","v":"4400 - Accommodation"}]
[null,null,null,null,null,null,null,null,null,null,null,null,null,null,null,null,null,null,null,null,null,null,null,null,null,null,null,null,null,null,null,null,null,null,null,null,null,null,null,null,null,null,null,null,null,null,null,null,null,null,null,"4511","Cafes and Restaurants","4511 - Cafes and Restaurants"]
[null,null,null,null,null,null,null,null,null,null,null,null,null,null,null,null,null,null,null,null,null,null,null,null,null,null,null,null,null,null,null,null,null,null,null,null,null,null,null,null,null,null,null,null,null,null,null,null,null,null,null,"4512","Takeaway Food Services","4512 - Takeaway Food Services"]
[null,null,null,null,null,null,null,null,null,null,null,null,null,null,null,null,null,null,null,null,null,null,null,null,null,null,null,null,null,null,null,null,null,null,null,null,null,null,null,null,null,null,null,null,null,null,null,null,null,null,null,"4513","Catering Services","4513 - Catering Services"]
[null,null,null,null,null,null,null,null,null,null,null,null,null,null,null,null,null,null,null,null,null,null,null,null,null,null,null,null,null,null,null,null,null,null,null,null,null,null,null,null,null,null,null,null,null,null,null,null,null,null,null,"4520","Pubs, Taverns and Bars","4520 - Pubs, Taverns and Bars"]
[null,null,null,null,null,null,null,null,null,null,null,null,null,null,null,null,null,null,null,null,null,null,null,null,null,null,null,null,null,null,null,null,null,null,null,null,null,null,null,null,null,null,null,null,null,null,null,null,null,null,null,"4530","Clubs (Hospitality)","4530 - Clubs (Hospitality)"]
[null,null,null,null,null,null,null,null,null,null,null,null,null,null,null,null,null,null,null,null,null,null,null,null,null,null,null,null,null,null,null,null,null,null,null,null,null,null,null,null,null,null,null,null,null,null,null,null,null,null,null,"4610","Road Freight Transport","4610 - Road Freight Transport"]
[null,null,null,null,null,null,null,null,null,null,null,null,null,null,null,null,null,null,null,null,null,null,null,null,null,null,null,null,null,null,null,null,null,null,null,null,null,null,null,null,null,null,null,null,null,null,null,null,null,null,null,"4621","Interurban and Rural Bus Transport","4621 - Interurban and Rural Bus Transport"]
[null,null,null,null,null,null,null,null,null,null,null,null,null,null,null,null,null,null,null,null,null,null,null,null,null,null,null,null,null,null,null,null,null,null,null,null,null,null,null,null,null,null,null,null,null,null,null,null,null,null,null,"4622","Urban Bus Transport (Including Tramway)","4622 - Urban Bus Transport (Including Tramway)"]
[null,null,null,null,null,null,null,null,null,null,null,null,null,null,null,null,null,null,null,null,null,null,null,null,null,null,null,null,null,null,null,null,null,null,null,null,null,null,null,null,null,null,null,null,null,null,null,null,null,null,null,"4623","Taxi and Other Road Transport","4623 - Taxi and Other Road Transport"]
[null,null,null,null,null,null,null,null,null,null,null,null,null,null,null,null,null,null,null,null,null,null,null,null,null,null,null,null,null,null,null,null,null,null,null,null,null,null,null,null,null,null,null,null,null,null,null,null,null,null,null,"4710","Rail Freight Transport","4710 - Rail Freight Transport"]
[null,null,null,null,null,null,null,null,null,null,null,null,null,null,null,null,null,null,null,null,null,null,null,null,null,null,null,null,null,null,null,null,null,null,null,null,null,null,null,null,null,null,null,null,null,null,null,null,null,null,null,"4720","Rail Passenger Transport","4720 - Rail Passenger Transport"]
[null,null,null,null,null,null,null,null,null,null,null,null,null,null,null,null,null,null,null,null,null,null,null,null,null,null,null,null,null,null,null,null,null,null,null,null,null,null,null,null,null,null,null,null,null,null,null,null,null,null,null,"4810","Water Freight Transport","4810 - Water Freight Transport"]
[null,null,null,null,null,null,null,null,null,null,null,null,null,null,null,null,null,null,null,null,null,null,null,null,null,null,null,null,null,null,null,null,null,null,null,null,null,null,null,null,null,null,null,null,null,null,null,null,null,null,null,"4820","Water Passenger Transport","4820 - Water Passenger Transport"]
[null,null,null,null,null,null,null,null,null,null,null,null,null,null,null,null,null,null,null,null,null,null,null,null,null,null,null,null,null,null,null,null,null,null,null,null,null,null,null,null,null,null,null,null,null,null,null,null,null,null,null,"4900","Air and Space Transport","4900 - Air and Space Transport"]
[null,null,null,null,null,null,null,null,null,null,null,null,null,null,null,null,null,null,null,null,null,null,null,null,null,null,null,null,null,null,null,null,null,null,null,null,null,null,null,null,null,null,null,null,null,null,null,null,null,null,null,"5010","Scenic and Sightseeing Transport","5010 - Scenic and Sightseeing Transport"]
[null,null,null,null,null,null,null,null,null,null,null,null,null,null,null,null,null,null,null,null,null,null,null,null,null,null,null,null,null,null,null,null,null,null,null,null,null,null,null,null,null,null,null,null,null,null,null,null,null,null,null,"5021","Pipeline Transport","5021 - Pipeline Transport"]
[null,null,null,null,null,null,null,null,null,null,null,null,null,null,null,null,null,null,null,null,null,null,null,null,null,null,null,null,null,null,null,null,null,null,null,null,null,null,null,null,null,null,null,null,null,null,null,null,null,null,null,"5029","Other Transport n.e.c.","5029 - Other Transport n.e.c."]
[null,null,null,null,null,null,null,null,null,null,null,null,null,null,null,null,null,null,null,null,null,null,null,null,null,null,null,null,null,null,null,null,null,null,null,null,null,null,null,null,null,null,null,null,null,null,null,null,null,null,null,"5101","Postal Services","5101 - Postal Services"]
[null,null,null,null,null,null,null,null,null,null,null,null,null,null,null,null,null,null,null,null,null,null,null,null,null,null,null,null,null,null,null,null,null,null,null,null,null,null,null,null,null,null,null,null,null,null,null,null,null,null,null,"5102","Courier Pick-up and Delivery Services","5102 - Courier Pick-up and Delivery Services"]
[null,null,null,null,null,null,null,null,null,null,null,null,null,null,null,null,null,null,null,null,null,null,null,null,null,null,null,null,null,null,null,null,null,null,null,null,null,null,null,null,null,null,null,null,null,null,null,null,null,null,null,"5211","Stevedoring Services","5211 - Stevedoring Services"]
[null,null,null,null,null,null,null,null,null,null,null,null,null,null,null,null,null,null,null,null,null,null,null,null,null,null,null,null,null,null,null,null,null,null,null,null,null,null,null,null,null,null,null,null,null,null,null,null,null,null,null,"5212","Port and Water Transport Terminal Operations","5212 - Port and Water Transport Terminal Operations"]
[null,null,null,null,null,null,null,null,null,null,null,null,null,null,null,null,null,null,null,null,null,null,null,null,null,null,null,null,null,null,null,null,null,null,null,null,null,null,null,null,null,null,null,null,null,null,null,null,null,null,null,"5219","Other Water Transport Support Services","5219 - Other Water Transport Support Services"]
[null,null,null,null,null,null,null,null,null,null,null,null,null,null,null,null,null,null,null,null,null,null,null,null,null,null,null,null,null,null,null,null,null,null,null,null,null,null,null,null,null,null,null,null,null,null,null,null,null,null,null,"5220","Airport Operations and Other Air Transport Support Services","5220 - Airport Operations and Other Air Transport Support Services"]
[null,null,null,null,null,null,null,null,null,null,null,null,null,null,null,null,null,null,null,null,null,null,null,null,null,null,null,null,null,null,null,null,null,null,null,null,null,null,null,null,null,null,null,null,null,null,null,null,null,null,null,"5291","Customs Agency Services","5291 - Customs Agency Services"]
[null,null,null,null,null,null,null,null,null,null,null,null,null,null,null,null,null,null,null,null,null,null,null,null,null,null,null,null,null,null,null,null,null,null,null,null,null,null,null,null,null,null,null,null,null,null,null,null,null,null,null,"5292","Freight Forwarding Services","5292 - Freight Forwarding Services"]
[null,null,null,null,null,null,null,null,null,null,null,null,null,null,null,null,null,null,null,null,null,null,null,null,null,null,null,null,null,null,null,null,null,null,null,null,null,null,null,null,null,null,null,null,null,null,null,null,null,null,null,"5299","Other Transport Support Services n.e.c.","5299 - Other Transport Support Services n.e.c."]
[null,null,null,null,null,null,null,null,null,null,null,null,null,null,null,null,null,null,null,null,null,null,null,null,null,null,null,null,null,null,null,null,null,null,null,null,null,null,null,null,null,null,null,null,null,null,null,null,null,null,null,"5301","Grain Storage Services","5301 - Grain Storage Services"]
[null,null,null,null,null,null,null,null,null,null,null,null,null,null,null,null,null,null,null,null,null,null,null,null,null,null,null,null,null,null,null,null,null,null,null,null,null,null,null,null,null,null,null,null,null,null,null,null,null,null,null,"5309","Other Warehousing and Storage Services","5309 - Other Warehousing and Storage Services"]
[null,null,null,null,null,null,null,null,null,null,null,null,null,null,null,null,null,null,null,null,null,null,null,null,null,null,null,null,null,null,null,null,null,null,null,null,null,null,null,null,null,null,null,null,null,null,null,null,null,null,null,"5411","Newspaper Publishing","5411 - Newspaper Publishing"]
[null,null,null,null,null,null,null,null,null,null,null,null,null,null,null,null,null,null,null,null,null,null,null,null,null,null,null,null,null,null,null,null,null,null,null,null,null,null,null,null,null,null,null,null,null,null,null,null,null,null,null,"5412","Magazine and Other Periodical Publishing","5412 - Magazine and Other Periodical Publishing"]
[null,null,null,null,null,null,null,null,null,null,null,null,null,null,null,null,null,null,null,null,null,null,null,null,null,null,null,null,null,null,null,null,null,null,null,null,null,null,null,null,null,null,null,null,null,null,null,null,null,null,null,"5413","Book Publishing","5413 - Book Publishing"]
[null,null,null,null,null,null,null,null,null,null,null,null,null,null,null,null,null,null,null,null,null,null,null,null,null,null,null,null,null,null,null,null,null,null,null,null,null,null,null,null,null,null,null,null,null,null,null,null,null,null,null,"5414","Directory and Mailing List Publishing","5414 - Directory and Mailing List Publishing"]
[null,null,null,null,null,null,null,null,null,null,null,null,null,null,null,null,null,null,null,null,null,null,null,null,null,null,null,null,null,null,null,null,null,null,null,null,null,null,null,null,null,null,null,null,null,null,null,null,null,null,null,"5419","Other Publishing (except Software, Music and Internet)","5419 - Other Publishing (except Software, Music and Internet)"]
[null,null,null,null,null,null,null,null,null,null,null,null,null,null,null,null,null,null,null,null,null,null,null,null,null,null,null,null,null,null,null,null,null,null,null,null,null,null,null,null,null,null,null,null,null,null,null,null,null,null,null,"5420","Software Publishing","5420 - Software Publishing"]
[null,null,null,null,null,null,null,null,null,null,null,null,null,null,null,null,null,null,null,null,null,null,null,null,null,null,null,null,null,null,null,null,null,null,null,null,null,null,null,null,null,null,null,null,null,null,null,null,null,null,null,"5511","Motion Picture and Video Production","5511 - Motion Picture and Video Production"]
[null,null,null,null,null,null,null,null,null,null,null,null,null,null,null,null,null,null,null,null,null,null,null,null,null,null,null,null,null,null,null,null,null,null,null,null,null,null,null,null,null,null,null,null,null,null,null,null,null,null,null,"5512","Motion Picture and Video Distribution","5512 - Motion Picture and Video Distribution"]
[null,null,null,null,null,null,null,null,null,null,null,null,null,null,null,null,null,null,null,null,null,null,null,null,null,null,null,null,null,null,null,null,null,null,null,null,null,null,null,null,null,null,null,null,null,null,null,null,null,null,null,"5513","Motion Picture Exhibition","5513 - Motion Picture Exhibition"]
[null,null,null,null,null,null,null,null,null,null,null,null,null,null,null,null,null,null,null,null,null,null,null,null,null,null,null,null,null,null,null,null,null,null,null,null,null,null,null,null,null,null,null,null,null,null,null,null,null,null,null,"5514","Post-production Services and Other Motion Picture and Video Activities","5514 - Post-production Services and Other Motion Picture and Video Activities"]
[null,null,null,null,null,null,null,null,null,null,null,null,null,null,null,null,null,null,null,null,null,null,null,null,null,null,null,null,null,null,null,null,null,null,null,null,null,null,null,null,null,null,null,null,null,null,null,null,null,null,null,"5521","Music Publishing","5521 - Music Publishing"]
[null,null,null,null,null,null,null,null,null,null,null,null,null,null,null,null,null,null,null,null,null,null,null,null,null,null,null,null,null,null,null,null,null,null,null,null,null,null,null,null,null,null,null,null,null,null,null,null,null,null,null,"5522","Music and Other Sound Recording Activities","5522 - Music and Other Sound Recording Activities"]
[null,null,null,null,null,null,null,null,null,null,null,null,null,null,null,null,null,null,null,null,null,null,null,null,null,null,null,null,null,null,null,null,null,null,null,null,null,null,null,null,null,null,null,null,null,null,null,null,null,null,null,"5610","Radio Broadcasting","5610 - Radio Broadcasting"]
[null,null,null,null,null,null,null,null,null,null,null,null,null,null,null,null,null,null,null,null,null,null,null,null,null,null,null,null,null,null,null,null,null,null,null,null,null,null,null,null,null,null,null,null,null,null,null,null,null,null,null,"5621","Free-to-Air Television Broadcasting","5621 - Free-to-Air Television Broadcasting"]
[null,null,null,null,null,null,null,null,null,null,null,null,null,null,null,null,null,null,null,null,null,null,null,null,null,null,null,null,null,null,null,null,null,null,null,null,null,null,null,null,null,null,null,null,null,null,null,null,null,null,null,"5622","Cable and Other Subscription Broadcasting","5622 - Cable and Other Subscription Broadcasting"]
[null,null,null,null,null,null,null,null,null,null,null,null,null,null,null,null,null,null,null,null,null,null,null,null,null,null,null,null,null,null,null,null,null,null,null,null,null,null,null,null,null,null,null,null,null,null,null,null,null,null,null,"5700","Internet Publishing and Broadcasting","5700 - Internet Publishing and Broadcasting"]
[null,null,null,null,null,null,null,null,null,null,null,null,null,null,null,null,null,null,null,null,null,null,null,null,null,null,null,null,null,null,null,null,null,null,null,null,null,null,null,null,null,null,null,null,null,null,null,null,null,null,null,"5801","Wired Telecommunications Network Operation","5801 - Wired Telecommunications Network Operation"]
[null,null,null,null,null,null,null,null,null,null,null,null,null,null,null,null,null,null,null,null,null,null,null,null,null,null,null,null,null,null,null,null,null,null,null,null,null,null,null,null,null,null,null,null,null,null,null,null,null,null,null,"5802","Other Telecommunications Network Operation","5802 - Other Telecommunications Network Operation"]
[null,null,null,null,null,null,null,null,null,null,null,null,null,null,null,null,null,null,null,null,null,null,null,null,null,null,null,null,null,null,null,null,null,null,null,null,null,null,null,null,null,null,null,null,null,null,null,null,null,null,null,"5809","Other Telecommunications Services","5809 - Other Telecommunications Services"]
[null,null,null,null,null,null,null,null,null,null,null,null,null,null,null,null,null,null,null,null,null,null,null,null,null,null,null,null,null,null,null,null,null,null,null,null,null,null,null,null,null,null,null,null,null,null,null,null,null,null,null,"5910","Internet Service Providers and Web Search Portals","5910 - Internet Service Providers and Web Search Portals"]
[null,null,null,null,null,null,null,null,null,null,null,null,null,null,null,null,null,null,null,null,null,null,null,null,null,null,null,null,null,null,null,null,null,null,null,null,null,null,null,null,null,null,null,null,null,null,null,null,null,null,null,"5921","Data Processing and Web Hosting Services","5921 - Data Processing and Web Hosting Services"]
[null,null,null,null,null,null,null,null,null,null,null,null,null,null,null,null,null,null,null,null,null,null,null,null,null,null,null,null,null,null,null,null,null,null,null,null,null,null,null,null,null,null,null,null,null,null,null,null,null,null,null,"5922","Electronic Information Storage Services","5922 - Electronic Information Storage Services"]
[null,null,null,null,null,null,null,null,null,null,null,null,null,null,null,null,null,null,null,null,null,null,null,null,null,null,null,null,null,null,null,null,null,null,null,null,null,null,null,null,null,null,null,null,null,null,null,null,null,null,null,"6010","Libraries and Archives","6010 - Libraries and Archives"]
[null,null,null,null,null,null,null,null,null,null,null,null,null,null,null,null,null,null,null,null,null,null,null,null,null,null,null,null,null,null,null,null,null,null,null,null,null,null,null,null,null,null,null,null,null,null,null,null,null,null,null,"6020","Other Information Services","6020 - Other Information Services"]
[null,null,null,null,null,null,null,null,null,null,null,null,null,null,null,null,null,null,null,null,null,null,null,null,null,null,null,null,null,null,null,null,null,null,null,null,null,null,null,null,null,null,null,null,null,null,null,null,null,null,null,"6210","Central Banking","6210 - Central Banking"]
[null,null,null,null,null,null,null,null,null,null,null,null,null,null,null,null,null,null,null,null,null,null,null,null,null,null,null,null,null,null,null,null,null,null,null,null,null,null,null,null,null,null,null,null,null,null,null,null,null,null,null,"6221","Banking","6221 - Banking"]
[null,null,null,null,null,null,null,null,null,null,null,null,null,null,null,null,null,null,null,null,null,null,null,null,null,null,null,null,null,null,null,null,null,null,null,null,null,null,null,null,null,null,null,null,null,null,null,null,null,null,null,"6222","Building Society Operation","6222 - Building Society Operation"]
[null,null,null,null,null,null,null,null,null,null,null,null,null,null,null,null,null,null,null,null,null,null,null,null,null,null,null,null,null,null,null,null,null,null,null,null,null,null,null,null,null,null,null,null,null,null,null,null,null,null,null,"6223","Credit Union Operation","6223 - Credit Union Operation"]
[null,null,null,null,null,null,null,null,null,null,null,null,null,null,null,null,null,null,null,null,null,null,null,null,null,null,null,null,null,null,null,null,null,null,null,null,null,null,null,null,null,null,null,null,null,null,null,null,null,null,null,"6229","Other Depository Financial Intermediation","6229 - Other Depository Financial Intermediation"]
[null,null,null,null,null,null,null,null,null,null,null,null,null,null,null,null,null,null,null,null,null,null,null,null,null,null,null,null,null,null,null,null,null,null,null,null,null,null,null,null,null,null,null,null,null,null,null,null,null,null,null,"6230","Non-Depository Financing","6230 - Non-Depository Financing"]
[null,null,null,null,null,null,null,null,null,null,null,null,null,null,null,null,null,null,null,null,null,null,null,null,null,null,null,null,null,null,null,null,null,null,null,null,null,null,null,null,null,null,null,null,null,null,null,null,null,null,null,"6240","Financial Asset Investing","6240 - Financial Asset Investing"]
[null,null,null,null,null,null,null,null,null,null,null,null,null,null,null,null,null,null,null,null,null,null,null,null,null,null,null,null,null,null,null,null,null,null,null,null,null,null,null,null,null,null,null,null,null,null,null,null,null,null,null,"6310","Life Insurance","6310 - Life Insurance"]
[null,null,null,null,null,null,null,null,null,null,null,null,null,null,null,null,null,null,null,null,null,null,null,null,null,null,null,null,null,null,null,null,null,null,null,null,null,null,null,null,null,null,null,null,null,null,null,null,null,null,null,"6321","Health Insurance","6321 - Health Insurance"]
[null,null,null,null,null,null,null,null,null,null,null,null,null,null,null,null,null,null,null,null,null,null,null,null,null,null,null,null,null,null,null,null,null,null,null,null,null,null,null,null,null,null,null,null,null,null,null,null,null,null,null,"6322","General Insurance","6322 - General Insurance"]
[null,null,null,null,null,null,null,null,null,null,null,null,null,null,null,null,null,null,null,null,null,null,null,null,null,null,null,null,null,null,null,null,null,null,null,null,null,null,null,null,null,null,null,null,null,null,null,null,null,null,null,"6330","Superannuation Funds","6330 - Superannuation Funds"]
[null,null,null,null,null,null,null,null,null,null,null,null,null,null,null,null,null,null,null,null,null,null,null,null,null,null,null,null,null,null,null,null,null,null,null,null,null,null,null,null,null,null,null,null,null,null,null,null,null,null,null,"6411","Financial Asset Broking Services",{"$f":"AZ391&\" - \"&BA391","v":"6411 - Financial Asset Broking Services"}]
[null,null,null,null,null,null,null,null,null,null,null,null,null,null,null,null,null,null,null,null,null,null,null,null,null,null,null,null,null,null,null,null,null,null,null,null,null,null,null,null,null,null,null,null,null,null,null,null,null,null,null,"6419","Other Auxiliary Finance and Investment Services","6419 - Other Auxiliary Finance and Investment Services"]
[null,null,null,null,null,null,null,null,null,null,null,null,null,null,null,null,null,null,null,null,null,null,null,null,null,null,null,null,null,null,null,null,null,null,null,null,null,null,null,null,null,null,null,null,null,null,null,null,null,null,null,"6420","Auxiliary Insurance Services","6420 - Auxiliary Insurance Services"]
[null,null,null,null,null,null,null,null,null,null,null,null,null,null,null,null,null,null,null,null,null,null,null,null,null,null,null,null,null,null,null,null,null,null,null,null,null,null,null,null,null,null,null,null,null,null,null,null,null,null,null,"6611","Passenger Car Rental and Hiring","6611 - Passenger Car Rental and Hiring"]
[null,null,null,null,null,null,null,null,null,null,null,null,null,null,null,null,null,null,null,null,null,null,null,null,null,null,null,null,null,null,null,null,null,null,null,null,null,null,null,null,null,null,null,null,null,null,null,null,null,null,null,"6619","Other Motor Vehicle and Transport Equipment Rental and Hiring","6619 - Other Motor Vehicle and Transport Equipment Rental and Hiring"]
[null,null,null,null,null,null,null,null,null,null,null,null,null,null,null,null,null,null,null,null,null,null,null,null,null,null,null,null,null,null,null,null,null,null,null,null,null,null,null,null,null,null,null,null,null,null,null,null,null,null,null,"6620","Farm Animal and Bloodstock Leasing","6620 - Farm Animal and Bloodstock Leasing"]
[null,null,null,null,null,null,null,null,null,null,null,null,null,null,null,null,null,null,null,null,null,null,null,null,null,null,null,null,null,null,null,null,null,null,null,null,null,null,null,null,null,null,null,null,null,null,null,null,null,null,null,"6631","Heavy Machinery and Scaffolding Rental and Hiring","6631 - Heavy Machinery and Scaffolding Rental and Hiring"]
[null,null,null,null,null,null,null,null,null,null,null,null,null,null,null,null,null,null,null,null,null,null,null,null,null,null,null,null,null,null,null,null,null,null,null,null,null,null,null,null,null,null,null,null,null,null,null,null,null,null,null,"6632","Video and Other Electronic Media Rental and Hiring","6632 - Video and Other Electronic Media Rental and Hiring"]
[null,null,null,null,null,null,null,null,null,null,null,null,null,null,null,null,null,null,null,null,null,null,null,null,null,null,null,null,null,null,null,null,null,null,null,null,null,null,null,null,null,null,null,null,null,null,null,null,null,null,null,"6639","Other Goods and Equipment Rental and Hiring n.e.c.","6639 - Other Goods and Equipment Rental and Hiring n.e.c."]
[null,null,null,null,null,null,null,null,null,null,null,null,null,null,null,null,null,null,null,null,null,null,null,null,null,null,null,null,null,null,null,null,null,null,null,null,null,null,null,null,null,null,null,null,null,null,null,null,null,null,null,"6640","Non-Financial Intangible Assets (Except Copyrights) Leasing","6640 - Non-Financial Intangible Assets (Except Copyrights) Leasing"]
[null,null,null,null,null,null,null,null,null,null,null,null,null,null,null,null,null,null,null,null,null,null,null,null,null,null,null,null,null,null,null,null,null,null,null,null,null,null,null,null,null,null,null,null,null,null,null,null,null,null,null,"6711","Residential Property Operators","6711 - Residential Property Operators"]
[null,null,null,null,null,null,null,null,null,null,null,null,null,null,null,null,null,null,null,null,null,null,null,null,null,null,null,null,null,null,null,null,null,null,null,null,null,null,null,null,null,null,null,null,null,null,null,null,null,null,null,"6712","Non-Residential Property Operators","6712 - Non-Residential Property Operators"]
[null,null,null,null,null,null,null,null,null,null,null,null,null,null,null,null,null,null,null,null,null,null,null,null,null,null,null,null,null,null,null,null,null,null,null,null,null,null,null,null,null,null,null,null,null,null,null,null,null,null,null,"6720","Real Estate Services","6720 - Real Estate Services"]
[null,null,null,null,null,null,null,null,null,null,null,null,null,null,null,null,null,null,null,null,null,null,null,null,null,null,null,null,null,null,null,null,null,null,null,null,null,null,null,null,null,null,null,null,null,null,null,null,null,null,null,"6910","Scientific Research Services","6910 - Scientific Research Services"]
[null,null,null,null,null,null,null,null,null,null,null,null,null,null,null,null,null,null,null,null,null,null,null,null,null,null,null,null,null,null,null,null,null,null,null,null,null,null,null,null,null,null,null,null,null,null,null,null,null,null,null,"6921","Architectural Services","6921 - Architectural Services"]
[null,null,null,null,null,null,null,null,null,null,null,null,null,null,null,null,null,null,null,null,null,null,null,null,null,null,null,null,null,null,null,null,null,null,null,null,null,null,null,null,null,null,null,null,null,null,null,null,null,null,null,"6922","Surveying and Mapping Services","6922 - Surveying and Mapping Services"]
[null,null,null,null,null,null,null,null,null,null,null,null,null,null,null,null,null,null,null,null,null,null,null,null,null,null,null,null,null,null,null,null,null,null,null,null,null,null,null,null,null,null,null,null,null,null,null,null,null,null,null,"6923","Engineering Design and Engineering Consulting Services","6923 - Engineering Design and Engineering Consulting Services"]
[null,null,null,null,null,null,null,null,null,null,null,null,null,null,null,null,null,null,null,null,null,null,null,null,null,null,null,null,null,null,null,null,null,null,null,null,null,null,null,null,null,null,null,null,null,null,null,null,null,null,null,"6924","Other Specialised Design Services","6924 - Other Specialised Design Services"]
[null,null,null,null,null,null,null,null,null,null,null,null,null,null,null,null,null,null,null,null,null,null,null,null,null,null,null,null,null,null,null,null,null,null,null,null,null,null,null,null,null,null,null,null,null,null,null,null,null,null,null,"6925","Scientific Testing and Analysis Services","6925 - Scientific Testing and Analysis Services"]
[null,null,null,null,null,null,null,null,null,null,null,null,null,null,null,null,null,null,null,null,null,null,null,null,null,null,null,null,null,null,null,null,null,null,null,null,null,null,null,null,null,null,null,null,null,null,null,null,null,null,null,"6931","Legal Services","6931 - Legal Services"]
[null,null,null,null,null,null,null,null,null,null,null,null,null,null,null,null,null,null,null,null,null,null,null,null,null,null,null,null,null,null,null,null,null,null,null,null,null,null,null,null,null,null,null,null,null,null,null,null,null,null,null,"6932","Accounting Services","6932 - Accounting Services"]
[null,null,null,null,null,null,null,null,null,null,null,null,null,null,null,null,null,null,null,null,null,null,null,null,null,null,null,null,null,null,null,null,null,null,null,null,null,null,null,null,null,null,null,null,null,null,null,null,null,null,null,"6940","Advertising Services","6940 - Advertising Services"]
[null,null,null,null,null,null,null,null,null,null,null,null,null,null,null,null,null,null,null,null,null,null,null,null,null,null,null,null,null,null,null,null,null,null,null,null,null,null,null,null,null,null,null,null,null,null,null,null,null,null,null,"6950","Market Research and Statistical Services","6950 - Market Research and Statistical Services"]
[null,null,null,null,null,null,null,null,null,null,null,null,null,null,null,null,null,null,null,null,null,null,null,null,null,null,null,null,null,null,null,null,null,null,null,null,null,null,null,null,null,null,null,null,null,null,null,null,null,null,null,"6961","Corporate Head Office Management Services","6961 - Corporate Head Office Management Services"]
[null,null,null,null,null,null,null,null,null,null,null,null,null,null,null,null,null,null,null,null,null,null,null,null,null,null,null,null,null,null,null,null,null,null,null,null,null,null,null,null,null,null,null,null,null,null,null,null,null,null,null,"6962","Management Advice and Related Consulting Services","6962 - Management Advice and Related Consulting Services"]
[null,null,null,null,null,null,null,null,null,null,null,null,null,null,null,null,null,null,null,null,null,null,null,null,null,null,null,null,null,null,null,null,null,null,null,null,null,null,null,null,null,null,null,null,null,null,null,null,null,null,null,"6970","Veterinary Services","6970 - Veterinary Services"]
[null,null,null,null,null,null,null,null,null,null,null,null,null,null,null,null,null,null,null,null,null,null,null,null,null,null,null,null,null,null,null,null,null,null,null,null,null,null,null,null,null,null,null,null,null,null,null,null,null,null,null,"6991","Professional Photographic Services","6991 - Professional Photographic Services"]
[null,null,null,null,null,null,null,null,null,null,null,null,null,null,null,null,null,null,null,null,null,null,null,null,null,null,null,null,null,null,null,null,null,null,null,null,null,null,null,null,null,null,null,null,null,null,null,null,null,null,null,"6999","Other Professional, Scientific and Technical Services n.e.c.","6999 - Other Professional, Scientific and Technical Services n.e.c."]
[null,null,null,null,null,null,null,null,null,null,null,null,null,null,null,null,null,null,null,null,null,null,null,null,null,null,null,null,null,null,null,null,null,null,null,null,null,null,null,null,null,null,null,null,null,null,null,null,null,null,null,"7000","Computer System Design and Related Services","7000 - Computer System Design and Related Services"]
[null,null,null,null,null,null,null,null,null,null,null,null,null,null,null,null,null,null,null,null,null,null,null,null,null,null,null,null,null,null,null,null,null,null,null,null,null,null,null,null,null,null,null,null,null,null,null,null,null,null,null,"7211","Employment Placement and Recruitment Services","7211 - Employment Placement and Recruitment Services"]
[null,null,null,null,null,null,null,null,null,null,null,null,null,null,null,null,null,null,null,null,null,null,null,null,null,null,null,null,null,null,null,null,null,null,null,null,null,null,null,null,null,null,null,null,null,null,null,null,null,null,null,"7212","Labour Supply Services","7212 - Labour Supply Services"]
[null,null,null,null,null,null,null,null,null,null,null,null,null,null,null,null,null,null,null,null,null,null,null,null,null,null,null,null,null,null,null,null,null,null,null,null,null,null,null,null,null,null,null,null,null,null,null,null,null,null,null,"7220","Travel Agency and Tour Arrangement Services","7220 - Travel Agency and Tour Arrangement Services"]
[null,null,null,null,null,null,null,null,null,null,null,null,null,null,null,null,null,null,null,null,null,null,null,null,null,null,null,null,null,null,null,null,null,null,null,null,null,null,null,null,null,null,null,null,null,null,null,null,null,null,null,"7291","Office Administrative Services","7291 - Office Administrative Services"]
[null,null,null,null,null,null,null,null,null,null,null,null,null,null,null,null,null,null,null,null,null,null,null,null,null,null,null,null,null,null,null,null,null,null,null,null,null,null,null,null,null,null,null,null,null,null,null,null,null,null,null,"7292","Document Preparation Services","7292 - Document Preparation Services"]
[null,null,null,null,null,null,null,null,null,null,null,null,null,null,null,null,null,null,null,null,null,null,null,null,null,null,null,null,null,null,null,null,null,null,null,null,null,null,null,null,null,null,null,null,null,null,null,null,null,null,null,"7293","Credit Reporting and Debt Collection Services","7293 - Credit Reporting and Debt Collection Services"]
[null,null,null,null,null,null,null,null,null,null,null,null,null,null,null,null,null,null,null,null,null,null,null,null,null,null,null,null,null,null,null,null,null,null,null,null,null,null,null,null,null,null,null,null,null,null,null,null,null,null,null,"7294","Call Centre Operation","7294 - Call Centre Operation"]
[null,null,null,null,null,null,null,null,null,null,null,null,null,null,null,null,null,null,null,null,null,null,null,null,null,null,null,null,null,null,null,null,null,null,null,null,null,null,null,null,null,null,null,null,null,null,null,null,null,null,null,"7299","Other Administrative Services n.e.c.","7299 - Other Administrative Services n.e.c."]
[null,null,null,null,null,null,null,null,null,null,null,null,null,null,null,null,null,null,null,null,null,null,null,null,null,null,null,null,null,null,null,null,null,null,null,null,null,null,null,null,null,null,null,null,null,null,null,null,null,null,null,"7311","Building and Other Industrial Cleaning Services","7311 - Building and Other Industrial Cleaning Services"]
[null,null,null,null,null,null,null,null,null,null,null,null,null,null,null,null,null,null,null,null,null,null,null,null,null,null,null,null,null,null,null,null,null,null,null,null,null,null,null,null,null,null,null,null,null,null,null,null,null,null,null,"7312","Building Pest Control Services","7312 - Building Pest Control Services"]
[null,null,null,null,null,null,null,null,null,null,null,null,null,null,null,null,null,null,null,null,null,null,null,null,null,null,null,null,null,null,null,null,null,null,null,null,null,null,null,null,null,null,null,null,null,null,null,null,null,null,null,"7313","Gardening Services","7313 - Gardening Services"]
[null,null,null,null,null,null,null,null,null,null,null,null,null,null,null,null,null,null,null,null,null,null,null,null,null,null,null,null,null,null,null,null,null,null,null,null,null,null,null,null,null,null,null,null,null,null,null,null,null,null,null,"7320","Packaging Services","7320 - Packaging Services"]
[null,null,null,null,null,null,null,null,null,null,null,null,null,null,null,null,null,null,null,null,null,null,null,null,null,null,null,null,null,null,null,null,null,null,null,null,null,null,null,null,null,null,null,null,null,null,null,null,null,null,null,"7510","Central Government Administration","7510 - Central Government Administration"]
[null,null,null,null,null,null,null,null,null,null,null,null,null,null,null,null,null,null,null,null,null,null,null,null,null,null,null,null,null,null,null,null,null,null,null,null,null,null,null,null,null,null,null,null,null,null,null,null,null,null,null,"7520","State Government Administration","7520 - State Government Administration"]
[null,null,null,null,null,null,null,null,null,null,null,null,null,null,null,null,null,null,null,null,null,null,null,null,null,null,null,null,null,null,null,null,null,null,null,null,null,null,null,null,null,null,null,null,null,null,null,null,null,null,null,"7530","Local Government Administration","7530 - Local Government Administration"]
[null,null,null,null,null,null,null,null,null,null,null,null,null,null,null,null,null,null,null,null,null,null,null,null,null,null,null,null,null,null,null,null,null,null,null,null,null,null,null,null,null,null,null,null,null,null,null,null,null,null,null,"7540","Justice","7540 - Justice"]
[null,null,null,null,null,null,null,null,null,null,null,null,null,null,null,null,null,null,null,null,null,null,null,null,null,null,null,null,null,null,null,null,null,null,null,null,null,null,null,null,null,null,null,null,null,null,null,null,null,null,null,"7551","Domestic Government Representation","7551 - Domestic Government Representation"]
[null,null,null,null,null,null,null,null,null,null,null,null,null,null,null,null,null,null,null,null,null,null,null,null,null,null,null,null,null,null,null,null,null,null,null,null,null,null,null,null,null,null,null,null,null,null,null,null,null,null,null,"7552","Foreign Government Representation","7552 - Foreign Government Representation"]
[null,null,null,null,null,null,null,null,null,null,null,null,null,null,null,null,null,null,null,null,null,null,null,null,null,null,null,null,null,null,null,null,null,null,null,null,null,null,null,null,null,null,null,null,null,null,null,null,null,null,null,"7600","Defence","7600 - Defence"]
[null,null,null,null,null,null,null,null,null,null,null,null,null,null,null,null,null,null,null,null,null,null,null,null,null,null,null,null,null,null,null,null,null,null,null,null,null,null,null,null,null,null,null,null,null,null,null,null,null,null,null,"7711","Police Services","7711 - Police Services"]
[null,null,null,null,null,null,null,null,null,null,null,null,null,null,null,null,null,null,null,null,null,null,null,null,null,null,null,null,null,null,null,null,null,null,null,null,null,null,null,null,null,null,null,null,null,null,null,null,null,null,null,"7712","Investigation and Security Services","7712 - Investigation and Security Services"]
[null,null,null,null,null,null,null,null,null,null,null,null,null,null,null,null,null,null,null,null,null,null,null,null,null,null,null,null,null,null,null,null,null,null,null,null,null,null,null,null,null,null,null,null,null,null,null,null,null,null,null,"7713","Fire Protection and Other Emergency Services","7713 - Fire Protection and Other Emergency Services"]
[null,null,null,null,null,null,null,null,null,null,null,null,null,null,null,null,null,null,null,null,null,null,null,null,null,null,null,null,null,null,null,null,null,null,null,null,null,null,null,null,null,null,null,null,null,null,null,null,null,null,null,"7714","Correctional and Detention Services","7714 - Correctional and Detention Services"]
[null,null,null,null,null,null,null,null,null,null,null,null,null,null,null,null,null,null,null,null,null,null,null,null,null,null,null,null,null,null,null,null,null,null,null,null,null,null,null,null,null,null,null,null,null,null,null,null,null,null,null,"7719","Other Public Order and Safety Services","7719 - Other Public Order and Safety Services"]
[null,null,null,null,null,null,null,null,null,null,null,null,null,null,null,null,null,null,null,null,null,null,null,null,null,null,null,null,null,null,null,null,null,null,null,null,null,null,null,null,null,null,null,null,null,null,null,null,null,null,null,"7720","Regulatory Services","7720 - Regulatory Services"]
[null,null,null,null,null,null,null,null,null,null,null,null,null,null,null,null,null,null,null,null,null,null,null,null,null,null,null,null,null,null,null,null,null,null,null,null,null,null,null,null,null,null,null,null,null,null,null,null,null,null,null,"8010","Preschool Education","8010 - Preschool Education"]
[null,null,null,null,null,null,null,null,null,null,null,null,null,null,null,null,null,null,null,null,null,null,null,null,null,null,null,null,null,null,null,null,null,null,null,null,null,null,null,null,null,null,null,null,null,null,null,null,null,null,null,"8021","Primary Education","8021 - Primary Education"]
[null,null,null,null,null,null,null,null,null,null,null,null,null,null,null,null,null,null,null,null,null,null,null,null,null,null,null,null,null,null,null,null,null,null,null,null,null,null,null,null,null,null,null,null,null,null,null,null,null,null,null,"8022","Secondary Education","8022 - Secondary Education"]
[null,null,null,null,null,null,null,null,null,null,null,null,null,null,null,null,null,null,null,null,null,null,null,null,null,null,null,null,null,null,null,null,null,null,null,null,null,null,null,null,null,null,null,null,null,null,null,null,null,null,null,"8023","Combined Primary and Secondary Education","8023 - Combined Primary and Secondary Education"]
[null,null,null,null,null,null,null,null,null,null,null,null,null,null,null,null,null,null,null,null,null,null,null,null,null,null,null,null,null,null,null,null,null,null,null,null,null,null,null,null,null,null,null,null,null,null,null,null,null,null,null,"8024","Special School Education","8024 - Special School Education"]
[null,null,null,null,null,null,null,null,null,null,null,null,null,null,null,null,null,null,null,null,null,null,null,null,null,null,null,null,null,null,null,null,null,null,null,null,null,null,null,null,null,null,null,null,null,null,null,null,null,null,null,"8101","Technical and Vocational Education and Training","8101 - Technical and Vocational Education and Training"]
[null,null,null,null,null,null,null,null,null,null,null,null,null,null,null,null,null,null,null,null,null,null,null,null,null,null,null,null,null,null,null,null,null,null,null,null,null,null,null,null,null,null,null,null,null,null,null,null,null,null,null,"8102","Higher Education","8102 - Higher Education"]
[null,null,null,null,null,null,null,null,null,null,null,null,null,null,null,null,null,null,null,null,null,null,null,null,null,null,null,null,null,null,null,null,null,null,null,null,null,null,null,null,null,null,null,null,null,null,null,null,null,null,null,"8211","Sports and Physical Recreation Instruction","8211 - Sports and Physical Recreation Instruction"]
[null,null,null,null,null,null,null,null,null,null,null,null,null,null,null,null,null,null,null,null,null,null,null,null,null,null,null,null,null,null,null,null,null,null,null,null,null,null,null,null,null,null,null,null,null,null,null,null,null,null,null,"8212","Arts Education","8212 - Arts Education"]
[null,null,null,null,null,null,null,null,null,null,null,null,null,null,null,null,null,null,null,null,null,null,null,null,null,null,null,null,null,null,null,null,null,null,null,null,null,null,null,null,null,null,null,null,null,null,null,null,null,null,null,"8219","Adult, Community and Other Education n.e.c.","8219 - Adult, Community and Other Education n.e.c."]
[null,null,null,null,null,null,null,null,null,null,null,null,null,null,null,null,null,null,null,null,null,null,null,null,null,null,null,null,null,null,null,null,null,null,null,null,null,null,null,null,null,null,null,null,null,null,null,null,null,null,null,"8220","Educational Support Services",{"$f":"AZ455&\" - \"&BA455","v":"8220 - Educational Support Services"}]
[null,null,null,null,null,null,null,null,null,null,null,null,null,null,null,null,null,null,null,null,null,null,null,null,null,null,null,null,null,null,null,null,null,null,null,null,null,null,null,null,null,null,null,null,null,null,null,null,null,null,null,"8401","Hospitals (Except Psychiatric Hospitals)","8401 - Hospitals (Except Psychiatric Hospitals)"]
[null,null,null,null,null,null,null,null,null,null,null,null,null,null,null,null,null,null,null,null,null,null,null,null,null,null,null,null,null,null,null,null,null,null,null,null,null,null,null,null,null,null,null,null,null,null,null,null,null,null,null,"8402","Psychiatric Hospitals","8402 - Psychiatric Hospitals"]
[null,null,null,null,null,null,null,null,null,null,null,null,null,null,null,null,null,null,null,null,null,null,null,null,null,null,null,null,null,null,null,null,null,null,null,null,null,null,null,null,null,null,null,null,null,null,null,null,null,null,null,"8511","General Practice Medical Services","8511 - General Practice Medical Services"]
[null,null,null,null,null,null,null,null,null,null,null,null,null,null,null,null,null,null,null,null,null,null,null,null,null,null,null,null,null,null,null,null,null,null,null,null,null,null,null,null,null,null,null,null,null,null,null,null,null,null,null,"8512","Specialist Medical Services","8512 - Specialist Medical Services"]
[null,null,null,null,null,null,null,null,null,null,null,null,null,null,null,null,null,null,null,null,null,null,null,null,null,null,null,null,null,null,null,null,null,null,null,null,null,null,null,null,null,null,null,null,null,null,null,null,null,null,null,"8520","Pathology and Diagnostic Imaging Services","8520 - Pathology and Diagnostic Imaging Services"]
[null,null,null,null,null,null,null,null,null,null,null,null,null,null,null,null,null,null,null,null,null,null,null,null,null,null,null,null,null,null,null,null,null,null,null,null,null,null,null,null,null,null,null,null,null,null,null,null,null,null,null,"8531","Dental Services","8531 - Dental Services"]
[null,null,null,null,null,null,null,null,null,null,null,null,null,null,null,null,null,null,null,null,null,null,null,null,null,null,null,null,null,null,null,null,null,null,null,null,null,null,null,null,null,null,null,null,null,null,null,null,null,null,null,"8532","Optometry and Optical Dispensing","8532 - Optometry and Optical Dispensing"]
[null,null,null,null,null,null,null,null,null,null,null,null,null,null,null,null,null,null,null,null,null,null,null,null,null,null,null,null,null,null,null,null,null,null,null,null,null,null,null,null,null,null,null,null,null,null,null,null,null,null,null,"8533","Physiotherapy Services","8533 - Physiotherapy Services"]
[null,null,null,null,null,null,null,null,null,null,null,null,null,null,null,null,null,null,null,null,null,null,null,null,null,null,null,null,null,null,null,null,null,null,null,null,null,null,null,null,null,null,null,null,null,null,null,null,null,null,null,"8534","Chiropractic and Osteopathic Services","8534 - Chiropractic and Osteopathic Services"]
[null,null,null,null,null,null,null,null,null,null,null,null,null,null,null,null,null,null,null,null,null,null,null,null,null,null,null,null,null,null,null,null,null,null,null,null,null,null,null,null,null,null,null,null,null,null,null,null,null,null,null,"8539","Other Allied Health Services","8539 - Other Allied Health Services"]
[null,null,null,null,null,null,null,null,null,null,null,null,null,null,null,null,null,null,null,null,null,null,null,null,null,null,null,null,null,null,null,null,null,null,null,null,null,null,null,null,null,null,null,null,null,null,null,null,null,null,null,"8591","Ambulance Services","8591 - Ambulance Services"]
[null,null,null,null,null,null,null,null,null,null,null,null,null,null,null,null,null,null,null,null,null,null,null,null,null,null,null,null,null,null,null,null,null,null,null,null,null,null,null,null,null,null,null,null,null,null,null,null,null,null,null,"8599","Other Health Care Services n.e.c.","8599 - Other Health Care Services n.e.c."]
[null,null,null,null,null,null,null,null,null,null,null,null,null,null,null,null,null,null,null,null,null,null,null,null,null,null,null,null,null,null,null,null,null,null,null,null,null,null,null,null,null,null,null,null,null,null,null,null,null,null,null,"8601","Aged Care Residential Services","8601 - Aged Care Residential Services"]
[null,null,null,null,null,null,null,null,null,null,null,null,null,null,null,null,null,null,null,null,null,null,null,null,null,null,null,null,null,null,null,null,null,null,null,null,null,null,null,null,null,null,null,null,null,null,null,null,null,null,null,"8609","Other Residential Care Services","8609 - Other Residential Care Services"]
[null,null,null,null,null,null,null,null,null,null,null,null,null,null,null,null,null,null,null,null,null,null,null,null,null,null,null,null,null,null,null,null,null,null,null,null,null,null,null,null,null,null,null,null,null,null,null,null,null,null,null,"8710","Child Care Services","8710 - Child Care Services"]
[null,null,null,null,null,null,null,null,null,null,null,null,null,null,null,null,null,null,null,null,null,null,null,null,null,null,null,null,null,null,null,null,null,null,null,null,null,null,null,null,null,null,null,null,null,null,null,null,null,null,null,"8790","Other Social Assistance Services","8790 - Other Social Assistance Services"]
[null,null,null,null,null,null,null,null,null,null,null,null,null,null,null,null,null,null,null,null,null,null,null,null,null,null,null,null,null,null,null,null,null,null,null,null,null,null,null,null,null,null,null,null,null,null,null,null,null,null,null,"8910","Museum Operation","8910 - Museum Operation"]
[null,null,null,null,null,null,null,null,null,null,null,null,null,null,null,null,null,null,null,null,null,null,null,null,null,null,null,null,null,null,null,null,null,null,null,null,null,null,null,null,null,null,null,null,null,null,null,null,null,null,null,"8921","Zoological and Botanical Gardens Operation","8921 - Zoological and Botanical Gardens Operation"]
[null,null,null,null,null,null,null,null,null,null,null,null,null,null,null,null,null,null,null,null,null,null,null,null,null,null,null,null,null,null,null,null,null,null,null,null,null,null,null,null,null,null,null,null,null,null,null,null,null,null,null,"8922","Nature Reserves and Conservation Parks Operation","8922 - Nature Reserves and Conservation Parks Operation"]
[null,null,null,null,null,null,null,null,null,null,null,null,null,null,null,null,null,null,null,null,null,null,null,null,null,null,null,null,null,null,null,null,null,null,null,null,null,null,null,null,null,null,null,null,null,null,null,null,null,null,null,"9001","Performing Arts Operation","9001 - Performing Arts Operation"]
[null,null,null,null,null,null,null,null,null,null,null,null,null,null,null,null,null,null,null,null,null,null,null,null,null,null,null,null,null,null,null,null,null,null,null,null,null,null,null,null,null,null,null,null,null,null,null,null,null,null,null,"9002","Creative Artists, Musicians, Writers and Performers","9002 - Creative Artists, Musicians, Writers and Performers"]
[null,null,null,null,null,null,null,null,null,null,null,null,null,null,null,null,null,null,null,null,null,null,null,null,null,null,null,null,null,null,null,null,null,null,null,null,null,null,null,null,null,null,null,null,null,null,null,null,null,null,null,"9003","Performing Arts Venue Operation","9003 - Performing Arts Venue Operation"]
[null,null,null,null,null,null,null,null,null,null,null,null,null,null,null,null,null,null,null,null,null,null,null,null,null,null,null,null,null,null,null,null,null,null,null,null,null,null,null,null,null,null,null,null,null,null,null,null,null,null,null,"9111","Health and Fitness Centres and Gymnasia Operation","9111 - Health and Fitness Centres and Gymnasia Operation"]
[null,null,null,null,null,null,null,null,null,null,null,null,null,null,null,null,null,null,null,null,null,null,null,null,null,null,null,null,null,null,null,null,null,null,null,null,null,null,null,null,null,null,null,null,null,null,null,null,null,null,null,"9112","Sports and Physical Recreation Clubs and Sports Professionals","9112 - Sports and Physical Recreation Clubs and Sports Professionals"]
[null,null,null,null,null,null,null,null,null,null,null,null,null,null,null,null,null,null,null,null,null,null,null,null,null,null,null,null,null,null,null,null,null,null,null,null,null,null,null,null,null,null,null,null,null,null,null,null,null,null,null,"9113","Sports and Physical Recreation Venues, Grounds and Facilities Operation","9113 - Sports and Physical Recreation Venues, Grounds and Facilities Operation"]
[null,null,null,null,null,null,null,null,null,null,null,null,null,null,null,null,null,null,null,null,null,null,null,null,null,null,null,null,null,null,null,null,null,null,null,null,null,null,null,null,null,null,null,null,null,null,null,null,null,null,null,"9114","Sports and Physical Recreation Administrative Service","9114 - Sports and Physical Recreation Administrative Service"]
[null,null,null,null,null,null,null,null,null,null,null,null,null,null,null,null,null,null,null,null,null,null,null,null,null,null,null,null,null,null,null,null,null,null,null,null,null,null,null,null,null,null,null,null,null,null,null,null,null,null,null,"9121","Horse and Dog Racing Administration and Track Operation","9121 - Horse and Dog Racing Administration and Track Operation"]
[null,null,null,null,null,null,null,null,null,null,null,null,null,null,null,null,null,null,null,null,null,null,null,null,null,null,null,null,null,null,null,null,null,null,null,null,null,null,null,null,null,null,null,null,null,null,null,null,null,null,null,"9129","Other Horse and Dog Racing Activities","9129 - Other Horse and Dog Racing Activities"]
[null,null,null,null,null,null,null,null,null,null,null,null,null,null,null,null,null,null,null,null,null,null,null,null,null,null,null,null,null,null,null,null,null,null,null,null,null,null,null,null,null,null,null,null,null,null,null,null,null,null,null,"9131","Amusement Parks and Centres Operation","9131 - Amusement Parks and Centres Operation"]
[null,null,null,null,null,null,null,null,null,null,null,null,null,null,null,null,null,null,null,null,null,null,null,null,null,null,null,null,null,null,null,null,null,null,null,null,null,null,null,null,null,null,null,null,null,null,null,null,null,null,null,"9139","Amusement and Other Recreational Activities n.e.c.","9139 - Amusement and Other Recreational Activities n.e.c."]
[null,null,null,null,null,null,null,null,null,null,null,null,null,null,null,null,null,null,null,null,null,null,null,null,null,null,null,null,null,null,null,null,null,null,null,null,null,null,null,null,null,null,null,null,null,null,null,null,null,null,null,"9201","Casino Operation","9201 - Casino Operation"]
[null,null,null,null,null,null,null,null,null,null,null,null,null,null,null,null,null,null,null,null,null,null,null,null,null,null,null,null,null,null,null,null,null,null,null,null,null,null,null,null,null,null,null,null,null,null,null,null,null,null,null,"9202","Lottery Operation","9202 - Lottery Operation"]
[null,null,null,null,null,null,null,null,null,null,null,null,null,null,null,null,null,null,null,null,null,null,null,null,null,null,null,null,null,null,null,null,null,null,null,null,null,null,null,null,null,null,null,null,null,null,null,null,null,null,null,"9209","Other Gambling Activities","9209 - Other Gambling Activities"]
[null,null,null,null,null,null,null,null,null,null,null,null,null,null,null,null,null,null,null,null,null,null,null,null,null,null,null,null,null,null,null,null,null,null,null,null,null,null,null,null,null,null,null,null,null,null,null,null,null,null,null,"9411","Automotive Electrical Services","9411 - Automotive Electrical Services"]
[null,null,null,null,null,null,null,null,null,null,null,null,null,null,null,null,null,null,null,null,null,null,null,null,null,null,null,null,null,null,null,null,null,null,null,null,null,null,null,null,null,null,null,null,null,null,null,null,null,null,null,"9412","Automotive Body, Paint and Interior Repair","9412 - Automotive Body, Paint and Interior Repair"]
[null,null,null,null,null,null,null,null,null,null,null,null,null,null,null,null,null,null,null,null,null,null,null,null,null,null,null,null,null,null,null,null,null,null,null,null,null,null,null,null,null,null,null,null,null,null,null,null,null,null,null,"9419","Other Automotive Repair and Maintenance","9419 - Other Automotive Repair and Maintenance"]
[null,null,null,null,null,null,null,null,null,null,null,null,null,null,null,null,null,null,null,null,null,null,null,null,null,null,null,null,null,null,null,null,null,null,null,null,null,null,null,null,null,null,null,null,null,null,null,null,null,null,null,"9421","Domestic Appliance Repair and Maintenance","9421 - Domestic Appliance Repair and Maintenance"]
[null,null,null,null,null,null,null,null,null,null,null,null,null,null,null,null,null,null,null,null,null,null,null,null,null,null,null,null,null,null,null,null,null,null,null,null,null,null,null,null,null,null,null,null,null,null,null,null,null,null,null,"9422","Electronic (except Domestic Appliance) and Precision Equipment Repair","9422 - Electronic (except Domestic Appliance) and Precision Equipment Repair"]
[null,null,null,null,null,null,null,null,null,null,null,null,null,null,null,null,null,null,null,null,null,null,null,null,null,null,null,null,null,null,null,null,null,null,null,null,null,null,null,null,null,null,null,null,null,null,null,null,null,null,null,"9429","Other Machinery and Equipment Repair and Maintenance","9429 - Other Machinery and Equipment Repair and Maintenance"]
[null,null,null,null,null,null,null,null,null,null,null,null,null,null,null,null,null,null,null,null,null,null,null,null,null,null,null,null,null,null,null,null,null,null,null,null,null,null,null,null,null,null,null,null,null,null,null,null,null,null,null,"9491","Clothing and Footwear Repair","9491 - Clothing and Footwear Repair"]
[null,null,null,null,null,null,null,null,null,null,null,null,null,null,null,null,null,null,null,null,null,null,null,null,null,null,null,null,null,null,null,null,null,null,null,null,null,null,null,null,null,null,null,null,null,null,null,null,null,null,null,"9499","Other Repair and Maintenance n.e.c.","9499 - Other Repair and Maintenance n.e.c."]
[null,null,null,null,null,null,null,null,null,null,null,null,null,null,null,null,null,null,null,null,null,null,null,null,null,null,null,null,null,null,null,null,null,null,null,null,null,null,null,null,null,null,null,null,null,null,null,null,null,null,null,"9511","Hairdressing and Beauty Services","9511 - Hairdressing and Beauty Services"]
[null,null,null,null,null,null,null,null,null,null,null,null,null,null,null,null,null,null,null,null,null,null,null,null,null,null,null,null,null,null,null,null,null,null,null,null,null,null,null,null,null,null,null,null,null,null,null,null,null,null,null,"9512","Diet and Weight Reduction Centre Operation","9512 - Diet and Weight Reduction Centre Operation"]
[null,null,null,null,null,null,null,null,null,null,null,null,null,null,null,null,null,null,null,null,null,null,null,null,null,null,null,null,null,null,null,null,null,null,null,null,null,null,null,null,null,null,null,null,null,null,null,null,null,null,null,"9520","Funeral, Crematorium and Cemetery Services","9520 - Funeral, Crematorium and Cemetery Services"]
[null,null,null,null,null,null,null,null,null,null,null,null,null,null,null,null,null,null,null,null,null,null,null,null,null,null,null,null,null,null,null,null,null,null,null,null,null,null,null,null,null,null,null,null,null,null,null,null,null,null,null,"9531","Laundry and Dry-Cleaning Services","9531 - Laundry and Dry-Cleaning Services"]
[null,null,null,null,null,null,null,null,null,null,null,null,null,null,null,null,null,null,null,null,null,null,null,null,null,null,null,null,null,null,null,null,null,null,null,null,null,null,null,null,null,null,null,null,null,null,null,null,null,null,null,"9532","Photographic Film Processing","9532 - Photographic Film Processing"]
[null,null,null,null,null,null,null,null,null,null,null,null,null,null,null,null,null,null,null,null,null,null,null,null,null,null,null,null,null,null,null,null,null,null,null,null,null,null,null,null,null,null,null,null,null,null,null,null,null,null,null,"9533","Parking Services","9533 - Parking Services"]
[null,null,null,null,null,null,null,null,null,null,null,null,null,null,null,null,null,null,null,null,null,null,null,null,null,null,null,null,null,null,null,null,null,null,null,null,null,null,null,null,null,null,null,null,null,null,null,null,null,null,null,"9534","Brothel Keeping and Prostitution Services","9534 - Brothel Keeping and Prostitution Services"]
[null,null,null,null,null,null,null,null,null,null,null,null,null,null,null,null,null,null,null,null,null,null,null,null,null,null,null,null,null,null,null,null,null,null,null,null,null,null,null,null,null,null,null,null,null,null,null,null,null,null,null,"9539","Other Personal Services n.e.c.","9539 - Other Personal Services n.e.c."]
[null,null,null,null,null,null,null,null,null,null,null,null,null,null,null,null,null,null,null,null,null,null,null,null,null,null,null,null,null,null,null,null,null,null,null,null,null,null,null,null,null,null,null,null,null,null,null,null,null,null,null,"9540","Religious Services","9540 - Religious Services"]
[null,null,null,null,null,null,null,null,null,null,null,null,null,null,null,null,null,null,null,null,null,null,null,null,null,null,null,null,null,null,null,null,null,null,null,null,null,null,null,null,null,null,null,null,null,null,null,null,null,null,null,"9551","Business and Professional Association Services","9551 - Business and Professional Association Services"]
[null,null,null,null,null,null,null,null,null,null,null,null,null,null,null,null,null,null,null,null,null,null,null,null,null,null,null,null,null,null,null,null,null,null,null,null,null,null,null,null,null,null,null,null,null,null,null,null,null,null,null,"9552","Labour Association Services","9552 - Labour Association Services"]
[null,null,null,null,null,null,null,null,null,null,null,null,null,null,null,null,null,null,null,null,null,null,null,null,null,null,null,null,null,null,null,null,null,null,null,null,null,null,null,null,null,null,null,null,null,null,null,null,null,null,null,"9559","Other Interest Group Services n.e.c.","9559 - Other Interest Group Services n.e.c."]
[null,null,null,null,null,null,null,null,null,null,null,null,null,null,null,null,null,null,null,null,null,null,null,null,null,null,null,null,null,null,null,null,null,null,null,null,null,null,null,null,null,null,null,null,null,null,null,null,null,null,null,"9601","Private Households Employing Staff","9601 - Private Households Employing Staff"]
[null,null,null,null,null,null,null,null,null,null,null,null,null,null,null,null,null,null,null,null,null,null,null,null,null,null,null,null,null,null,null,null,null,null,null,null,null,null,null,null,null,null,null,null,null,null,null,null,null,null,null,"9602","Undifferentiated Goods-Producing Activities of Private Households for Own Use","9602 - Undifferentiated Goods-Producing Activities of Private Households for Own Use"]
[null,null,null,null,null,null,null,null,null,null,null,null,null,null,null,null,null,null,null,null,null,null,null,null,null,null,null,null,null,null,null,null,null,null,null,null,null,null,null,null,null,null,null,null,null,null,null,null,null,null,null,"9603","Undifferentiated Service-Producing Activities of Private Households for Own Use","9603 - Undifferentiated Service-Producing Activities of Private Households for Own Use"]